Workbook

Sheet Intro
C5: FAME Carbon Calculator
C7: Introduction
C8: • Tool Overview: Designed to help archaeology organisations set baselines, track carbon footprints and comply with PAS 2080 requirements. • Purpose: Create project-specific carbon footprints that can be aggregated by clients, geographic locations and as organisation totals (forecast and actual) to analyse performance, set baselines, identify high-carbon activities, set targets, and track carbon reduction progress. • Best Usability: Use Excel 2021 or later on Windows for optimal performance.
C9: The dashboard is the main tab where you can view and summarise carbon footprint data. View Options: • Whole company (within a specified time period) • Specific project (within a specified time period) • Client (carbon footprint of all projects for a specific client within a specified time period) • Location (carbon footprint of all projects for a specific location within a specified time period) Export Data: Export data as CSV for client reporting.
C11: Navigation
C12: The tabs in the tool are colour-coded to help with navigation: • Orange Tabs: Check entered data for a project or time period • Blue Tabs: Regular data input (e.g. monthly or quarterly). • Yellow Tabs: Less frequent updates. • Green Tabs: Contains databases.
C40: Version Control
C41: Version | E41: Change
C42: 2.18 | E42: Name entry on opening to reduce admin burden, resolving protection bug
C43: 2.19 | E43: Update local authority list to full list of Scottish Local Authorities
C44: 2.20 | E44: Minor updates to intro wording as requested by Kenneth A on 10/4/2025
C45: 2.21 | E45: Sum introduced at bottom of dashboard for scope 1, 2 and 3 figures. Input data review tab created to help with large project administration Screen updating on opening to prevent screen flicker and speed up login. CSV error resolved when running on certain computers. DESNZ 2025 carbon factors added to carbon factor database.
C46: 2.22 | E46: Modification to BOQ core input to allow input of hotels and associated services as part of the project carbon footprint. Relevant carbon factors added to the database.

Sheet Dashboard
B5: Dashboard
B7: Overall carbon footprint | R7: Project carbon footprint
B9: Market/locational | R9: Project name
B10: Start date | R10: Market/locational
B11: End date | R11: Start date
R12: End date
B14: =annual_tbl_title -> Total market-based carbon footprint (tonnes CO2e) | R14: ="Total "&LOWER(proj_mark_or_loc)&" carbon footprint (tonnes CO2e)" -> Total carbon footprint (tonnes CO2e)
B15: Emission | C15: 1/1/2024 - 1/1/2025 | D15: 1/1/2025 - 1/1/2026 | R15: Emission | S15: Forecast | T15: Actual | U15: Actual as a % of forecast
B16: Scope 1 | R16: Scope 1
B17: Stationary combustion | C17: ='Emission table'!C12 -> 0 | D17: ='Emission table'!D12 -> 0 | R17: Stationary combustion | S17: ='Emission table'!K13 -> 0 | T17: ='Emission table'!L13 -> 0 | U17: ='Emission table'!M13 -> 0
B18: Project transport - company owned/leased vehicles | C18: ='Emission table'!C13 -> 0 | D18: ='Emission table'!D13 -> 0 | R18: Project transport - company owned/leased vehicles | S18: ='Emission table'!K14 -> 0 | T18: ='Emission table'!L14 -> 0 | U18: ='Emission table'!M14 -> 0
B19: Scope 2 | R19: Scope 2
B20: Electricity | C20: ='Emission table'!C14 -> 0 | D20: ='Emission table'!D14 -> 0 | R20: Electricity | S20: ='Emission table'!K15 -> 0 | T20: ='Emission table'!L15 -> 0 | U20: ='Emission table'!M15 -> 0
B21: Electricity - company owned/leased EVs | C21: ='Emission table'!C15 -> 0 | D21: ='Emission table'!D15 -> 0 | R21: Electricity - company owned/leased EVs | S21: ='Emission table'!K16 -> 0 | T21: ='Emission table'!L16 -> 0 | U21: ='Emission table'!M16 -> 0
B22: Scope 3 | R22: Scope 3
B23: Upstream leased assets | C23: ='Emission table'!C16 -> 0 | D23: ='Emission table'!D16 -> 0 | R23: Upstream leased assets | S23: ='Emission table'!K17 -> 0 | T23: ='Emission table'!L17 -> 0 | U23: ='Emission table'!M17 -> 0
B24: Overheads - business travel | C24: ='Emission table'!C17 -> 0 | D24: ='Emission table'!D17 -> 0 | R24: Overheads - business travel | S24: ='Emission table'!K18 -> 0 | T24: ='Emission table'!L18 -> 0 | U24: ='Emission table'!M18 -> 0
B25: Commuting | C25: ='Emission table'!C18 -> 0 | D25: ='Emission table'!D18 -> 0 | R25: Commuting | S25: ='Emission table'!K19 -> 0 | T25: ='Emission table'!L19 -> 0 | U25: ='Emission table'!M19 -> 0
B26: Upstream impacts - overheads | C26: ='Emission table'!C19 -> 0 | D26: ='Emission table'!D19 -> 0 | R26: Upstream impacts - overheads | S26: ='Emission table'!K20 -> 0 | T26: ='Emission table'!L20 -> 0 | U26: ='Emission table'!M20 -> 0
B27: Project transport - greyfleet | C27: ='Emission table'!C20 -> 0 | D27: ='Emission table'!D20 -> 0 | R27: Project transport - greyfleet | S27: ='Emission table'!K21 -> 0 | T27: ='Emission table'!L21 -> 0 | U27: ='Emission table'!M21 -> 0
B28: Project transport - business travel | C28: ='Emission table'!C21 -> 0 | D28: ='Emission table'!D21 -> 0 | R28: Project transport - business travel | S28: ='Emission table'!K22 -> 0 | T28: ='Emission table'!L22 -> 0 | U28: ='Emission table'!M22 -> 0
B29: Upstream impacts - project specific | C29: ='Emission table'!C22 -> 0 | D29: ='Emission table'!D22 -> 0 | R29: Upstream impacts - project specific | S29: ='Emission table'!K23 -> 0 | T29: ='Emission table'!L23 -> 0 | U29: ='Emission table'!M23 -> 0
B30: Preliminaries | C30: ='Emission table'!C23 -> 0 | D30: ='Emission table'!D23 -> 0 | R30: Preliminaries | S30: ='Emission table'!K24 -> 0 | T30: ='Emission table'!L24 -> 0 | U30: ='Emission table'!M24 -> 0
B31: Excavation/Investigation | C31: ='Emission table'!C24 -> 0 | D31: ='Emission table'!D24 -> 0 | R31: Excavation/Investigation | S31: ='Emission table'!K25 -> 0 | T31: ='Emission table'!L25 -> 0 | U31: ='Emission table'!M25 -> 0
B32: Processing of recovered materials | C32: ='Emission table'!C25 -> 0 | D32: ='Emission table'!D25 -> 0 | R32: Processing of recovered materials | S32: ='Emission table'!K26 -> 0 | T32: ='Emission table'!L26 -> 0 | U32: ='Emission table'!M26 -> 0
B33: Post-excavation assessment | C33: ='Emission table'!C26 -> 0 | D33: ='Emission table'!D26 -> 0 | R33: Post-excavation assessment | S33: ='Emission table'!K27 -> 0 | T33: ='Emission table'!L27 -> 0 | U33: ='Emission table'!M27 -> 0
B34: Post-excavation analysis and dissemination | C34: ='Emission table'!C27 -> 0 | D34: ='Emission table'!D27 -> 0 | R34: Post-excavation analysis and dissemination | S34: ='Emission table'!K28 -> 0 | T34: ='Emission table'!L28 -> 0 | U34: ='Emission table'!M28 -> 0
B35: Public engagement | C35: ='Emission table'!C28 -> 0 | D35: ='Emission table'!D28 -> 0 | R35: Public engagement | S35: ='Emission table'!K29 -> 0 | T35: ='Emission table'!L29 -> 0 | U35: ='Emission table'!M29 -> 0
B36: Deposition | C36: ='Emission table'!C29 -> 0 | D36: ='Emission table'!D29 -> 0 | R36: Deposition | S36: ='Emission table'!K30 -> 0 | T36: ='Emission table'!L30 -> 0 | U36: ='Emission table'!M30 -> 0
B37: Plant hire | C37: ='Emission table'!C30 -> 0 | D37: ='Emission table'!D30 -> 0 | R37: Plant hire | S37: ='Emission table'!K31 -> 0 | T37: ='Emission table'!L31 -> 0 | U37: ='Emission table'!M31 -> 0
B38: Development emissions [fossil] | C38: ='Emission table'!C31 -> 0 | D38: ='Emission table'!D31 -> 0 | R38: Development emissions [fossil] | S38: ='Emission table'!K32 -> 0 | T38: ='Emission table'!L32 -> 0 | U38: ='Emission table'!M32 -> 0
B39: Development emissions [biogenic] | C39: ='Emission table'!C32 -> 0 | D39: ='Emission table'!D32 -> 0 | R39: Development emissions [biogenic] | S39: ='Emission table'!K33 -> 0 | T39: ='Emission table'!L33 -> 0 | U39: ='Emission table'!M33 -> 0
B40: Biogenic emissions | C40: ='Emission table'!C33 -> 0 | D40: ='Emission table'!D33 -> 0 | R40: Biogenic emissions | S40: ='Emission table'!K34 -> 0 | T40: ='Emission table'!L34 -> 0 | U40: ='Emission table'!M34 -> 0
B41: Scope 1, 2 ,3 Fossil emissions Archaeology specific | C41: =SUM(C17:C18,C20:C21,C23:C37) -> 0 | D41: =SUM(D17:D18,D20:D21,D23:D37) -> 0 | R41: Scope 1, 2 ,3 Fossil emissions Archaeology specific | S41: =SUM(S17:S18,S20:S21,S23:S37) -> 0 | T41: =SUM(T17:T18,T20:T21,T23:T37) -> 0 | U41: =IFERROR(T41/S41,0) -> 0
B48: Client carbon footprint | R48: Geographical area carbon footprint
B50: Client name | R50: Location
B51: Market/locational | R51: Market/locational
B52: Start date | R52: Start date
B53: End date | R53: End date
B56: =client_tbl_title -> Total locational-based carbon footprint (tonnes CO2e) | R56: =loc_tbl_title -> Total market-based carbon footprint (tonnes CO2e)
B57: Emission | C57: Forecast | D57: Actual | E57: Actual as a % of forecast | R57: Emission | S57: Forecast | T57: Actual | U57: Actual as a % of forecast
B58: Scope 1 | R58: Scope 1
B59: Stationary combustion | C59: ='Emission table'!Z13 -> 0 | D59: ='Emission table'!AA13 -> 0 | E59: ='Emission table'!AB13 -> 0 | R59: Stationary combustion | S59: ='Emission table'!AJ13 -> 0 | T59: ='Emission table'!AK13 -> 0 | U59: ='Emission table'!AL13 -> 0
B60: Project transport - company owned/leased vehicles | C60: ='Emission table'!Z14 -> 0 | D60: ='Emission table'!AA14 -> 0 | E60: ='Emission table'!AB14 -> 0 | R60: Project transport - company owned/leased vehicles | S60: ='Emission table'!AJ14 -> 0 | T60: ='Emission table'!AK14 -> 0 | U60: ='Emission table'!AL14 -> 0
B61: Scope 2 | R61: Scope 2
B62: Electricity consumption | C62: ='Emission table'!Z15 -> 0 | D62: ='Emission table'!AA15 -> 0 | E62: ='Emission table'!AB15 -> 0 | R62: Electricity consumption | S62: ='Emission table'!AJ15 -> 0 | T62: ='Emission table'!AK15 -> 0 | U62: ='Emission table'!AL15 -> 0
B63: Electricity - company owned/leased EVs | C63: ='Emission table'!Z16 -> 0 | D63: ='Emission table'!AA16 -> 0 | E63: ='Emission table'!AB16 -> 0 | R63: Electricity - company owned/leased EVs | S63: ='Emission table'!AJ16 -> 0 | T63: ='Emission table'!AK16 -> 0 | U63: ='Emission table'!AL16 -> 0
B64: Scope 3 | R64: Scope 3
B65: Upstream leased assets | C65: ='Emission table'!Z17 -> 0 | D65: ='Emission table'!AA17 -> 0 | E65: ='Emission table'!AB17 -> 0 | R65: Upstream leased assets | S65: ='Emission table'!AJ17 -> 0 | T65: ='Emission table'!AK17 -> 0 | U65: ='Emission table'!AL17 -> 0
B66: Overheads - business travel | C66: ='Emission table'!Z18 -> 0 | D66: ='Emission table'!AA18 -> 0 | E66: ='Emission table'!AB18 -> 0 | R66: Overheads - business travel | S66: ='Emission table'!AJ18 -> 0 | T66: ='Emission table'!AK18 -> 0 | U66: ='Emission table'!AL18 -> 0
B67: Commuting | C67: ='Emission table'!Z19 -> 0 | D67: ='Emission table'!AA19 -> 0 | E67: ='Emission table'!AB19 -> 0 | R67: Commuting | S67: ='Emission table'!AJ19 -> 0 | T67: ='Emission table'!AK19 -> 0 | U67: ='Emission table'!AL19 -> 0
B68: Upstream impacts - overheads | C68: ='Emission table'!Z20 -> 0 | D68: ='Emission table'!AA20 -> 0 | E68: ='Emission table'!AB20 -> 0 | R68: Upstream impacts - overheads | S68: ='Emission table'!AJ20 -> 0 | T68: ='Emission table'!AK20 -> 0 | U68: ='Emission table'!AL20 -> 0
B69: Project transport - greyfleet | C69: ='Emission table'!Z21 -> 0 | D69: ='Emission table'!AA21 -> 0 | E69: ='Emission table'!AB21 -> 0 | R69: Project transport - greyfleet | S69: ='Emission table'!AJ21 -> 0 | T69: ='Emission table'!AK21 -> 0 | U69: ='Emission table'!AL21 -> 0
B70: Project transport - business travel | C70: ='Emission table'!Z22 -> 0 | D70: ='Emission table'!AA22 -> 0 | E70: ='Emission table'!AB22 -> 0 | R70: Project transport - business travel | S70: ='Emission table'!AJ22 -> 0 | T70: ='Emission table'!AK22 -> 0 | U70: ='Emission table'!AL22 -> 0
B71: Upstream impacts - project specific | C71: ='Emission table'!Z23 -> 0 | D71: ='Emission table'!AA23 -> 0 | E71: ='Emission table'!AB23 -> 0 | R71: Upstream impacts - project specific | S71: ='Emission table'!AJ23 -> 0 | T71: ='Emission table'!AK23 -> 0 | U71: ='Emission table'!AL23 -> 0
B72: Preliminaries | C72: ='Emission table'!Z24 -> 0 | D72: ='Emission table'!AA24 -> 0 | E72: ='Emission table'!AB24 -> 0 | R72: Preliminaries | S72: ='Emission table'!AJ24 -> 0 | T72: ='Emission table'!AK24 -> 0 | U72: ='Emission table'!AL24 -> 0
B73: Excavation/Investigation | C73: ='Emission table'!Z25 -> 0 | D73: ='Emission table'!AA25 -> 0 | E73: ='Emission table'!AB25 -> 0 | R73: Excavation/Investigation | S73: ='Emission table'!AJ25 -> 0 | T73: ='Emission table'!AK25 -> 0 | U73: ='Emission table'!AL25 -> 0
B74: Processing of recovered materials | C74: ='Emission table'!Z26 -> 0 | D74: ='Emission table'!AA26 -> 0 | E74: ='Emission table'!AB26 -> 0 | R74: Processing of recovered materials | S74: ='Emission table'!AJ26 -> 0 | T74: ='Emission table'!AK26 -> 0 | U74: ='Emission table'!AL26 -> 0
B75: Post-excavation assessment | C75: ='Emission table'!Z27 -> 0 | D75: ='Emission table'!AA27 -> 0 | E75: ='Emission table'!AB27 -> 0 | R75: Post-excavation assessment | S75: ='Emission table'!AJ27 -> 0 | T75: ='Emission table'!AK27 -> 0 | U75: ='Emission table'!AL27 -> 0
B76: Post-excavation analysis and dissemination | C76: ='Emission table'!Z28 -> 0 | D76: ='Emission table'!AA28 -> 0 | E76: ='Emission table'!AB28 -> 0 | R76: Post-excavation analysis and dissemination | S76: ='Emission table'!AJ28 -> 0 | T76: ='Emission table'!AK28 -> 0 | U76: ='Emission table'!AL28 -> 0
B77: Public engagement | C77: ='Emission table'!Z29 -> 0 | D77: ='Emission table'!AA29 -> 0 | E77: ='Emission table'!AB29 -> 0 | R77: Public engagement | S77: ='Emission table'!AJ29 -> 0 | T77: ='Emission table'!AK29 -> 0 | U77: ='Emission table'!AL29 -> 0
B78: Deposition | C78: ='Emission table'!Z30 -> 0 | D78: ='Emission table'!AA30 -> 0 | E78: ='Emission table'!AB30 -> 0 | R78: Deposition | S78: ='Emission table'!AJ30 -> 0 | T78: ='Emission table'!AK30 -> 0 | U78: ='Emission table'!AL30 -> 0
B79: Plant hire | C79: ='Emission table'!Z31 -> 0.001506803279 | D79: ='Emission table'!AA31 -> 0 | E79: ='Emission table'!AB31 -> 0 | R79: Plant hire | S79: ='Emission table'!AJ31 -> 0 | T79: ='Emission table'!AK31 -> 0 | U79: ='Emission table'!AL31 -> 0
B80: Development emissions [fossil] | C80: ='Emission table'!Z32 -> 0 | D80: ='Emission table'!AA32 -> 0 | E80: ='Emission table'!AB32 -> 0 | R80: Development emissions [fossil] | S80: ='Emission table'!AJ32 -> 0 | T80: ='Emission table'!AK32 -> 0 | U80: ='Emission table'!AL32 -> 0
B81: Development emissions [biogenic] | C81: ='Emission table'!Z33 -> 0 | D81: ='Emission table'!AA33 -> 0 | E81: ='Emission table'!AB33 -> 0 | R81: Development emissions [biogenic] | S81: ='Emission table'!AJ33 -> 0 | T81: ='Emission table'!AK33 -> 0 | U81: ='Emission table'!AL33 -> 0
B82: Biogenic emissions | C82: ='Emission table'!Z34 -> 0 | D82: ='Emission table'!AA34 -> 0 | E82: ='Emission table'!AB34 -> 0 | R82: Biogenic emissions | S82: ='Emission table'!AJ34 -> 0 | T82: ='Emission table'!AK34 -> 0 | U82: ='Emission table'!AL34 -> 0
B83: Scope 1, 2 ,3 Fossil emissions Archaeology specific | C83: =SUM(C59:C60,C62:C63,C65:C79) -> 0.001506803279 | D83: =SUM(D59:D60,D62:D63,D65:D79) -> 0 | E83: =IF(C83=0,0,D83/C83) -> 0 | S83: =SUM(S59:S60,S62:S63,S65:S79) -> 0 | T83: =SUM(T59:T60,T62:T63,T65:T79) -> 0 | U83: =IF(S83=0,0,T83/S83) -> 0

Sheet Input data review
D6: Project name
D7: Please note that this will return only direct project inputs. Overheads will not be returned as these are shared between different projects
G9: Archaeology only quantity | I9: Archaeology and other development
C10: Unique Code | D10: Input Sheet | E10: Input Type | F10: Unit | G10: Forecast | H10: Actual | I10: Forecast | J10: Actual

Sheet Data input check
B5: Data input check
C8: Do you want to check data inputs for a project or a time period? | H8: Project
C9: Project name | H9: Project - Master
C10: Start month | H10: 4
C11: Start year | H11: 2025
C12: End month | H12: 5
C13: End year | H13: 2025
C17: This is indicative only. Monthly data will be indicated as present if at least one day within the month has some data input.
C18: Project - Master
D19: Person-days | H19: Overheads | N19: Project-specific
C20: Month | D20: Actual project person-days | E20: Forecast project person-days | F20: Actual total person-days | G20: Forecast total person-days | H20: Forecast buildings data | I20: Actual buildings data | J20: Forecast commuting/homeworking data | K20: Actual commuting/homeworking data | L20: Forecast business travel data | M20: Actual business travel data | N20: Forecast project transport - company vehicles data | O20: Actual project transport - company vehicles data | P20: Forecast project transport - greyfleet data | Q20: Actual project transport - greyfleet data | R20: Forecast project transport - business travel data | S20: Actual project transport - business travel data | T20: Forecast BoQ data | U20: Actual BoQ data | V20: Forecast soil/excavation data | W20: Actual soil/excavation data
C21: 2025-04-01
C22: 2025-05-01

Sheet BoQ core input
B5: Core bill of quantities input
B9: Name of person inputting the data
B10: Project code
B11: Record type
B12: Start date | C12: Only applicable if actual data is input dd/mm/yyyy
B13: End date
B14: Additional notes
B20: First record number to be amended | C20: This will be automatically populated by the recall function. If you do not want to amend an entry please clear the amendment data.
B21: Last record number to be amended
B22: Reason for amendment
B25: This section must be filled out for each project
B26: Some of the activities listed below might be carried out in-house and therefore included in other aspects of the tool. To avoid double counting please ensure that only externally contracted activities are included on this tab and in-house activities are covered in the overheads.
B27: We have flagged some activities using an asterisk where we think it is likely that it was carried out in-house and so will be captured elsewhere in the tool, however, this is not exhaustive.
B28: Highlighted blue are cells where a physical unit carbon factor is available. Where possible use this instead of monetary data.
B29: Please do not input formulae. If using formulae ensure you have copy and pasted values before submitting to the database.
B30: Reference | C30: Item specification | D30: Descriptions | E30: Unit | F30: Quantity solely for archaeology activity | G30: Quantity for archaeology and other development purposes | H30: Custom carbon factor (if applicable) | I30: Notes
B31: AA - Accommodation and Subistence
B32: AA1 | C32: Hotels and Accommodation | D32: Spend on overnight accommodation with third party providers. | E32: Room per night
B33: AA2 | C33: Food and Subsistence | D33: Food purchased at restaurants, cafes and supermarkets when working away from home | E33: £
B34: Y - PLANT HIRE
B35: Y0 | C35: Option 1 - Diesel consumption | D35: Common user mechanical plant and equipment used in construction operations. Litres of diesel consumed/£ spent on diesel used by third party plant/equipment hire If excavator diesel consumption is included here then do not input data in the excavator section of the Soil excavation input tab | E35: litres
B36: Y1 | C36: Option 1 - Biodiesel consumption | D36: Common user mechanical plant and equipment used in construction operations. Litres of biodiesel consumed/£ spent on biodiesel used by third party plant/equipment hire If excavator biodiesel consumption is included here then do not input data in the excavator section of the Soil excavation input tab | E36: litres
B37: Y2 | C37: Option 2 - Amount spent on plant hire | D37: Common user mechanical plant and equipment used in construction operations. Amount spent on hiring equipment/plant If you are able to separate spend on excavators, then exclude this spend here and input data in the excavator section of the Soil excavation input tab | E37: £
B38: A - PRELIMINARIES
B39: A1 | C39: Supply H&S Plan* | E39: FTE working hour
B40: A2 - Supply and update 'WSI' or Method Statement
B41: A2.1 | C41: Supply 'WSI' or Method Statement* | E41: FTE working hour
B42: A2.2 | C42: Update 'WSI' or Method Statement* | E42: FTE working hour
B43: A3 - Supply and update Programme
B44: A3.1 | C44: Supply Programme* | E44: FTE working hour
B45: A3.2 | C45: Update Programme* | E45: FTE working hour
B46: A4 | C46: Attend meetings* | E46: FTE working hour
B47: A5 | C47: Handover* | E47: FTE working hour
B48: A7 - Site establishment
B49: A7.1.1.1 | C49: Option 1 - Temporary site accommodation, diesel consumption | D49: Temporary site accommodation Should cover: • Purchase charges. • Hire charges. • Delivery of temporary site accommodation to site and erection, construction and removal of temporary site accommodation. • Intruder alarms. • Land/property rental where site accommodation is located off-site. • Relocation and alterations of temporary accommodation during construction stage. • Reinstating temporary site accommodation to original condition before removal from site. • Removal of site accommodation and temporary works in connection with site accommodation. | E49: litres
B50: A7.1.1.2 | C50: Option 1 - Temporary site accommodation, biodiesel consumption | D50: Temporary site accommodation Should cover: • Purchase charges. • Hire charges. • Delivery of temporary site accommodation to site and erection, construction and removal of temporary site accommodation. • Intruder alarms. • Land/property rental where site accommodation is located off-site. • Relocation and alterations of temporary accommodation during construction stage. • Reinstating temporary site accommodation to original condition before removal from site. • Removal of site accommodation and temporary works in connection with site accommodation. | E50: £
B51: A7.1.1.3 | C51: Option 2 - Amount spent on temporary site accommodation | D51: Temporary site accommodation Should cover: • Purchase charges. • Hire charges. • Delivery of temporary site accommodation to site and erection, construction and removal of temporary site accommodation. • Intruder alarms. • Land/property rental where site accommodation is located off-site. • Relocation and alterations of temporary accommodation during construction stage. • Reinstating temporary site accommodation to original condition before removal from site. • Removal of site accommodation and temporary works in connection with site accommodation. | E51: £
B52: A7.2.1 | C52: Temporary works in connection with site establishment (road surface) | D52: Specify coverage, could cover: • Temporary bases and foundations for site accommodation, including maintenance and reinstatement of existing surfaces on completion of the works. • Temporary site roads, paths and pavings (including on-site car parking), including reinstatement of existing surfaces on completion of the works. • Temporary surface water drainage to temporary site roads, paths and pavements, including maintenance and removal on completion of the works. • Connections to temporary service, including maintenance and removal on completion of the works. • Connections to temporary drainage, including maintenance and removal on completion of the works. | E52: m2
B53: A7.2.2 | C53: Temporary works in connection with site establishment (concrete) | D53: Specify coverage, could cover: • Temporary bases and foundations for site accommodation, including maintenance and reinstatement of existing surfaces on completion of the works. • Temporary site roads, paths and pavings (including on-site car parking), including reinstatement of existing surfaces on completion of the works. • Temporary surface water drainage to temporary site roads, paths and pavements, including maintenance and removal on completion of the works. • Connections to temporary service, including maintenance and removal on completion of the works. • Connections to temporary drainage, including maintenance and removal on completion of the works. | E53: m3
B54: A7.3 | C54: Furniture and equipment | D54: Specify coverage, could cover: • Workstations for staff, including maintenance. • General office furniture, including maintenance. • Conference/meeting room furniture, including maintenance. • Photocopiers, including purchase/rental, maintenance and other running costs. • Canteen furniture, including maintenance. • Canteen equipment, including purchase/rental, maintenance and other running costs. • Floor coverings, including maintenance. • Water dispensers, including purchase/rental, maintenance and other running costs. • Heaters, including maintenance of heaters • Other office equipment, including maintenance. • Removal of furniture and equipment • Maintenance furniture and floor covering. • Water dispensers, including purchase/rental, maintenance and other running costs. • Heaters, including maintenance of heaters. • Other office equipment, including maintenance. • Removal of furniture and equipment. • Maintenance furniture and floor covering. | E54: £
B55: A7.4.1 | C55: IT systems - hardware | D55: Specify coverage, could cover: • Computer hardware, including purchase/rental, installation, initial set up, maintenance and running costs, such as: o desktop and laptop computers o CAD stations o server and network equipment o printers and plotters o other computer system hardware. | E55: £
B56: A7.4.2 | C56: IT systems - software | D56: Specify coverage, could cover: • Software and software licences. • Modem lines, modems and connections (i.e. email and internet capability). • WAN lines and connections (if on WAN). • Line rental charges. • Internet/website addresses. • Internet service provider (ISP) charges. • Line calls charges. • IT support and maintenance. | E56: £
B57: A7.5.1 | C57: Stationary and printing | D57: Specify coverage, could cover: • Stationery. • Fax consumables (e.g. paper and toners). • Drawing printer consumables (e.g. ink cartridges). | E57: kg
B58: A7.5.2 | C58: Computer and printer consumables | D58: Specify coverage, could cover: • Computer and printer consumables (e.g. ink cartridges). | E58: £
B59: A7.5.3 | C59: Postage | D59: Specify coverage, could cover: • Postage. • Courier charges. •Phone costs | E59: £
B60: A7.5.4 | C60: Food and drink | D60: Specify coverage, could cover: • Tea, coffee, water bottles, etc. | E60: £
B61: A7.5.5 | C61: First aid consumables | D61: • First aid consumables. | E61: kg
B62: A7.6.1 | C62: Catering | E62: £
B63: A7.6.2 | C63: Equipment maintenance | E63: £
B64: A7.6.3 | C64: Document management | D64: including management information systems and EDMS | E64: £
B65: A7.6.4 | C65: Printing (purchasing) | D65: including reports and drawings | E65: kg
B66: A7.6.5 | C66: Parking | D66: Off-site parking charges Tolls | E66: £
B67: A7.6.6 | C67: Meeting room facilities* | E67: £
B68: A7.6.7 | C68: Photographic services | D68: Photographic activities and other brought-in services | E68: £
B69: A7.7 | C69: Sundries | D69: Specify coverage, could cover: • Signboards. • Safety and information notice boards. • Fire points. • Shelters. • Tool stores. • Employer’s composite signboards. | E69: kg
B70: A8 - Temporary services
B71: A8.1.1 | C71: Temporary water supply - services/meter charges | D71: • Meter charges | E71: m3
B72: A8.1.2 | C72: Temporary water supply - infrastructure (connections and distribution) | D72: Specify coverage, could cover: • Temporary connections. • Distribution equipment, installation and adaptations. | E72: £
B73: A8.2.1 | C73: Temporary gas supply - services (charges) | D73: Natural gas consumption: - Charges - Bottled gas | E73: kWh
B74: A8.2.2 | C74: Temporary gas supply - infrastructure (connections and distribution) | D74: Specify coverage, could cover: • Gas connection. • Distribution equipment, installation and adaptations. | E74: £
B75: A8.3.1.1 | C75: Temporary electricity supply - infrastructure (attendance, UPS, etc) | D75: Specify coverage, could cover: • Attendance. • Uninterrupted power supply (UPS). • Temporary substation modifications. | E75: £
B76: A8.3.1.2 | C76: Temporary electricity supply - infrastructure (connections and distribution) | D76: Specify coverage, could cover: • Temporary connections. • Temporary electrical supply for tower cranes. • Distribution equipment, installation and adaptations. | E76: £
B77: A8.3.2 | C77: Temporary electricity supply - charges | D77: Electricity consumption: • Charges – power consumption for site establishment. • Charges – power consumption for the works. | E77: kWh
B78: A8.4.1.1 | C78: Temporary telecommunication systems - consumables (wires and lines) | D78: Specify coverage, could cover: • Landlines including: o telephone and fax lines and o ISDN lines. | E78: £
B79: A8.4.1.2 | C79: Temporary telecommunication systems - consumables (handsets etc) | D79: Specify coverage, could cover: • Telephone and related equipment, including: o PABX equipment o handsets, including purchase or rental o fax machines, including purchase or rental o installation of equipment and o maintenance of equipment. • Mobile phones, including: o purchase or rental o spare batteries and o mobile phone charges. • Telephone charges, including: o fax and telephone consumables. • Radios, including: o purchase or rental charges o base set o handsets and chargers o repairs and maintenance o spare batteries. | E79: £
B80: A8.4.2 | C80: Temporary telecommunication systems - services | D80: Specify coverage, could cover: • Landlines including: o connection charges • Telephone and related equipment, including: o connection charges • Mobile phones, including: o connection charges • Telephone charges, including: o telephone call charges o fax charges and • Radios, including: o licences | E80: £
B81: A8.5.1 | C81: Temporary drainage - infrastructure | D81: Specify coverage, could cover: • Temporary mains. • Septic tanks. • On-site treatment plant. • Holding tanks. • Distribution pipework, etc. | E81: £
B82: A9.3.1 | C82: Hoardings, fences and gates (steel hot rolled coil) | D82: Specify coverage, could cover: • Perimeter hoardings and fencing, etc. to site boundaries and to form site compounds. • Access gates, including frames and ironmongery. • Painting of hoardings, fencing, gates, etc. • Temporary doors. • Modification to line of hoarding and fencing during construction. • Dismantling and removal of hoarding, fencing, gates, etc. | E82: kg
B83: A9.3.2 | C83: Hoardings, fences and gates (steel welded pipe) | D83: Specify coverage, could cover: • Perimeter hoardings and fencing, etc. to site boundaries and to form site compounds. • Access gates, including frames and ironmongery. • Painting of hoardings, fencing, gates, etc. • Temporary doors. • Modification to line of hoarding and fencing during construction. • Dismantling and removal of hoarding, fencing, gates, etc. | E83: kg
B84: A9.3.3 | C84: Hoardings, fences and gates (aluminium sheet) | D84: Specify coverage, could cover: • Perimeter hoardings and fencing, etc. to site boundaries and to form site compounds. • Access gates, including frames and ironmongery. • Painting of hoardings, fencing, gates, etc. • Temporary doors. • Modification to line of hoarding and fencing during construction. • Dismantling and removal of hoarding, fencing, gates, etc. | E84: kg
B85: A9.3.4 | C85: Hoardings, fences and gates (aluminium extruded profile) | D85: Specify coverage, could cover: • Perimeter hoardings and fencing, etc. to site boundaries and to form site compounds. • Access gates, including frames and ironmongery. • Painting of hoardings, fencing, gates, etc. • Temporary doors. • Modification to line of hoarding and fencing during construction. • Dismantling and removal of hoarding, fencing, gates, etc. | E85: kg
B86: A10 - Safety and environmental protection
B87: A10.1.1 | C87: Safety programme - services* | D87: Specify coverage, could cover: • Health and safety manager/officers. • Safety audits, including safety audits carried out by an external consultant. • Nurse. • Traffic marshals. | E87: £
B88: A10.1.2 | C88: Safety programme - PPE | D88: Specify coverage, could cover: • Personal protective equipment (PPE), including for the employer and consultants. • PPE for multi-service gangs | E88: £
B89: A10.1.3 | C89: Safety programme - equipment | D89: Specify coverage, could cover: • Fire points. • Temporary fire alarms. • Fire extinguishers. • Statutory safety signage. | E89: £
B90: A10.1.4 | C90: Safety programme - education | D90: Specify coverage, could cover: • Staff safety training. • Site safety incentive scheme. • Notices and information to neighbours. | E90: £
B91: A10.2.1 | C91: Barriers and safety scaffolding (steel hot rolled coil) | D91: Specify coverage, could cover: • Guard rails and edge protection (e.g. to edges of suspended slabs and roofs). • Temporary staircase balustrades (i.e. to new staircases during construction). • Lift shaft protection. • Protection to holes and openings in ground floor slabs, suspended slabs, etc. • Debris netting/plastic sheeting. • Fan protection. • Scaffold inspections. • Hoist run-offs. • Protective walkways. • Other safety measures. | E91: kg
B92: A10.2.2 | C92: Barriers and safety scaffolding (steel welded pipe) | D92: Specify coverage, could cover: • Guard rails and edge protection (e.g. to edges of suspended slabs and roofs). • Temporary staircase balustrades (i.e. to new staircases during construction). • Lift shaft protection. • Protection to holes and openings in ground floor slabs, suspended slabs, etc. • Debris netting/plastic sheeting. • Fan protection. • Scaffold inspections. • Hoist run-offs. • Protective walkways. • Other safety measures. | E92: kg
B93: A10.2.3 | C93: Barriers and safety scaffolding (aluminium sheet) | D93: Specify coverage, could cover: • Guard rails and edge protection (e.g. to edges of suspended slabs and roofs). • Temporary staircase balustrades (i.e. to new staircases during construction). • Lift shaft protection. • Protection to holes and openings in ground floor slabs, suspended slabs, etc. • Debris netting/plastic sheeting. • Fan protection. • Scaffold inspections. • Hoist run-offs. • Protective walkways. • Other safety measures. | E93: kg
B94: A10.2.4 | C94: Barriers and safety scaffolding (aluminium extruded profile) | D94: Specify coverage, could cover: • Guard rails and edge protection (e.g. to edges of suspended slabs and roofs). • Temporary staircase balustrades (i.e. to new staircases during construction). • Lift shaft protection. • Protection to holes and openings in ground floor slabs, suspended slabs, etc. • Debris netting/plastic sheeting. • Fan protection. • Scaffold inspections. • Hoist run-offs. • Protective walkways. • Other safety measures. | E94: kg
B95: A11 - Control and protection
B96: A11.1 | C96: Survey, inspections and monitoring | D96: Specify coverage, could cover: • Surveys. • Topographical survey. • Structural/dilapidations survey adjoining buildings. • Environmental surveys. • Movement monitoring. • Maintenance and inspection costs. | E96: £
B97: A11.2.2.1 | C97: Setting out - equipment (steel hot rolled coil) | D97: Specify coverage, could cover: • Instruments for setting out. | E97: kg
B98: A11.2.2.2 | C98: Setting out - equipment (steel welded pipe) | D98: Specify coverage, could cover: • Instruments for setting out. | E98: kg
B99: A11.2.2.3 | C99: Setting out - equipment (aluminium sheet) | D99: Specify coverage, could cover: • Instruments for setting out. | E99: kg
B100: A11.2.2.4 | C100: Setting out - equipment (aluminium extruded profile) | D100: Specify coverage, could cover: • Instruments for setting out. | E100: kg
B101: A11.5 | C101: Environmental control of building | D101: Specify coverage, could cover: • Dry out building. • Temporary heating/cooling. • Temporary waterproofing, including over roofs. • Temporary enclosures. | E101: £
B102: A14 - Cleaning
B103: A14.2 | C103: Maintenance of roads, paths and pavings | D103: Specify coverage, could cover: • Maintenance of temporary site roads, paths, and pavements. • Maintenance of public and private roads, including wheel spinners and road sweepers. | E103: £
B104: A16 - Insurance, bonds, guarantees and warranties
B105: A16.1 | C105: Works insurance | D105: Specify coverage, could cover: • Contractor’s all risks (CAR) insurance. • Contractor’s plant and equipment insurance. • Temporary buildings insurance. • Terrorism insurance. • Other insurances in connection with the works. • Insurance premium tax (IPT). • Allowance for recovery of all or part of insurance premium excess. | E105: £
B106: A16.2 | C106: Public liability insurance | D106: Specify coverage, could cover: • Non-negligence insurance. • Professional indemnity insurance. • IPT. • Allowance for recovery of all or part of insurance premium excess. | E106: £
B107: A16.3 | C107: Employer’s (main contractor’s) liability insurance | D107: Specify coverage, could cover: • Management and staff, including administrative staff. • Works operatives. • IPT. • Allowance for recovery of all or part of insurance premium excess. • Works operatives. • IPT. • Allowance for recovery of all or part of insurance premium excess. | E107: £
B108: A16.4 | C108: Other insurances | D108: Specify coverage, could cover: • Employer’s loss of liquidated damages. • Latent defects cover. • Motor vehicles. • Other insurances. • IPT. • Allowance for recovery of all or part of insurance premium excess. | E108: £
B109: A16.5 | C109: Bonds | D109: Specify coverage, could cover: • Tender bonds. • Performance bonds. | E109: £
B110: A16.6 | C110: Guarantees | D110: Specify coverage, could cover: • Parent company guarantees. • Product guarantees, insurance backed guarantees. | E110: £
B111: A16.7 | C111: Warranties | D111: Specify coverage, could cover: • Collateral warranties. • Funder’s warranties. • Purchaser’s and tenant’s warranties. • Other warranties. | E111: £
B112: A17 | C112: De-watering | D112: Specify coverage, could cover: • Hire • Installation • Maintenance • Delivery each way | E112: £
B113: B - EXCAVATION/INVESTIGATION - this might involve other methods than just excavation
B114: B1.5 | C114: Surveys, characterisations, and photography | D114: Eg. metal detecting survey, hedgerow survey, conventional aerial photography, historic landscape and seascape characterisation Activities specified in FAME's Bill of Quantities Section B1.5-7, B1.17-22, B1.24 -30 | E114: £
B115: B1.8 | C115: Sampling | D115: Eg. gravity core, monolith, timber Activities specified in FAME's Bill of Quantities Section B1.8-16 | E115: £
B116: B1.19.2 | C116: Acoustic Ground Discriminating Radar | D116: An extra processing unit which can be used in conjunction with single beam echo sounders to determine the roughness and hardness of the seafloor. Mainly used for marine biology, but has been used in archaeology. http://purl.org/heritagedata/schemes/agl_et/concepts/147321 | E116: £
B117: B1.23 | C117: Desk Based Assessment* | D117: A programme of assessment of the known or potential archaeological resource within a specified area or site on land, inter-tidal zone or underwater by the consultation and collation of existing written, graphic, photographic and electronic data. http://purl.org/heritagedata/schemes/agl_et/concepts/145123 | E117: FTE working hour
B118: B1.31 | C118: Remote Operated Vehicle Survey | D118: A technique utilised in maritime recording; a remote operated vehicle (ROV) is a tethered underwater robot. ROVs have been used to locate and inspect a number of historic shipwrecks in depths beyond the reach of human divers. http://purl.org/heritagedata/schemes/agl_et/concepts/147311 | E118: £
B119: D - POST-EXCAVATION ASSESSMENT
B120: D1.4 | C120: Photo and Record logs* | D120: A complete log of all the photos taken and record documents created during the excavation. | E120: kg
B121: E - POST-EXCAVATION ANALYSIS AND DISSEMINATION
B122: E1 | C122: Chemical Techniques* | D122: eg. Alpha spectrometry, pH determination, stable isotope analysis See FAME's Bill of Quantities Section E1 | E122: £
B123: E2 | C123: Dating Techniques* | D123: eg. Electron spin resonance, lead isotope dating, radiocarbon dating See FAME's Bill of Quantities Section E2 | E123: £
B124: E3 | C124: Physical techniques* | D124: eg. Clast lithological analysis, moisture content, particle size analysis See FAME's Bill of Quantities Section E3 | E124: £
B125: E5.1 | C125: Report write-up* | D125: Compiling together a report of the work. Usually contains the background information on the project (purpose, research conducted before work), a description of methods, the data of what was found and analysed and possible an interpretation of section. It might also have specialist sub-reports discussing materials that received specialised analysis and appendixes of raw data/images. | E125: £
B126: E5.2 | C126: Specialist sub-reports - add as many as required.* | D126: Sub-reports discussing materials that received specialised analysis. | E126: £
B127: E5.3 | C127: Figure creation* | D127: The creation of special figures/graphs for report. | E127: £
B128: E5.3.1 | C128: Site plan processing* | D128: Site plans may require digitisation or additional cleaning up if born digital. | E128: £
B129: E5.3.2 | C129: Section plan processing* | D129: Section plans may require digitisation or additional cleaning up if born digital. | E129: £
B130: E5.3.3 | C130: Reconstructions* | D130: Special images that ‘reconstruct’ what a person, place or artefact might have looked like in the past. | E130: £
B131: E5.3.4 | C131: Artefact drawings* | D131: Detailed drawings of artefacts that provide more interprated views that can not be obtained with photographs. | E131: £
B132: E5.3.5 | C132: Graphs and tables* | D132: The creation of graphs and tables of the data and any analysis. | E132: £
B133: E5.3.6 | C133: Other figures* | D133: Anything not covered in the other categories. | E133: £
B134: E5.4 | C134: Copyediting* | D134: Identifying and fixing errors related to spelling and grammatical typos, tone and style inconsistencies, awkward syntax, and poor word choice. | E134: £
B135: E5.5 | C135: Review and revision* | D135: Review of the document by experts looking at the research and findings. | E135: £
B136: E5.6 | C136: Additional publication costs e.g. printing, design | D136: Other costs not covered elsewhere. | E136: £
B137: F - PUBLIC ENGAGEMENT
B138: F1 | C138: Location hire | D138: Tours School visits Press release Open days Interpretation panels Interviews | E138: £
B139: F2 | C139: Printed materials | D139: Including interpretation panels | E139: kg
B140: F3 | C140: Digital items (third-party) | D140: Podcast Blog post Social media Video documentary Websites Virtual reconstruction | E140: £
B141: F4 | C141: Education services | D141: Volunteering Field school integration Apprenticeships Lectures Educational visits | E141: £
B142: G - DEPOSITION
B143: G1 | C143: Museum/archive deposition charges | D143: The charges from a museum or archive to deposit materials. Currently many charge on a 'per box' basis, sometimes those the size of those boxes are specified. | E143: £
B144: G2 | C144: Transport/carriage to museum | D144: The charges to deliver the archive elments to the archive/museum. | E144: tonne.km
B145: G3 | C145: Dispose of discarded materials | D145: Disposing of the materials that are not sent to the archive | E145: £
B146: G4 | C146: OASIS upload* | D146: Registering the project and digital materials with OASIS | E146: £
B147: G5 | C147: Digital archive* | D147: Depositing the digital materials into a digital archive | E147: £

Sheet BoQ optional input
B5: Optional bill of quantities input
B9: Name of person inputting the data
B10: Project code
B11: Record type
B12: Start date | C12: Only applicable if actual data is input dd/mm/yyyy
B13: End date
B14: Additional notes
B19: First record number to be amended | C19: This will be automatically populated by the recall function If you do not want to amend an entry please clear the amendment data
B20: Last record number to be amended
B21: Reason for amendment
B24: The categories listed in this section are thought to be low carbon aspects of the project implementation.
B25: It is therefore optional to fill it out. However, if filled, out a more representative project carbon footprint will be produced.
B26: Some of the activities listed below might be carried out in-house and therefore included in other aspects of the tool. To avoid double counting please ensure that only externally contracted activities are included on this tab and in-house activities are covered in the overheads.
B27: We have flagged some activities using an asterisk where we think it is likely that it was carried out in-house and so will be captured elsewhere in the tool, however, this is not exhaustive.
B28: Please do not input formulae. If using formulae ensure you have copy and pasted values before submitting to the database.
B29: Reference | C29: Item specification | D29: Descriptions | E29: Unit | F29: Quantity solely for archaeology activity | G29: Quantity for archaeology and other development purposes | H29: Custom carbon factor (if applicable) | I29: Notes
B30: A - PRELIMINARIES
B31: A8.5.2 | C31: Temporary drainage - waste | D31: Specify coverage, could cover: • Sewage pumping. • Drainage inst Disposal charges (i.e. rates).allation and adaptations. • Disposal costs (i.e. tanker charges). | E31: £
B32: A9 - Security
B33: A9.1 | C33: Security staff | D33: Specify coverage, could cover: • Security guards (day and night). • Watch patrols (day and night). | E33: £
B34: A9.2 | C34: Security equipment | D34: Specify coverage, could cover: • Site pass issue equipment, including maintenance and removal. • Site pass consumables. • CCTV surveillance installation, including maintenance and removal. • Temporary vehicle control barriers, including maintenance and removal. | E34: £
B35: A10 - Safety and environmental protection
B36: A10.3 | C36: Environmental protection measures | D36: Specify coverage, could cover: • Control of pollution. • Residual control of noise. • Environmental monitoring. • Environmental manager/consultant. • Environmental audits, including safety audits carried out by external consultant. | E36: £
B37: A11 - Control and protection
B38: A11.2.1 | C38: Setting out - services* | D38: Specify coverage, could cover: • Setting out primary grids. • Grid transfers and level checks. • Maintenance of grids. • Take over control and independent checks (i.e. on change of subcontractors). | E38: £
B39: A11.3 | C39: Protection of works | D39: Specify coverage, could cover: • Protection of finished works to project handover. • Protection of stairs, balustrades, etc. works to project handover. • Protection of fittings and furnishings works to project handover. • Protection of entrance doors and frames works to project handover. • Protection of lift cars and doors works to project handover. • Protection of specifically vulnerable products to project handover. • Protection of all sundry items. | E39: £
B40: A13 - Temporary works
B41: A13.1 | C41: Access scaffolding | D41: Specify coverage, could cover: • Bringing to site, erecting and initial safety checks. • Hire charges. • Altering and adapting during construction. • Dismantling and removing from site. | E41: £
B42: A13.2 | C42: Temporary works | D42: Specify coverage, could cover: • Bringing to site, erecting and initial safety checks. • Hire charges. • Altering and adapting during construction. • Dismantling and removing from site. | E42: £
B43: A14 - Cleaning
B44: A14.1.2 | C44: Site tidy - cleaning | D44: Specify coverage, could cover: • Cleaning site accommodation – internal, including cleaning telephone handsets, other office furniture and equipment and window cleaning. • Periodic maintenance of site accommodation, including redecoration (internal and external). • Pest control. | E44: £
B45: A14.1.3 | C45: Site tidy - waste disposal | D45: Specify coverage, could cover: • Waste management, including rubbish disposal (including compactor visits; skips and waste bins; roll-off, roll-on waste bins) and other disposal. | E45: £
B46: A14.2 | C46: Maintenance of roads, paths and pavings | D46: Specify coverage, could cover: • Maintenance of temporary site roads, paths, and pavements. • Maintenance of public and private roads, including wheel spinners and road sweepers. | E46: £
B47: A14.3 | C47: Building clean | D47: Final builder’s clean. | E47: £
B48: C - PROCESSING OF RECOVERED MATERIALS
B49: C1 | C49: Process, stabilise and catalogue bulk artefacts* | D49: For example: bone, fibre, hair, leather, metal, etc For further examples of what should be included please see FAME's Bill of Quantities, Section C1 | E49: £
B50: C2 | C50: Process, stabilise and catalogue 'special' artefacts* | D50: For example: bone, fibre, hair, leather, metal, etc For further examples of what should be included please see FAME's Bill of Quantities, Section C2 | E50: £
B51: C3 - Process, catalogue and stabilise bulk soil samples as specified
B52: C3.1 | C52: Soil samples for envi assessment* | E52: £
B53: C3.2 | C53: Cremation-related deposits* | E53: £
B54: C4 - Off-site 'excavation' of contained remains (urns, lead coffins etc.)
B55: C4.1 | C55: Urned cremation remains | E55: £
B56: C4.2 | C56: Coffins | E56: £
B57: C4.3 | C57: Block lifted deposits | E57: £
B58: C5 - Process, catalogue and stablise structure elements as specified
B59: C5.1 | C59: Structural elements* | E59: £
B60: D - POST-EXCAVATION ASSESSMENT
B61: D1 - Supply assessment of research potential of the archive
B62: D1.1 | C62: Stratigraphic assemblage* | D62: A review of the stratigraphic assemblage and its research potential. | E62: £
B63: D1.2 | C63: Artefactual assemblage* | D63: A review of the artefactual assemblage and its research potential. | E63: £
B64: D1.3 | C64: Environmental assemblage* | D64: A review of the environmental assemblage and its research potential. | E64: £
B65: D2 | C65: Full Post-excavation assessment report* | D65: A report that presents the research potential of the archive/materials recorvered and recommendations for Post-excavation analysis and dissemination | E65: £
B66: D3 | C66: Post-excavation assessment meetings* | D66: A meeting(s) to discuss the reports findings and to agree to the next steps of the project. | E66: £

Sheet Proj transport Liq Fuel input
B5: Project transport input
B9: Name of person inputting the data
B10: Project code
B11: Record type
B12: Start date | C12: dd/mm/yyyy
B13: End date
B14: Additional notes
B19: Amendment of overhead record number | C19: This will be automatically populated by the recall function If you do not want to amend an entry please clear the amendment data
B20: Reason for amendment
B24: Company owned and operated vehicles/Greyfleet
B25: Greyfleet is when employees use their personal cars for business purposes [typically reimbursed 45p/mile]
B28: Please input data for the period and project specified at the top of the page
B29: If you have data at the resolution for Option A, this is preferable
B30: For EV charging, only include any expensed charging, as office charging will be captured in the buildings' electricity consumption
B31: If you only have monetary values for expensed charging, inputting the EV's mileage in Option B is preferred. As a last resort input the cost into Option C.
B32: Please do not input formulae. If using formulae ensure you have copy and pasted values before submitting to the database.
B33: Option A
B34: Scope | C34: Fuel | D34: Amount
B43: Definitions for the size of cars and vans are to the right of the input table.
B44: Please do not input formulae. If using formulae ensure you have copy and pasted values before submitting to the database.
B45: Option B
B46: Scope | C46: Type of vehicle | D46: Detail | E46: Distance | F46: Unit
H47: Small car | I47: Petrol/LPG/CNG - up to a 1.4-litre engine Diesel - up to a 1.7-litre engine Others - vehicles models of a similar size (i.e. market segment A or B)
H50: Medium car | I50: Petrol/LPG/CNG - from 1.4-litre to 2.0-litre engine Diesel - from 1.7-litre to 2.0-litre engine Others - vehicles models of a similar size (i.e. generally market segment C)
H53: Large car | I53: Petrol/LPG/CNG - 2.0-litre engine + Diesel - 2.0-litre engine + Others - vehicles models of a similar size (i.e. generally market segment D and above)
H56: Class I (up to 1.305 tonnes) | I56: Small vans/pick-ups e.g. Partner Weight refers to gross vehicle weight (GVW)
H59: Class II (1.305 to 1.74 tonnes) | I59: Medium vans/pick-ups [unable to find an example] Weight refers to gross vehicle weight (GVW)
H62: Class III (1.74 to 3.5 tonnes) | I62: Large vans: for example, Boxer, Crafter, Daily, Jumper, Master, Movano, Sprinter Weight refers to gross vehicle weight (GVW)
B82: Please input details for vehicles where the size and fuel type are unknown
B83: For EV charging, only include any expensed charging, as office charging will be captured in the buildings' electricity consumption
B84: If the kWh or mileage is available, please input that in Option A or B above.
B85: Please do not input formulae. If using formulae ensure you have copy and pasted values before submitting to the database.
B86: Option C
B87: Scope | C87: Type of vehicle | D87: Distance/cost | E87: Unit
B92: Project related business travel
B94: Please input data for the period and project specified at the top of the page
B95: Please do not input formulae. If using formulae ensure you have copy and pasted values before submitting to the database. | D95: Option A | F95: Option B
B96: Mode of transport | C96: Detail | D96: Distance | E96: Unit | F96: Cost (£)

Sheet Soil excavation input
B5: Soil excavation input
B9: Name of person inputting the data
B10: Project code
B11: Record type | D11: Forecast
B12: Start date | C12: dd/mm/yyyy
B13: End date
B14: Additional notes
B19: Amendment of overhead record number | C19: This will be automatically populated by the recall function If you do not want to amend an entry please clear the amendment data
B20: Reason for amendment
B24: Soil emissions
B26: For descriptions of the dropdown options, please see to the right of the input table
B27: Country of activity | D27: Wales | H27: Land use description | L27: Soil type | P27: Area definition
B28: Former land use | D28: Pasture | H28: Seminatural includes seminatural vegetation and grassland that receives no management. | L28: Organic soils have an organic layer of 45 cm or more according to the Forestry Commission. These soils are also known as peats or deep peats. | P28: Area solely devoted to archaeological activity. The area will not be developed as part of the wider project later in time.
B29: Soil Type | D29: Organo-minerals
B30: If the soil is organic (peat) and will be restored at the end of the project, please enter the number of months the peat will be stored | C30: Leave empty if it will not be restored to same conditions | H30: Pasture includes permanent managed grassland. | L30: Organo-mineral soils have an organic layer from 5 to 45 cm deep according to the Forestry Commission | P30: Area for archaeology and other development purposes covers areas where archaeological activity may happen at the early stages of a development project, but that the land on which the archaeology activity takes place will be permanently changed at the end of the project (e.g. from pasture into a road).
H31: Arable includes arable and rotational grassland. | L31: The Forestry Commission describes these soils as having less than 5 cm organic layer. There are organic horizons, usually in the higher layers, but there is no layer which solely consists of decaying plant material.
B32: For descriptions of what should be classed as area solely for archaeological activity vs development purposes, please see the table to the right | H32: Woodland includes broadleaved and conifer woodland.
B33: Please do not input formulae. If using formulae ensure you have copy and pasted values before submitting to the database.
B34: Depth dug to | C34: Area Unit | D34: Area solely for archaeology activity | E34: Area for archaeology and other development purposes | H34: Gardens are land adjoining a house or other built structure.
B35: less than 30cm | C35: m2 | D35: 1000
B36: 30 cm or more
B38: Excavation
B40: Please do not input formulae. If using formulae ensure you have copy and pasted values before submitting to the database.
B41: Excavator type | C41: Unit | D41: Value solely for archaeology activity | E41: Value for archaeology and other development purposes

Sheet Overheads input
B5: Overheads input
B9: Name of person inputting the data
B10: Record type
B11: Start month (inclusive) | C11: Please input in the format MMM-YY Please note that the period will include the start month but exclude the last month, so for the 2024 calendar year you must input Jan-24 to Jan-25
B12: End month (exclusive)
B13: Additional notes
B17: Amendment of overhead record number | C17: This will be automatically populated by the recall function If you do not want to amend an entry please clear the amendment data
B18: Reason for amendment
B22: Buildings
B25: Please input data for the period specified at the top of the page
B26: If you have calculated the footprint for this category please input below - otherwise input the raw data.
B27: Please do not input both.
B28: If the market-based footprint is left blank, we will assume it is the same as the locational-based footprint.
B29: You must input the locational footprint at least.
B30: Please do not input formulae. If using formulae ensure you have copy and pasted values before submitting to the database.
B31: Option A
B32: Category | C32: Measured locational-based footprint (tCO2e) | D32: Measured market-based footprint (tCO2e)
B33: Stationary combustion
B34: Electricity
B35: Upstream energy emissions
B36: Upstream leased assets
B39: If the fuel used at your site is not listed, please contact info@spring-enviro.co.uk
B40: Please do not input formulae. If using formulae ensure you have copy and pasted values before submitting to the database.
B41: Option B
B42: Office name | C42: Electricity (kWh) | D42: Natural gas (kWh) | E42: Fuel oil (litres)
B56: Please do not input formulae. If using formulae ensure you have copy and pasted values before submitting to the database.
B57: Option C
B58: Please select the relevant categories where consumption needs to be estimated for the period specified at the top of the page
B59: Office name | C59: Electricity | D59: Fossil fuels
B72: Commuting/Homeworking
B74: Please input data for the period specified at the top of the page
B75: If you have data at the resolution for Option A, this is preferable
B76: Please do not input formulae. If using formulae ensure you have copy and pasted values before submitting to the database.
B77: Option A
B78: Category | C78: Surveyed/measured footprint (tCO2e)
B79: Commuting and homeworking
B80: Commuting
B81: Homeworking
B85: Please do not input formulae. If using formulae ensure you have copy and pasted values before submitting to the database.
B86: Option B
B87: Category | C87: Estimate? | D87: Average work from home frequency (days per week)
B88: Commuting
B89: Homeworking
B92: Business travel
B95: Please input data for the period specified at the top of the page
B96: If you have calculated the footprint for this category please input below - otherwise input the raw data.
B97: Please do not input both.
B98: Do not include travel which will be captured in the BoQ on a project level
B99: Please do not input formulae. If using formulae ensure you have copy and pasted values before submitting to the database.
B100: Option A
B101: Category | C101: Measured footprint (tCO2e)
B102: Business travel
B103: Business travel - upstream impacts
B108: Please do not input formulae. If using formulae ensure you have copy and pasted values before submitting to the database. | D108: Option B | F108: Option C
B109: Mode of transport | C109: Detail | D109: Distance | E109: Unit | F109: Cost (£)

Sheet Person-days input
B5: Person-days input and database
B9: Name of person inputting the data
B10: Record type
B11: Is this project specific or total company person-days?
B12: Project code
B13: Additional notes
B18: Amendment of overhead record number | D18: This will be automatically populated by the recall function If you do not want to amend an entry please clear the amendment data
B19: Reason for amendment
B23: Please do not input formulae. If using formulae ensure you have copy and pasted values before submitting to the database.
B24: Year | C24: Month | D24: Person-days in month
B38: Person-days database | I38: Misc
B39: Record number | C39: Date | D39: Record type | E39: Resolution | F39: Project code | G39: Person-days | H39: Additional notes | I39: Data entry by (name) | J39: Data marker

Sheet Project input
B5: Project input and database
B9: Name of person inputting the data
B11: Please not that you cannot change the project name or code after the initial submission
B12: Project code
B13: Project name
B14: Project client | E14: If not listed in dropdown, then type into box
B15: Project location (county-level)
B16: Company project manager
B18: Scope of project | F18: 1 | G18: 2 | H18: 3 | I18: 4 | J18: 5 | K18: 6
F19: Feasibility | G19: Planning | H19: Field evaluation | I19: Detailed design stage | J19: Site construction | K19: Use
F21: FALSE | G21: FALSE | H21: FALSE | I21: FALSE | J21: FALSE | K21: FALSE
B22: Scope commentary
B24: Expected project start date | E24: dd/mm/yyyy
B25: Expected project end date
B26: Additional notes
B31: Amendment of project record number | E31: This will be automatically populated by the recall function If you do not want to amend an entry please clear the amendment data
B32: Reason for amendment
B36: Project database | O36: Amendment data
B37: Record number | C37: Project name | D37: Project code | E37: Project client | F37: Project location | G37: Company project manager | H37: Scope of project | I37: Scope commentary | J37: Expected start date | K37: Expected end date | L37: Other comments | M37: Data entry by (name) | N37: Original creation date | O37: Latest amendment date | P37: Amendment by (name) | Q37: Amendment reason | R37: Start month | S37: End month

Sheet Office input
A5: Office input and database
B9: Name of person inputting the data
B11: Please note you cannot change the office name
B12: Office name
B13: Office address
B14: Office area (m2)
B15: Operational control over usage
B16: Energy usage
B17: Do you purchase renewable electricity?
B18: Building type
B19: Number of employees based at office
B20: Additional notes
B25: Amendment of project record number | E25: This will be automatically populated by the recall function If you do not want to amend an entry please clear the amendment data
B26: Reason for amendment
B30: Site database | M30: Misc
B31: Record number | C31: Office name | D31: Office address | E31: Office area (m2) | F31: Operational control over usage | G31: Energy usage | H31: Renewable electricity? | I31: Building type | J31: Number of employees based at office | K31: Additional notes | L31: Data entry by (name) | M31: Original creation date | N31: Latest amendment date | O31: Amendment by (name) | P31: Amendment reason

Sheet Custom carbon factor input
B5: Custom carbon factor input and database
B9: Please ensure that any carbon factors that are input have the same boundaries and completeness as the carbon factors they are replacing.
B10: This will maintain consistency.
B11: Name of person inputting the data
B12: Carbon factor name/short description
B13: Carbon factor description
B14: kgCO2e/unit
B15: Carbon factor unit described above eg. kWh, litres
B16: Carbon factor year
B17: Additional notes
B22: Amendment of project record number | D22: This will be automatically populated by the recall function If you do not want to amend an entry please clear the amendment data
B23: Reason for amendment
B28: Basic data | D28: Carbon factor details | J28: Misc
B29: Carbon factor record | C29: Data entry by (name) | D29: Name | E29: Description | F29: kgCO2e/unit | G29: Unit | H29: Year | I29: Notes | J29: Original creation date | K29: Latest amendment date | L29: Amendment by (name) | M29: Amendment reason

Sheet Overheads db
A5: Overheads database
A7: Basic data | K7: Buildings | P7: Commuting | S7: Business travel | X7: Measured footprint | AF7: Misc
A8: Overhead number | B8: Data marker | C8: Date of entry into database | D8: Data entry by (name) | E8: Record type | F8: Record data start date | G8: Record data end date | H8: Category | I8: User notes | J8: Calculation notes | K8: Office name | L8: Operational control | M8: Electricity (kWh) | N8: Renewable | O8: Natural gas (kWh) | P8: Fuel oil (litres) | Q8: Commuting/ homeworking footprint (tCO2e) | R8: Number of employees | S8: Work from home frequency (days/week) | T8: Mode of transport | U8: Detail | V8: Distance | W8: Unit | X8: Travel cost (£) | Y8: Stationary combustion (tCO2e) | Z8: Electricity locational-based (tCO2e) | AA8: Electricity market-based (tCO2e) | AB8: Upstream emissions locational-based (tCO2e) | AC8: Upstream emissions market-based (tCO2e) | AD8: Upstream leased assets locational-based (tCO2e) | AE8: Upstream leased assets market-based (tCO2e) | AF8: Business travel (tCO2e)

Sheet Standard carbon factor database
B5: Standard carbon factor database
B7: Basic data | C7: Carbon factor details | E7: Biogenic | F7: Misc | K7: Misc
B8: Carbon factor record | C8: Description | D8: kgCO2e/unit | E8: Biogenic kgCO2e/unit | F8: Unit | G8: Year | H8: Source | I8: Country | J8: Notes | K8: Description code
B9: 1 | C9: Other business services | D9: 0.08326 | F9: EUR | G9: 2019 | H9: EXIOBASE | I9: UK | J9: Basic price factor | K9: =SUBSTITUTE(SUBSTITUTE(LOWER(carbonfactor_db[[#This Row],[Description]]&carbonfactor_db[[#This Row],[Unit]]&carbonfactor_db[[#This Row],[Year]])," ",""),"-","") -> otherbusinessserviceseur2019
B10: 2 | C10: Rental of machinery and equipment (without operator) and of personal and household goods (services) | D10: 0.2126989475 | F10: EUR | G10: 2019 | H10: Speedy Hire Financial and ESG report for 2024 | I10: UK | J10: Speedy Hire Downstream Leased Assets factor, adjusted for inflation and currency to be CO2e/EUR in 2019 | K10: =SUBSTITUTE(SUBSTITUTE(LOWER(carbonfactor_db[[#This Row],[Description]]&carbonfactor_db[[#This Row],[Unit]]&carbonfactor_db[[#This Row],[Year]])," ",""),"-","") -> rentalofmachineryandequipment(withoutoperator)andofpersonalandhouseholdgoods(services)eur2019
B11: 3 | C11: Construction work | D11: 0.1551 | F11: EUR | G11: 2019 | H11: EXIOBASE | I11: UK | J11: Basic price factor | K11: =SUBSTITUTE(SUBSTITUTE(LOWER(carbonfactor_db[[#This Row],[Description]]&carbonfactor_db[[#This Row],[Unit]]&carbonfactor_db[[#This Row],[Year]])," ",""),"-","") -> constructionworkeur2019
B12: 4 | C12: Furniture/other manufactured goods (not elsewhere specified) | D12: 0.1445 | F12: EUR | G12: 2019 | H12: EXIOBASE | I12: UK | J12: Basic price factor | K12: =SUBSTITUTE(SUBSTITUTE(LOWER(carbonfactor_db[[#This Row],[Description]]&carbonfactor_db[[#This Row],[Unit]]&carbonfactor_db[[#This Row],[Year]])," ",""),"-","") -> furniture/othermanufacturedgoods(notelsewherespecified)eur2019
B13: 5 | C13: Office and computer machinery | D13: 0.2004 | F13: EUR | G13: 2019 | H13: EXIOBASE | I13: UK | J13: Basic price factor | K13: =SUBSTITUTE(SUBSTITUTE(LOWER(carbonfactor_db[[#This Row],[Description]]&carbonfactor_db[[#This Row],[Unit]]&carbonfactor_db[[#This Row],[Year]])," ",""),"-","") -> officeandcomputermachineryeur2019
B14: 6 | C14: Computer and related services | D14: 0.08162 | F14: EUR | G14: 2019 | H14: EXIOBASE | I14: UK | J14: Basic price factor | K14: =SUBSTITUTE(SUBSTITUTE(LOWER(carbonfactor_db[[#This Row],[Description]]&carbonfactor_db[[#This Row],[Unit]]&carbonfactor_db[[#This Row],[Year]])," ",""),"-","") -> computerandrelatedserviceseur2019
B15: 7 | C15: Printed matter and recorded media | D15: 0.1468 | F15: EUR | G15: 2019 | H15: EXIOBASE | I15: UK | J15: Basic price factor | K15: =SUBSTITUTE(SUBSTITUTE(LOWER(carbonfactor_db[[#This Row],[Description]]&carbonfactor_db[[#This Row],[Unit]]&carbonfactor_db[[#This Row],[Year]])," ",""),"-","") -> printedmatterandrecordedmediaeur2019
B16: 8 | C16: Post and telecommunications | D16: 0.0703 | F16: EUR | G16: 2019 | H16: EXIOBASE | I16: UK | J16: Basic price factor | K16: =SUBSTITUTE(SUBSTITUTE(LOWER(carbonfactor_db[[#This Row],[Description]]&carbonfactor_db[[#This Row],[Unit]]&carbonfactor_db[[#This Row],[Year]])," ",""),"-","") -> postandtelecommunicationseur2019
B17: 9 | C17: Beverages | D17: 0.4756 | F17: EUR | G17: 2019 | H17: EXIOBASE | I17: UK | J17: Basic price factor | K17: =SUBSTITUTE(SUBSTITUTE(LOWER(carbonfactor_db[[#This Row],[Description]]&carbonfactor_db[[#This Row],[Unit]]&carbonfactor_db[[#This Row],[Year]])," ",""),"-","") -> beverageseur2019
B18: 10 | C18: Textiles | D18: 0.2317 | F18: EUR | G18: 2019 | H18: EXIOBASE | I18: UK | J18: Basic price factor | K18: =SUBSTITUTE(SUBSTITUTE(LOWER(carbonfactor_db[[#This Row],[Description]]&carbonfactor_db[[#This Row],[Unit]]&carbonfactor_db[[#This Row],[Year]])," ",""),"-","") -> textileseur2019
B19: 11 | C19: Hotel and restaurant (services) | D19: 0.101 | F19: EUR | G19: 2019 | H19: EXIOBASE | I19: UK | J19: Basic price factor | K19: =SUBSTITUTE(SUBSTITUTE(LOWER(carbonfactor_db[[#This Row],[Description]]&carbonfactor_db[[#This Row],[Unit]]&carbonfactor_db[[#This Row],[Year]])," ",""),"-","") -> hotelandrestaurant(services)eur2019
B20: 12 | C20: Sale/maintenance/repair/parts/accessories of motor vehicles/motorcycles | D20: 0.06833 | F20: EUR | G20: 2019 | H20: EXIOBASE | I20: UK | J20: Basic price factor | K20: =SUBSTITUTE(SUBSTITUTE(LOWER(carbonfactor_db[[#This Row],[Description]]&carbonfactor_db[[#This Row],[Unit]]&carbonfactor_db[[#This Row],[Year]])," ",""),"-","") -> sale/maintenance/repair/parts/accessoriesofmotorvehicles/motorcycleseur2019
B21: 13 | C21: Supporting and auxiliary transport services/travel agency services | D21: 0.07589 | F21: EUR | G21: 2019 | H21: EXIOBASE | I21: UK | J21: Basic price factor | K21: =SUBSTITUTE(SUBSTITUTE(LOWER(carbonfactor_db[[#This Row],[Description]]&carbonfactor_db[[#This Row],[Unit]]&carbonfactor_db[[#This Row],[Year]])," ",""),"-","") -> supportingandauxiliarytransportservices/travelagencyserviceseur2019
B22: 14 | C22: Real estate services | D22: 0.05764 | F22: EUR | G22: 2019 | H22: EXIOBASE | I22: UK | J22: Basic price factor | K22: =SUBSTITUTE(SUBSTITUTE(LOWER(carbonfactor_db[[#This Row],[Description]]&carbonfactor_db[[#This Row],[Unit]]&carbonfactor_db[[#This Row],[Year]])," ",""),"-","") -> realestateserviceseur2019
B23: 15 | C23: Rubber and Plastic products | D23: 0.2828 | F23: EUR | G23: 2019 | H23: EXIOBASE | I23: UK | J23: Basic price factor | K23: =SUBSTITUTE(SUBSTITUTE(LOWER(carbonfactor_db[[#This Row],[Description]]&carbonfactor_db[[#This Row],[Unit]]&carbonfactor_db[[#This Row],[Year]])," ",""),"-","") -> rubberandplasticproductseur2019
B24: 16 | C24: Collected and purified water/distribution of water (services) | D24: 0.1752 | F24: EUR | G24: 2019 | H24: EXIOBASE | I24: UK | J24: Basic price factor | K24: =SUBSTITUTE(SUBSTITUTE(LOWER(carbonfactor_db[[#This Row],[Description]]&carbonfactor_db[[#This Row],[Unit]]&carbonfactor_db[[#This Row],[Year]])," ",""),"-","") -> collectedandpurifiedwater/distributionofwater(services)eur2019
B25: 17 | C25: Ethane | D25: 0.542 | F25: EUR | G25: 2019 | H25: EXIOBASE | I25: UK | J25: Basic price factor | K25: =SUBSTITUTE(SUBSTITUTE(LOWER(carbonfactor_db[[#This Row],[Description]]&carbonfactor_db[[#This Row],[Unit]]&carbonfactor_db[[#This Row],[Year]])," ",""),"-","") -> ethaneeur2019
B26: 18 | C26: LPG (liquefied petroleum gas) | D26: 0.9686 | F26: EUR | G26: 2019 | H26: EXIOBASE | I26: UK | J26: Basic price factor | K26: =SUBSTITUTE(SUBSTITUTE(LOWER(carbonfactor_db[[#This Row],[Description]]&carbonfactor_db[[#This Row],[Unit]]&carbonfactor_db[[#This Row],[Year]])," ",""),"-","") -> lpg(liquefiedpetroleumgas)eur2019
B27: 19 | C27: Transmission of electricity (services) | D27: 0.9514 | F27: EUR | G27: 2019 | H27: EXIOBASE | I27: UK | J27: Basic price factor | K27: =SUBSTITUTE(SUBSTITUTE(LOWER(carbonfactor_db[[#This Row],[Description]]&carbonfactor_db[[#This Row],[Unit]]&carbonfactor_db[[#This Row],[Year]])," ",""),"-","") -> transmissionofelectricity(services)eur2019
B28: 20 | C28: Radio/television and communication equipment and apparatus | D28: 0.1682 | F28: EUR | G28: 2019 | H28: EXIOBASE | I28: UK | J28: Basic price factor | K28: =SUBSTITUTE(SUBSTITUTE(LOWER(carbonfactor_db[[#This Row],[Description]]&carbonfactor_db[[#This Row],[Unit]]&carbonfactor_db[[#This Row],[Year]])," ",""),"-","") -> radio/televisionandcommunicationequipmentandapparatuseur2019
B29: 21 | C29: Other waste for treatment: waste water treatment | D29: 1.576 | F29: EUR | G29: 2019 | H29: EXIOBASE | I29: UK | J29: Basic price factor | K29: =SUBSTITUTE(SUBSTITUTE(LOWER(carbonfactor_db[[#This Row],[Description]]&carbonfactor_db[[#This Row],[Unit]]&carbonfactor_db[[#This Row],[Year]])," ",""),"-","") -> otherwastefortreatment:wastewatertreatmenteur2019
B30: 22 | C30: Fabricated metal products/except machinery and equipment | D30: 0.2422 | F30: EUR | G30: 2019 | H30: EXIOBASE | I30: UK | J30: Basic price factor | K30: =SUBSTITUTE(SUBSTITUTE(LOWER(carbonfactor_db[[#This Row],[Description]]&carbonfactor_db[[#This Row],[Unit]]&carbonfactor_db[[#This Row],[Year]])," ",""),"-","") -> fabricatedmetalproducts/exceptmachineryandequipmenteur2019
B31: 23 | C31: Education Services | D31: 0.05248 | F31: EUR | G31: 2019 | H31: EXIOBASE | I31: UK | J31: Basic price factor | K31: =SUBSTITUTE(SUBSTITUTE(LOWER(carbonfactor_db[[#This Row],[Description]]&carbonfactor_db[[#This Row],[Unit]]&carbonfactor_db[[#This Row],[Year]])," ",""),"-","") -> educationserviceseur2019
B32: 24 | C32: Paper and paper products | D32: 0.3364 | F32: EUR | G32: 2019 | H32: EXIOBASE | I32: UK | J32: Basic price factor | K32: =SUBSTITUTE(SUBSTITUTE(LOWER(carbonfactor_db[[#This Row],[Description]]&carbonfactor_db[[#This Row],[Unit]]&carbonfactor_db[[#This Row],[Year]])," ",""),"-","") -> paperandpaperproductseur2019
B33: 25 | C33: Inert/metal waste for treatment: incineration | D33: 2.081 | F33: EUR | G33: 2019 | H33: EXIOBASE | I33: UK | J33: Basic price factor | K33: =SUBSTITUTE(SUBSTITUTE(LOWER(carbonfactor_db[[#This Row],[Description]]&carbonfactor_db[[#This Row],[Unit]]&carbonfactor_db[[#This Row],[Year]])," ",""),"-","") -> inert/metalwastefortreatment:incinerationeur2019
B34: 26 | C34: Insurance and pension funding services | D34: 0.07093 | F34: EUR | G34: 2019 | H34: EXIOBASE | I34: UK | J34: Basic price factor | K34: =SUBSTITUTE(SUBSTITUTE(LOWER(carbonfactor_db[[#This Row],[Description]]&carbonfactor_db[[#This Row],[Unit]]&carbonfactor_db[[#This Row],[Year]])," ",""),"-","") -> insuranceandpensionfundingserviceseur2019
B35: 27 | C35: Financial intermediation services (except insurance and pension funding services) | D35: 0.06529 | F35: EUR | G35: 2019 | H35: EXIOBASE | I35: UK | J35: Basic price factor | K35: =SUBSTITUTE(SUBSTITUTE(LOWER(carbonfactor_db[[#This Row],[Description]]&carbonfactor_db[[#This Row],[Unit]]&carbonfactor_db[[#This Row],[Year]])," ",""),"-","") -> financialintermediationservices(exceptinsuranceandpensionfundingservices)eur2019
B36: 28 | C36: Research and Development services | D36: 0.2109 | F36: EUR | G36: 2019 | H36: EXIOBASE | I36: UK | J36: Basic price factor | K36: =SUBSTITUTE(SUBSTITUTE(LOWER(carbonfactor_db[[#This Row],[Description]]&carbonfactor_db[[#This Row],[Unit]]&carbonfactor_db[[#This Row],[Year]])," ",""),"-","") -> researchanddevelopmentserviceseur2019
B37: 29 | C37: Other services | D37: 0.06788 | F37: EUR | G37: 2019 | H37: EXIOBASE | I37: UK | J37: Basic price factor | K37: =SUBSTITUTE(SUBSTITUTE(LOWER(carbonfactor_db[[#This Row],[Description]]&carbonfactor_db[[#This Row],[Unit]]&carbonfactor_db[[#This Row],[Year]])," ",""),"-","") -> otherserviceseur2019
B38: 30 | C38: Wood and products of wood | D38: 0.4702 | F38: EUR | G38: 2019 | H38: EXIOBASE | I38: UK | J38: Basic price factor | K38: =SUBSTITUTE(SUBSTITUTE(LOWER(carbonfactor_db[[#This Row],[Description]]&carbonfactor_db[[#This Row],[Unit]]&carbonfactor_db[[#This Row],[Year]])," ",""),"-","") -> woodandproductsofwoodeur2019
B39: 31 | C39: Recreational/cultural and sporting services | D39: 0.07476 | F39: EUR | G39: 2019 | H39: EXIOBASE | I39: UK | J39: Basic price factor | K39: =SUBSTITUTE(SUBSTITUTE(LOWER(carbonfactor_db[[#This Row],[Description]]&carbonfactor_db[[#This Row],[Unit]]&carbonfactor_db[[#This Row],[Year]])," ",""),"-","") -> recreational/culturalandsportingserviceseur2019
B40: 32 | C40: Other land transportation services | D40: 0.0712091899 | F40: EUR | G40: 2019 | H40: EXIOBASE | I40: UK | J40: Basic price factor - used the same trade margins as air transport services | K40: =SUBSTITUTE(SUBSTITUTE(LOWER(carbonfactor_db[[#This Row],[Description]]&carbonfactor_db[[#This Row],[Unit]]&carbonfactor_db[[#This Row],[Year]])," ",""),"-","") -> otherlandtransportationserviceseur2019
B41: 33 | C41: Railway transportation services | D41: 0.2121 | F41: EUR | G41: 2019 | H41: EXIOBASE | I41: UK | J41: Basic price factor | K41: =SUBSTITUTE(SUBSTITUTE(LOWER(carbonfactor_db[[#This Row],[Description]]&carbonfactor_db[[#This Row],[Unit]]&carbonfactor_db[[#This Row],[Year]])," ",""),"-","") -> railwaytransportationserviceseur2019
B42: 34 | C42: Diesel (average biofuel blend) | D42: 0.5427 | F42: EUR | G42: 2019 | H42: EXIOBASE | I42: UK | J42: Basic price factor | K42: =SUBSTITUTE(SUBSTITUTE(LOWER(carbonfactor_db[[#This Row],[Description]]&carbonfactor_db[[#This Row],[Unit]]&carbonfactor_db[[#This Row],[Year]])," ",""),"-","") -> diesel(averagebiofuelblend)eur2019
B43: 35 | C43: Sea and coastal water transportation services | D43: 1.295 | F43: EUR | G43: 2019 | H43: EXIOBASE | I43: UK | J43: Basic price factor | K43: =SUBSTITUTE(SUBSTITUTE(LOWER(carbonfactor_db[[#This Row],[Description]]&carbonfactor_db[[#This Row],[Unit]]&carbonfactor_db[[#This Row],[Year]])," ",""),"-","") -> seaandcoastalwatertransportationserviceseur2019
B44: 36 | C44: Inland water transportation services | D44: 5.061 | F44: EUR | G44: 2019 | H44: EXIOBASE | I44: UK | J44: Basic price factor | K44: =SUBSTITUTE(SUBSTITUTE(LOWER(carbonfactor_db[[#This Row],[Description]]&carbonfactor_db[[#This Row],[Unit]]&carbonfactor_db[[#This Row],[Year]])," ",""),"-","") -> inlandwatertransportationserviceseur2019
B45: 37 | C45: Air transport services | D45: 1.093 | F45: EUR | G45: 2019 | H45: EXIOBASE | I45: UK | J45: Basic price factor | K45: =SUBSTITUTE(SUBSTITUTE(LOWER(carbonfactor_db[[#This Row],[Description]]&carbonfactor_db[[#This Row],[Unit]]&carbonfactor_db[[#This Row],[Year]])," ",""),"-","") -> airtransportserviceseur2019
B46: 38 | C46: White diesel powered excavator | D46: 42.96750933 | E46: 2.735923612 | F46: hour | G46: 2024 | H46: Spring Environmental derived | I46: UK | K46: =SUBSTITUTE(SUBSTITUTE(LOWER(carbonfactor_db[[#This Row],[Description]]&carbonfactor_db[[#This Row],[Unit]]&carbonfactor_db[[#This Row],[Year]])," ",""),"-","") -> whitedieselpoweredexcavatorhour2024
B47: 39 | C47: White diesel powered excavator | D47: 0.4296750933 | E47: 0.02735923612 | F47: m3 | G47: 2024 | H47: Spring Environmental derived | I47: UK | K47: =SUBSTITUTE(SUBSTITUTE(LOWER(carbonfactor_db[[#This Row],[Description]]&carbonfactor_db[[#This Row],[Unit]]&carbonfactor_db[[#This Row],[Year]])," ",""),"-","") -> whitedieselpoweredexcavatorm32024
B48: 40 | C48: Biodiesel excavator | D48: 0.6084010132 | E48: 41.55183986 | F48: hour | G48: 2024 | H48: Spring Environmental derived | I48: UK | K48: =SUBSTITUTE(SUBSTITUTE(LOWER(carbonfactor_db[[#This Row],[Description]]&carbonfactor_db[[#This Row],[Unit]]&carbonfactor_db[[#This Row],[Year]])," ",""),"-","") -> biodieselexcavatorhour2024
B49: 41 | C49: Biodiesel excavator | D49: 0.006084010132 | E49: 0.4155183986 | F49: m3 | G49: 2024 | H49: Spring Environmental derived | I49: UK | K49: =SUBSTITUTE(SUBSTITUTE(LOWER(carbonfactor_db[[#This Row],[Description]]&carbonfactor_db[[#This Row],[Unit]]&carbonfactor_db[[#This Row],[Year]])," ",""),"-","") -> biodieselexcavatorm32024
B50: 42 | C50: Electric Excavator charged from UK mains | D50: 11.97566057 | E50: 4.333560104 | F50: hour | G50: 2024 | H50: Spring Environmental derived | I50: UK | K50: =SUBSTITUTE(SUBSTITUTE(LOWER(carbonfactor_db[[#This Row],[Description]]&carbonfactor_db[[#This Row],[Unit]]&carbonfactor_db[[#This Row],[Year]])," ",""),"-","") -> electricexcavatorchargedfromukmainshour2024
B51: 43 | C51: Electric excavator charged from UK mains | D51: 0.1197566057 | E51: 4.333560104 | F51: m3 | G51: 2024 | H51: Spring Environmental derived | I51: UK | K51: =SUBSTITUTE(SUBSTITUTE(LOWER(carbonfactor_db[[#This Row],[Description]]&carbonfactor_db[[#This Row],[Unit]]&carbonfactor_db[[#This Row],[Year]])," ",""),"-","") -> electricexcavatorchargedfromukmainsm32024
B52: 44 | C52: Electric excavator renewable power | D52: 2.3 | E52: 4.333560104 | F52: hour | G52: 2024 | H52: Spring Environmental derived | I52: UK | K52: =SUBSTITUTE(SUBSTITUTE(LOWER(carbonfactor_db[[#This Row],[Description]]&carbonfactor_db[[#This Row],[Unit]]&carbonfactor_db[[#This Row],[Year]])," ",""),"-","") -> electricexcavatorrenewablepowerhour2024
B53: 45 | C53: Electric excavator renewable power | D53: 0.023 | E53: 4.333560104 | F53: m3 | G53: 2024 | H53: Spring Environmental derived | I53: UK | K53: =SUBSTITUTE(SUBSTITUTE(LOWER(carbonfactor_db[[#This Row],[Description]]&carbonfactor_db[[#This Row],[Unit]]&carbonfactor_db[[#This Row],[Year]])," ",""),"-","") -> electricexcavatorrenewablepowerm32024
B54: 46 | C54: England - 30 cm or less - Seminatural | D54: 440000 | F54: ha | G54: 2024 | H54: Spring Environmental derived | I54: UK | K54: =SUBSTITUTE(SUBSTITUTE(LOWER(carbonfactor_db[[#This Row],[Description]]&carbonfactor_db[[#This Row],[Unit]]&carbonfactor_db[[#This Row],[Year]])," ",""),"-","") -> england30cmorlessseminaturalha2024
B55: 47 | C55: England - 30 cm or more - Seminatural | D55: 1063000 | F55: ha | G55: 2024 | H55: Spring Environmental derived | I55: UK | K55: =SUBSTITUTE(SUBSTITUTE(LOWER(carbonfactor_db[[#This Row],[Description]]&carbonfactor_db[[#This Row],[Unit]]&carbonfactor_db[[#This Row],[Year]])," ",""),"-","") -> england30cmormoreseminaturalha2024
B56: 48 | C56: Scotland - 30 cm or less - Seminatural | D56: 587000 | F56: ha | G56: 2024 | H56: Spring Environmental derived | I56: UK | K56: =SUBSTITUTE(SUBSTITUTE(LOWER(carbonfactor_db[[#This Row],[Description]]&carbonfactor_db[[#This Row],[Unit]]&carbonfactor_db[[#This Row],[Year]])," ",""),"-","") -> scotland30cmorlessseminaturalha2024
B57: 49 | C57: Scotland - 30 cm or more - Seminatural | D57: 1210000 | F57: ha | G57: 2024 | H57: Spring Environmental derived | I57: UK | K57: =SUBSTITUTE(SUBSTITUTE(LOWER(carbonfactor_db[[#This Row],[Description]]&carbonfactor_db[[#This Row],[Unit]]&carbonfactor_db[[#This Row],[Year]])," ",""),"-","") -> scotland30cmormoreseminaturalha2024
B58: 50 | C58: Wales - 30 cm or less - Seminatural | D58: 403000 | F58: ha | G58: 2024 | H58: Spring Environmental derived | I58: UK | K58: =SUBSTITUTE(SUBSTITUTE(LOWER(carbonfactor_db[[#This Row],[Description]]&carbonfactor_db[[#This Row],[Unit]]&carbonfactor_db[[#This Row],[Year]])," ",""),"-","") -> wales30cmorlessseminaturalha2024
B59: 51 | C59: Wales - 30 cm or more - Seminatural | D59: 843000 | F59: ha | G59: 2024 | H59: Spring Environmental derived | I59: UK | K59: =SUBSTITUTE(SUBSTITUTE(LOWER(carbonfactor_db[[#This Row],[Description]]&carbonfactor_db[[#This Row],[Unit]]&carbonfactor_db[[#This Row],[Year]])," ",""),"-","") -> wales30cmormoreseminaturalha2024
B60: 52 | C60: Northern Ireland - 30 cm or less - Seminatural | D60: 697000 | F60: ha | G60: 2024 | H60: Spring Environmental derived | I60: UK | K60: =SUBSTITUTE(SUBSTITUTE(LOWER(carbonfactor_db[[#This Row],[Description]]&carbonfactor_db[[#This Row],[Unit]]&carbonfactor_db[[#This Row],[Year]])," ",""),"-","") -> northernireland30cmorlessseminaturalha2024
B61: 53 | C61: Northern Ireland - 30 cm or more - Seminatural | D61: 1430000 | F61: ha | G61: 2024 | H61: Spring Environmental derived | I61: UK | K61: =SUBSTITUTE(SUBSTITUTE(LOWER(carbonfactor_db[[#This Row],[Description]]&carbonfactor_db[[#This Row],[Unit]]&carbonfactor_db[[#This Row],[Year]])," ",""),"-","") -> northernireland30cmormoreseminaturalha2024
B62: 54 | C62: England - 30 cm or less - Pasture | D62: 293000 | F62: ha | G62: 2024 | H62: Spring Environmental derived | I62: UK | K62: =SUBSTITUTE(SUBSTITUTE(LOWER(carbonfactor_db[[#This Row],[Description]]&carbonfactor_db[[#This Row],[Unit]]&carbonfactor_db[[#This Row],[Year]])," ",""),"-","") -> england30cmorlesspastureha2024
B63: 55 | C63: England - 30 cm or more - Pasture | D63: 477000 | F63: ha | G63: 2024 | H63: Spring Environmental derived | I63: UK | K63: =SUBSTITUTE(SUBSTITUTE(LOWER(carbonfactor_db[[#This Row],[Description]]&carbonfactor_db[[#This Row],[Unit]]&carbonfactor_db[[#This Row],[Year]])," ",""),"-","") -> england30cmormorepastureha2024
B64: 56 | C64: Scotland - 30 cm or less - Pasture | D64: 587000 | F64: ha | G64: 2024 | H64: Spring Environmental derived | I64: UK | K64: =SUBSTITUTE(SUBSTITUTE(LOWER(carbonfactor_db[[#This Row],[Description]]&carbonfactor_db[[#This Row],[Unit]]&carbonfactor_db[[#This Row],[Year]])," ",""),"-","") -> scotland30cmorlesspastureha2024
B65: 57 | C65: Scotland - 30 cm or more - Pasture | D65: 843000 | F65: ha | G65: 2024 | H65: Spring Environmental derived | I65: UK | K65: =SUBSTITUTE(SUBSTITUTE(LOWER(carbonfactor_db[[#This Row],[Description]]&carbonfactor_db[[#This Row],[Unit]]&carbonfactor_db[[#This Row],[Year]])," ",""),"-","") -> scotland30cmormorepastureha2024
B66: 58 | C66: Wales - 30 cm or less - Pasture | D66: 330000 | F66: ha | G66: 2024 | H66: Spring Environmental derived | I66: UK | K66: =SUBSTITUTE(SUBSTITUTE(LOWER(carbonfactor_db[[#This Row],[Description]]&carbonfactor_db[[#This Row],[Unit]]&carbonfactor_db[[#This Row],[Year]])," ",""),"-","") -> wales30cmorlesspastureha2024
B67: 59 | C67: Wales - 30 cm or more - Pasture | D67: 513000 | F67: ha | G67: 2024 | H67: Spring Environmental derived | I67: UK | K67: =SUBSTITUTE(SUBSTITUTE(LOWER(carbonfactor_db[[#This Row],[Description]]&carbonfactor_db[[#This Row],[Unit]]&carbonfactor_db[[#This Row],[Year]])," ",""),"-","") -> wales30cmormorepastureha2024
B68: 60 | C68: Northern Ireland - 30 cm or less - Pasture | D68: 477000 | F68: ha | G68: 2024 | H68: Spring Environmental derived | I68: UK | K68: =SUBSTITUTE(SUBSTITUTE(LOWER(carbonfactor_db[[#This Row],[Description]]&carbonfactor_db[[#This Row],[Unit]]&carbonfactor_db[[#This Row],[Year]])," ",""),"-","") -> northernireland30cmorlesspastureha2024
B69: 61 | C69: Northern Ireland - 30 cm or more - Pasture | D69: 770000 | F69: ha | G69: 2024 | H69: Spring Environmental derived | I69: UK | K69: =SUBSTITUTE(SUBSTITUTE(LOWER(carbonfactor_db[[#This Row],[Description]]&carbonfactor_db[[#This Row],[Unit]]&carbonfactor_db[[#This Row],[Year]])," ",""),"-","") -> northernireland30cmormorepastureha2024
B70: 62 | C70: England - 30 cm or less - Arable | D70: 257000 | F70: ha | G70: 2024 | H70: Spring Environmental derived | I70: UK | K70: =SUBSTITUTE(SUBSTITUTE(LOWER(carbonfactor_db[[#This Row],[Description]]&carbonfactor_db[[#This Row],[Unit]]&carbonfactor_db[[#This Row],[Year]])," ",""),"-","") -> england30cmorlessarableha2024
B71: 63 | C71: England - 30 cm or more - Arable | D71: 440000 | F71: ha | G71: 2024 | H71: Spring Environmental derived | I71: UK | K71: =SUBSTITUTE(SUBSTITUTE(LOWER(carbonfactor_db[[#This Row],[Description]]&carbonfactor_db[[#This Row],[Unit]]&carbonfactor_db[[#This Row],[Year]])," ",""),"-","") -> england30cmormorearableha2024
B72: 64 | C72: Scotland - 30 cm or less - Arable | D72: 440000 | F72: ha | G72: 2024 | H72: Spring Environmental derived | I72: UK | K72: =SUBSTITUTE(SUBSTITUTE(LOWER(carbonfactor_db[[#This Row],[Description]]&carbonfactor_db[[#This Row],[Unit]]&carbonfactor_db[[#This Row],[Year]])," ",""),"-","") -> scotland30cmorlessarableha2024
B73: 65 | C73: Scotland - 30 cm or more - Arable | D73: 550000 | F73: ha | G73: 2024 | H73: Spring Environmental derived | I73: UK | K73: =SUBSTITUTE(SUBSTITUTE(LOWER(carbonfactor_db[[#This Row],[Description]]&carbonfactor_db[[#This Row],[Unit]]&carbonfactor_db[[#This Row],[Year]])," ",""),"-","") -> scotland30cmormorearableha2024
B74: 66 | C74: Wales - 30 cm or less - Arable | D74: 257000 | F74: ha | G74: 2024 | H74: Spring Environmental derived | I74: UK | K74: =SUBSTITUTE(SUBSTITUTE(LOWER(carbonfactor_db[[#This Row],[Description]]&carbonfactor_db[[#This Row],[Unit]]&carbonfactor_db[[#This Row],[Year]])," ",""),"-","") -> wales30cmorlessarableha2024
B75: 67 | C75: Wales - 30 cm or more - Arable | D75: 403000 | F75: ha | G75: 2024 | H75: Spring Environmental derived | I75: UK | K75: =SUBSTITUTE(SUBSTITUTE(LOWER(carbonfactor_db[[#This Row],[Description]]&carbonfactor_db[[#This Row],[Unit]]&carbonfactor_db[[#This Row],[Year]])," ",""),"-","") -> wales30cmormorearableha2024
B76: 68 | C76: Northern Ireland - 30 cm or less - Arable | D76: 367000 | F76: ha | G76: 2024 | H76: Spring Environmental derived | I76: UK | K76: =SUBSTITUTE(SUBSTITUTE(LOWER(carbonfactor_db[[#This Row],[Description]]&carbonfactor_db[[#This Row],[Unit]]&carbonfactor_db[[#This Row],[Year]])," ",""),"-","") -> northernireland30cmorlessarableha2024
B77: 69 | C77: Northern Ireland - 30 cm or more - Arable | D77: 550000 | F77: ha | G77: 2024 | H77: Spring Environmental derived | I77: UK | K77: =SUBSTITUTE(SUBSTITUTE(LOWER(carbonfactor_db[[#This Row],[Description]]&carbonfactor_db[[#This Row],[Unit]]&carbonfactor_db[[#This Row],[Year]])," ",""),"-","") -> northernireland30cmormorearableha2024
B78: 70 | C78: England - 30 cm or less - Woodland | D78: 367000 | F78: ha | G78: 2024 | H78: Spring Environmental derived | I78: UK | K78: =SUBSTITUTE(SUBSTITUTE(LOWER(carbonfactor_db[[#This Row],[Description]]&carbonfactor_db[[#This Row],[Unit]]&carbonfactor_db[[#This Row],[Year]])," ",""),"-","") -> england30cmorlesswoodlandha2024
B79: 71 | C79: England - 30 cm or more - Woodland | D79: 623000 | F79: ha | G79: 2024 | H79: Spring Environmental derived | I79: UK | K79: =SUBSTITUTE(SUBSTITUTE(LOWER(carbonfactor_db[[#This Row],[Description]]&carbonfactor_db[[#This Row],[Unit]]&carbonfactor_db[[#This Row],[Year]])," ",""),"-","") -> england30cmormorewoodlandha2024
B80: 72 | C80: Scotland - 30 cm or less - Woodland | D80: 623000 | F80: ha | G80: 2024 | H80: Spring Environmental derived | I80: UK | K80: =SUBSTITUTE(SUBSTITUTE(LOWER(carbonfactor_db[[#This Row],[Description]]&carbonfactor_db[[#This Row],[Unit]]&carbonfactor_db[[#This Row],[Year]])," ",""),"-","") -> scotland30cmorlesswoodlandha2024
B81: 73 | C81: Scotland - 30 cm or more - Woodland | D81: 1210000 | F81: ha | G81: 2024 | H81: Spring Environmental derived | I81: UK | K81: =SUBSTITUTE(SUBSTITUTE(LOWER(carbonfactor_db[[#This Row],[Description]]&carbonfactor_db[[#This Row],[Unit]]&carbonfactor_db[[#This Row],[Year]])," ",""),"-","") -> scotland30cmormorewoodlandha2024
B82: 74 | C82: Wales - 30 cm or less - Woodland | D82: 440000 | F82: ha | G82: 2024 | H82: Spring Environmental derived | I82: UK | K82: =SUBSTITUTE(SUBSTITUTE(LOWER(carbonfactor_db[[#This Row],[Description]]&carbonfactor_db[[#This Row],[Unit]]&carbonfactor_db[[#This Row],[Year]])," ",""),"-","") -> wales30cmorlesswoodlandha2024
B83: 75 | C83: Wales - 30 cm or more - Woodland | D83: 733000 | F83: ha | G83: 2024 | H83: Spring Environmental derived | I83: UK | K83: =SUBSTITUTE(SUBSTITUTE(LOWER(carbonfactor_db[[#This Row],[Description]]&carbonfactor_db[[#This Row],[Unit]]&carbonfactor_db[[#This Row],[Year]])," ",""),"-","") -> wales30cmormorewoodlandha2024
B84: 76 | C84: Northern Ireland - 30 cm or less - Woodland | D84: 660000 | F84: ha | G84: 2024 | H84: Spring Environmental derived | I84: UK | K84: =SUBSTITUTE(SUBSTITUTE(LOWER(carbonfactor_db[[#This Row],[Description]]&carbonfactor_db[[#This Row],[Unit]]&carbonfactor_db[[#This Row],[Year]])," ",""),"-","") -> northernireland30cmorlesswoodlandha2024
B85: 77 | C85: Northern Ireland - 30 cm or more - Woodland | D85: 1357000 | F85: ha | G85: 2024 | H85: Spring Environmental derived | I85: UK | K85: =SUBSTITUTE(SUBSTITUTE(LOWER(carbonfactor_db[[#This Row],[Description]]&carbonfactor_db[[#This Row],[Unit]]&carbonfactor_db[[#This Row],[Year]])," ",""),"-","") -> northernireland30cmormorewoodlandha2024
B86: 78 | C86: England - 30 cm or less - Gardens | D86: 146666.6667 | F86: ha | G86: 2024 | H86: Spring Environmental derived | I86: UK | K86: =SUBSTITUTE(SUBSTITUTE(LOWER(carbonfactor_db[[#This Row],[Description]]&carbonfactor_db[[#This Row],[Unit]]&carbonfactor_db[[#This Row],[Year]])," ",""),"-","") -> england30cmorlessgardensha2024
B87: 79 | C87: England - 30 cm or more - Gardens | D87: 220000 | F87: ha | G87: 2024 | H87: Spring Environmental derived | I87: UK | K87: =SUBSTITUTE(SUBSTITUTE(LOWER(carbonfactor_db[[#This Row],[Description]]&carbonfactor_db[[#This Row],[Unit]]&carbonfactor_db[[#This Row],[Year]])," ",""),"-","") -> england30cmormoregardensha2024
B88: 80 | C88: Scotland - 30 cm or less - Gardens | D88: 256666.6667 | F88: ha | G88: 2024 | H88: Spring Environmental derived | I88: UK | K88: =SUBSTITUTE(SUBSTITUTE(LOWER(carbonfactor_db[[#This Row],[Description]]&carbonfactor_db[[#This Row],[Unit]]&carbonfactor_db[[#This Row],[Year]])," ",""),"-","") -> scotland30cmorlessgardensha2024
B89: 81 | C89: Scotland - 30 cm or more - Gardens | D89: 330000 | F89: ha | G89: 2024 | H89: Spring Environmental derived | I89: UK | K89: =SUBSTITUTE(SUBSTITUTE(LOWER(carbonfactor_db[[#This Row],[Description]]&carbonfactor_db[[#This Row],[Unit]]&carbonfactor_db[[#This Row],[Year]])," ",""),"-","") -> scotland30cmormoregardensha2024
B90: 82 | C90: Wales - 30 cm or less - Gardens | D90: 146666.6667 | F90: ha | G90: 2024 | H90: Spring Environmental derived | I90: UK | K90: =SUBSTITUTE(SUBSTITUTE(LOWER(carbonfactor_db[[#This Row],[Description]]&carbonfactor_db[[#This Row],[Unit]]&carbonfactor_db[[#This Row],[Year]])," ",""),"-","") -> wales30cmorlessgardensha2024
B91: 83 | C91: Wales - 30 cm or more - Gardens | D91: 220000 | F91: ha | G91: 2024 | H91: Spring Environmental derived | I91: UK | K91: =SUBSTITUTE(SUBSTITUTE(LOWER(carbonfactor_db[[#This Row],[Description]]&carbonfactor_db[[#This Row],[Unit]]&carbonfactor_db[[#This Row],[Year]])," ",""),"-","") -> wales30cmormoregardensha2024
B92: 84 | C92: Northern Ireland - 30 cm or less - Gardens | D92: 110000 | F92: ha | G92: 2024 | H92: Spring Environmental derived | I92: UK | K92: =SUBSTITUTE(SUBSTITUTE(LOWER(carbonfactor_db[[#This Row],[Description]]&carbonfactor_db[[#This Row],[Unit]]&carbonfactor_db[[#This Row],[Year]])," ",""),"-","") -> northernireland30cmorlessgardensha2024
B93: 85 | C93: Northern Ireland - 30 cm or more - Gardens | D93: 183333.3333 | F93: ha | G93: 2024 | H93: Spring Environmental derived | I93: UK | K93: =SUBSTITUTE(SUBSTITUTE(LOWER(carbonfactor_db[[#This Row],[Description]]&carbonfactor_db[[#This Row],[Unit]]&carbonfactor_db[[#This Row],[Year]])," ",""),"-","") -> northernireland30cmormoregardensha2024
B94: 86 | C94: Peat monthly loss | D94: 2.83965 | F94: month | G94: 2024 | H94: Calculating carbon budgets of wind farms on Scottish peatlands | I94: UK | K94: =SUBSTITUTE(SUBSTITUTE(LOWER(carbonfactor_db[[#This Row],[Description]]&carbonfactor_db[[#This Row],[Unit]]&carbonfactor_db[[#This Row],[Year]])," ",""),"-","") -> peatmonthlylossmonth2024
B95: 87 | C95: Commuting | D95: 249.8096586 | F95: employee/yr | G95: 2024 | H95: UK commuting statistics | I95: UK | K95: =SUBSTITUTE(SUBSTITUTE(LOWER(carbonfactor_db[[#This Row],[Description]]&carbonfactor_db[[#This Row],[Unit]]&carbonfactor_db[[#This Row],[Year]])," ",""),"-","") -> commutingemployee/yr2024
B96: 88 | C96: Steel hot rolled coil | D96: 2.26 | F96: kg | G96: 2024 | H96: ICE | I96: UK | K96: =SUBSTITUTE(SUBSTITUTE(LOWER(carbonfactor_db[[#This Row],[Description]]&carbonfactor_db[[#This Row],[Unit]]&carbonfactor_db[[#This Row],[Year]])," ",""),"-","") -> steelhotrolledcoilkg2024
B97: 89 | C97: Road surface | D97: 14.2 | F97: m2 | G97: 2024 | H97: ICE | I97: UK | J97: Asphalt, 3% (bitumen) binder content (by mass) | K97: =SUBSTITUTE(SUBSTITUTE(LOWER(carbonfactor_db[[#This Row],[Description]]&carbonfactor_db[[#This Row],[Unit]]&carbonfactor_db[[#This Row],[Year]])," ",""),"-","") -> roadsurfacem22024
B98: 90 | C98: Polypropylene (injection moulding) | D98: 4.49 | F98: kg | G98: 2024 | H98: ICE | I98: UK | K98: =SUBSTITUTE(SUBSTITUTE(LOWER(carbonfactor_db[[#This Row],[Description]]&carbonfactor_db[[#This Row],[Unit]]&carbonfactor_db[[#This Row],[Year]])," ",""),"-","") -> polypropylene(injectionmoulding)kg2024
B99: 91 | C99: ABS | D99: 3.76 | F99: kg | G99: 2024 | H99: ICE | I99: UK | K99: =SUBSTITUTE(SUBSTITUTE(LOWER(carbonfactor_db[[#This Row],[Description]]&carbonfactor_db[[#This Row],[Unit]]&carbonfactor_db[[#This Row],[Year]])," ",""),"-","") -> abskg2024
B100: 92 | C100: Steel welded pipe | D100: 2.51 | F100: kg | G100: 2024 | H100: ICE | I100: UK | K100: =SUBSTITUTE(SUBSTITUTE(LOWER(carbonfactor_db[[#This Row],[Description]]&carbonfactor_db[[#This Row],[Unit]]&carbonfactor_db[[#This Row],[Year]])," ",""),"-","") -> steelweldedpipekg2024
B101: 93 | C101: Aluminium sheet | D101: 6.58 | F101: kg | G101: 2024 | H101: ICE | I101: UK | J101: European mix, inc imports | K101: =SUBSTITUTE(SUBSTITUTE(LOWER(carbonfactor_db[[#This Row],[Description]]&carbonfactor_db[[#This Row],[Unit]]&carbonfactor_db[[#This Row],[Year]])," ",""),"-","") -> aluminiumsheetkg2024
B102: 94 | C102: Aluminium extruded profile | D102: 6.83 | F102: kg | G102: 2024 | H102: ICE | I102: UK | J102: European mix, inc imports | K102: =SUBSTITUTE(SUBSTITUTE(LOWER(carbonfactor_db[[#This Row],[Description]]&carbonfactor_db[[#This Row],[Unit]]&carbonfactor_db[[#This Row],[Year]])," ",""),"-","") -> aluminiumextrudedprofilekg2024
B103: 95 | C103: Concrete - average UK mix | D103: 0.1033613445 | F103: kg | G103: 2024 | H103: ICE | I103: UK | J103: General | K103: =SUBSTITUTE(SUBSTITUTE(LOWER(carbonfactor_db[[#This Row],[Description]]&carbonfactor_db[[#This Row],[Unit]]&carbonfactor_db[[#This Row],[Year]])," ",""),"-","") -> concreteaverageukmixkg2024
B104: 96 | C104: Concrete - average UK mix | D104: 246 | F104: m3 | G104: 2024 | H104: ICE | I104: UK | J104: General | K104: =SUBSTITUTE(SUBSTITUTE(LOWER(carbonfactor_db[[#This Row],[Description]]&carbonfactor_db[[#This Row],[Unit]]&carbonfactor_db[[#This Row],[Year]])," ",""),"-","") -> concreteaverageukmixm32024
B105: 97 | C105: Electricity | D105: 0.20705 | F105: kWh | G105: 2024 | H105: DESNZ | I105: UK | K105: =SUBSTITUTE(SUBSTITUTE(LOWER(carbonfactor_db[[#This Row],[Description]]&carbonfactor_db[[#This Row],[Unit]]&carbonfactor_db[[#This Row],[Year]])," ",""),"-","") -> electricitykwh2024
B106: 98 | C106: Electricity - upstream | D106: 0.06817 | F106: kWh | G106: 2024 | H106: DESNZ | I106: UK | J106: T&D and WTT for generation and WTT for T&D | K106: =SUBSTITUTE(SUBSTITUTE(LOWER(carbonfactor_db[[#This Row],[Description]]&carbonfactor_db[[#This Row],[Unit]]&carbonfactor_db[[#This Row],[Year]])," ",""),"-","") -> electricityupstreamkwh2024
B107: 99 | C107: Electricity - biogenic | D107: 0.11507 | F107: kWh | G107: 2024 | H107: DESNZ | I107: UK | K107: =SUBSTITUTE(SUBSTITUTE(LOWER(carbonfactor_db[[#This Row],[Description]]&carbonfactor_db[[#This Row],[Unit]]&carbonfactor_db[[#This Row],[Year]])," ",""),"-","") -> electricitybiogenickwh2024
B108: 100 | C108: Natural gas | D108: 0.1829 | F108: kWh | G108: 2024 | H108: DESNZ | I108: UK | K108: =SUBSTITUTE(SUBSTITUTE(LOWER(carbonfactor_db[[#This Row],[Description]]&carbonfactor_db[[#This Row],[Unit]]&carbonfactor_db[[#This Row],[Year]])," ",""),"-","") -> naturalgaskwh2024
B109: 101 | C109: Natural gas - upstream | D109: 0.03021 | F109: kWh | G109: 2024 | H109: DESNZ | I109: UK | K109: =SUBSTITUTE(SUBSTITUTE(LOWER(carbonfactor_db[[#This Row],[Description]]&carbonfactor_db[[#This Row],[Unit]]&carbonfactor_db[[#This Row],[Year]])," ",""),"-","") -> naturalgasupstreamkwh2024
B110: 102 | C110: Fuel oil | D110: 3.17493 | F110: litres | G110: 2024 | H110: DESNZ | I110: UK | K110: =SUBSTITUTE(SUBSTITUTE(LOWER(carbonfactor_db[[#This Row],[Description]]&carbonfactor_db[[#This Row],[Unit]]&carbonfactor_db[[#This Row],[Year]])," ",""),"-","") -> fueloillitres2024
B111: 103 | C111: Fuel oil - upstream | D111: 0.69539 | F111: litres | G111: 2024 | H111: DESNZ | I111: UK | K111: =SUBSTITUTE(SUBSTITUTE(LOWER(carbonfactor_db[[#This Row],[Description]]&carbonfactor_db[[#This Row],[Unit]]&carbonfactor_db[[#This Row],[Year]])," ",""),"-","") -> fueloilupstreamlitres2024
B112: 104 | C112: Diesel (average biofuel blend) | D112: 2.51279 | F112: litres | G112: 2024 | H112: DESNZ | I112: UK | K112: =SUBSTITUTE(SUBSTITUTE(LOWER(carbonfactor_db[[#This Row],[Description]]&carbonfactor_db[[#This Row],[Unit]]&carbonfactor_db[[#This Row],[Year]])," ",""),"-","") -> diesel(averagebiofuelblend)litres2024
B113: 105 | C113: Diesel (average biofuel blend) - upstream | D113: 0.61101 | F113: litres | G113: 2024 | H113: DESNZ | I113: UK | K113: =SUBSTITUTE(SUBSTITUTE(LOWER(carbonfactor_db[[#This Row],[Description]]&carbonfactor_db[[#This Row],[Unit]]&carbonfactor_db[[#This Row],[Year]])," ",""),"-","") -> diesel(averagebiofuelblend)upstreamlitres2024
B114: 106 | C114: Diesel (average biofuel blend) - biogenic | D114: 0.16 | F114: litres | G114: 2024 | H114: DESNZ | I114: UK | K114: =SUBSTITUTE(SUBSTITUTE(LOWER(carbonfactor_db[[#This Row],[Description]]&carbonfactor_db[[#This Row],[Unit]]&carbonfactor_db[[#This Row],[Year]])," ",""),"-","") -> diesel(averagebiofuelblend)biogeniclitres2024
B115: 107 | C115: Petrol (average biofuel blend) | D115: 2.0844 | F115: litres | G115: 2024 | H115: DESNZ | I115: UK | K115: =SUBSTITUTE(SUBSTITUTE(LOWER(carbonfactor_db[[#This Row],[Description]]&carbonfactor_db[[#This Row],[Unit]]&carbonfactor_db[[#This Row],[Year]])," ",""),"-","") -> petrol(averagebiofuelblend)litres2024
B116: 108 | C116: Petrol (average biofuel blend) - upstream | D116: 0.58094 | F116: litres | G116: 2024 | H116: DESNZ | I116: UK | K116: =SUBSTITUTE(SUBSTITUTE(LOWER(carbonfactor_db[[#This Row],[Description]]&carbonfactor_db[[#This Row],[Unit]]&carbonfactor_db[[#This Row],[Year]])," ",""),"-","") -> petrol(averagebiofuelblend)upstreamlitres2024
B117: 109 | C117: Petrol (average biofuel blend) - biogenic | D117: 0.13 | F117: litres | G117: 2024 | H117: DESNZ | I117: UK | K117: =SUBSTITUTE(SUBSTITUTE(LOWER(carbonfactor_db[[#This Row],[Description]]&carbonfactor_db[[#This Row],[Unit]]&carbonfactor_db[[#This Row],[Year]])," ",""),"-","") -> petrol(averagebiofuelblend)biogeniclitres2024
B118: 110 | C118: Biodiesel HVO | D118: 0.03558 | F118: litres | G118: 2024 | H118: DESNZ | I118: UK | K118: =SUBSTITUTE(SUBSTITUTE(LOWER(carbonfactor_db[[#This Row],[Description]]&carbonfactor_db[[#This Row],[Unit]]&carbonfactor_db[[#This Row],[Year]])," ",""),"-","") -> biodieselhvolitres2024
B119: 111 | C119: Biodiesel HVO - upstream | D119: 0.559 | F119: litres | G119: 2024 | H119: DESNZ | I119: UK | K119: =SUBSTITUTE(SUBSTITUTE(LOWER(carbonfactor_db[[#This Row],[Description]]&carbonfactor_db[[#This Row],[Unit]]&carbonfactor_db[[#This Row],[Year]])," ",""),"-","") -> biodieselhvoupstreamlitres2024
B120: 112 | C120: Biodiesel HVO - biogenic | D120: 2.43 | F120: litres | G120: 2024 | H120: DESNZ | I120: UK | K120: =SUBSTITUTE(SUBSTITUTE(LOWER(carbonfactor_db[[#This Row],[Description]]&carbonfactor_db[[#This Row],[Unit]]&carbonfactor_db[[#This Row],[Year]])," ",""),"-","") -> biodieselhvobiogeniclitres2024
B121: 113 | C121: Paper | D121: =1339.31834/1000 -> 1.33931834 | F121: kg | G121: 2024 | H121: DESNZ | I121: UK | K121: =SUBSTITUTE(SUBSTITUTE(LOWER(carbonfactor_db[[#This Row],[Description]]&carbonfactor_db[[#This Row],[Unit]]&carbonfactor_db[[#This Row],[Year]])," ",""),"-","") -> paperkg2024
B122: 114 | C122: Water supply | D122: 0.15311 | F122: m3 | G122: 2024 | H122: DESNZ | I122: UK | K122: =SUBSTITUTE(SUBSTITUTE(LOWER(carbonfactor_db[[#This Row],[Description]]&carbonfactor_db[[#This Row],[Unit]]&carbonfactor_db[[#This Row],[Year]])," ",""),"-","") -> watersupplym32024
B123: 115 | C123: Homeworking (office equipment + heating) | D123: 0.33378 | F123: FTE working hour | G123: 2024 | H123: DESNZ | I123: UK | K123: =SUBSTITUTE(SUBSTITUTE(LOWER(carbonfactor_db[[#This Row],[Description]]&carbonfactor_db[[#This Row],[Unit]]&carbonfactor_db[[#This Row],[Year]])," ",""),"-","") -> homeworking(officeequipment+heating)fteworkinghour2024
B124: 116 | C124: Car average unknown fuel | D124: 0.16691 | F124: km | G124: 2024 | H124: DESNZ | I124: UK | K124: =SUBSTITUTE(SUBSTITUTE(LOWER(carbonfactor_db[[#This Row],[Description]]&carbonfactor_db[[#This Row],[Unit]]&carbonfactor_db[[#This Row],[Year]])," ",""),"-","") -> caraverageunknownfuelkm2024
B125: 117 | C125: Car small diesel | D125: 0.13994 | F125: km | G125: 2024 | H125: DESNZ | I125: UK | K125: =SUBSTITUTE(SUBSTITUTE(LOWER(carbonfactor_db[[#This Row],[Description]]&carbonfactor_db[[#This Row],[Unit]]&carbonfactor_db[[#This Row],[Year]])," ",""),"-","") -> carsmalldieselkm2024
B126: 118 | C126: Car medium diesel | D126: 0.16807 | F126: km | G126: 2024 | H126: DESNZ | I126: UK | K126: =SUBSTITUTE(SUBSTITUTE(LOWER(carbonfactor_db[[#This Row],[Description]]&carbonfactor_db[[#This Row],[Unit]]&carbonfactor_db[[#This Row],[Year]])," ",""),"-","") -> carmediumdieselkm2024
B127: 119 | C127: Car large diesel | D127: 0.20729 | F127: km | G127: 2024 | H127: DESNZ | I127: UK | K127: =SUBSTITUTE(SUBSTITUTE(LOWER(carbonfactor_db[[#This Row],[Description]]&carbonfactor_db[[#This Row],[Unit]]&carbonfactor_db[[#This Row],[Year]])," ",""),"-","") -> carlargedieselkm2024
B128: 120 | C128: Car average diesel | D128: 0.16984 | F128: km | G128: 2024 | H128: DESNZ | I128: UK | K128: =SUBSTITUTE(SUBSTITUTE(LOWER(carbonfactor_db[[#This Row],[Description]]&carbonfactor_db[[#This Row],[Unit]]&carbonfactor_db[[#This Row],[Year]])," ",""),"-","") -> caraveragedieselkm2024
B129: 121 | C129: Car small petrol | D129: 0.1437 | F129: km | G129: 2024 | H129: DESNZ | I129: UK | K129: =SUBSTITUTE(SUBSTITUTE(LOWER(carbonfactor_db[[#This Row],[Description]]&carbonfactor_db[[#This Row],[Unit]]&carbonfactor_db[[#This Row],[Year]])," ",""),"-","") -> carsmallpetrolkm2024
B130: 122 | C130: Car medium petrol | D130: 0.17726 | F130: km | G130: 2024 | H130: DESNZ | I130: UK | K130: =SUBSTITUTE(SUBSTITUTE(LOWER(carbonfactor_db[[#This Row],[Description]]&carbonfactor_db[[#This Row],[Unit]]&carbonfactor_db[[#This Row],[Year]])," ",""),"-","") -> carmediumpetrolkm2024
B131: 123 | C131: Car large petrol | D131: 0.26885 | F131: km | G131: 2024 | H131: DESNZ | I131: UK | K131: =SUBSTITUTE(SUBSTITUTE(LOWER(carbonfactor_db[[#This Row],[Description]]&carbonfactor_db[[#This Row],[Unit]]&carbonfactor_db[[#This Row],[Year]])," ",""),"-","") -> carlargepetrolkm2024
B132: 124 | C132: Car average petrol | D132: 0.1645 | F132: km | G132: 2024 | H132: DESNZ | I132: UK | K132: =SUBSTITUTE(SUBSTITUTE(LOWER(carbonfactor_db[[#This Row],[Description]]&carbonfactor_db[[#This Row],[Unit]]&carbonfactor_db[[#This Row],[Year]])," ",""),"-","") -> caraveragepetrolkm2024
B133: 125 | C133: Car small EV | D133: 0.03937 | F133: km | G133: 2024 | H133: DESNZ | I133: UK | K133: =SUBSTITUTE(SUBSTITUTE(LOWER(carbonfactor_db[[#This Row],[Description]]&carbonfactor_db[[#This Row],[Unit]]&carbonfactor_db[[#This Row],[Year]])," ",""),"-","") -> carsmallevkm2024
B134: 126 | C134: Car medium EV | D134: 0.04249 | F134: km | G134: 2024 | H134: DESNZ | I134: UK | K134: =SUBSTITUTE(SUBSTITUTE(LOWER(carbonfactor_db[[#This Row],[Description]]&carbonfactor_db[[#This Row],[Unit]]&carbonfactor_db[[#This Row],[Year]])," ",""),"-","") -> carmediumevkm2024
B135: 127 | C135: Car large EV | D135: 0.04525 | F135: km | G135: 2024 | H135: DESNZ | I135: UK | K135: =SUBSTITUTE(SUBSTITUTE(LOWER(carbonfactor_db[[#This Row],[Description]]&carbonfactor_db[[#This Row],[Unit]]&carbonfactor_db[[#This Row],[Year]])," ",""),"-","") -> carlargeevkm2024
B136: 128 | C136: Car average EV | D136: 0.04358 | F136: km | G136: 2024 | H136: DESNZ | I136: UK | K136: =SUBSTITUTE(SUBSTITUTE(LOWER(carbonfactor_db[[#This Row],[Description]]&carbonfactor_db[[#This Row],[Unit]]&carbonfactor_db[[#This Row],[Year]])," ",""),"-","") -> caraverageevkm2024
B137: 129 | C137: Car small unknown fuel | D137: 0.14262 | F137: km | G137: 2024 | H137: DESNZ | I137: UK | K137: =SUBSTITUTE(SUBSTITUTE(LOWER(carbonfactor_db[[#This Row],[Description]]&carbonfactor_db[[#This Row],[Unit]]&carbonfactor_db[[#This Row],[Year]])," ",""),"-","") -> carsmallunknownfuelkm2024
B138: 130 | C138: Car medium unknown fuel | D138: 0.17256 | F138: km | G138: 2024 | H138: DESNZ | I138: UK | K138: =SUBSTITUTE(SUBSTITUTE(LOWER(carbonfactor_db[[#This Row],[Description]]&carbonfactor_db[[#This Row],[Unit]]&carbonfactor_db[[#This Row],[Year]])," ",""),"-","") -> carmediumunknownfuelkm2024
B139: 131 | C139: Car large unknown fuel | D139: 0.22472 | F139: km | G139: 2024 | H139: DESNZ | I139: UK | K139: =SUBSTITUTE(SUBSTITUTE(LOWER(carbonfactor_db[[#This Row],[Description]]&carbonfactor_db[[#This Row],[Unit]]&carbonfactor_db[[#This Row],[Year]])," ",""),"-","") -> carlargeunknownfuelkm2024
B140: 132 | C140: Car small hybrid | D140: 0.11274 | F140: km | G140: 2024 | H140: DESNZ | I140: UK | K140: =SUBSTITUTE(SUBSTITUTE(LOWER(carbonfactor_db[[#This Row],[Description]]&carbonfactor_db[[#This Row],[Unit]]&carbonfactor_db[[#This Row],[Year]])," ",""),"-","") -> carsmallhybridkm2024
B141: 133 | C141: Car medium hybrid | D141: 0.1149 | F141: km | G141: 2024 | H141: DESNZ | I141: UK | K141: =SUBSTITUTE(SUBSTITUTE(LOWER(carbonfactor_db[[#This Row],[Description]]&carbonfactor_db[[#This Row],[Unit]]&carbonfactor_db[[#This Row],[Year]])," ",""),"-","") -> carmediumhybridkm2024
B142: 134 | C142: Car large hybrid | D142: 0.15486 | F142: km | G142: 2024 | H142: DESNZ | I142: UK | K142: =SUBSTITUTE(SUBSTITUTE(LOWER(carbonfactor_db[[#This Row],[Description]]&carbonfactor_db[[#This Row],[Unit]]&carbonfactor_db[[#This Row],[Year]])," ",""),"-","") -> carlargehybridkm2024
B143: 135 | C143: Car average hybrid | D143: 0.12607 | F143: km | G143: 2024 | H143: DESNZ | I143: UK | K143: =SUBSTITUTE(SUBSTITUTE(LOWER(carbonfactor_db[[#This Row],[Description]]&carbonfactor_db[[#This Row],[Unit]]&carbonfactor_db[[#This Row],[Year]])," ",""),"-","") -> caraveragehybridkm2024
B144: 136 | C144: Car small plug-in hybrid | D144: 0.03012 | F144: km | G144: 2024 | H144: DESNZ | I144: UK | K144: =SUBSTITUTE(SUBSTITUTE(LOWER(carbonfactor_db[[#This Row],[Description]]&carbonfactor_db[[#This Row],[Unit]]&carbonfactor_db[[#This Row],[Year]])," ",""),"-","") -> carsmallpluginhybridkm2024
B145: 137 | C145: Car medium plug-in hybrid | D145: 0.0812 | F145: km | G145: 2024 | H145: DESNZ | I145: UK | K145: =SUBSTITUTE(SUBSTITUTE(LOWER(carbonfactor_db[[#This Row],[Description]]&carbonfactor_db[[#This Row],[Unit]]&carbonfactor_db[[#This Row],[Year]])," ",""),"-","") -> carmediumpluginhybridkm2024
B146: 138 | C146: Car large plug-in hybrid | D146: 0.10306 | F146: km | G146: 2024 | H146: DESNZ | I146: UK | K146: =SUBSTITUTE(SUBSTITUTE(LOWER(carbonfactor_db[[#This Row],[Description]]&carbonfactor_db[[#This Row],[Unit]]&carbonfactor_db[[#This Row],[Year]])," ",""),"-","") -> carlargepluginhybridkm2024
B147: 139 | C147: Car average plug-in hybrid | D147: 0.0936 | F147: km | G147: 2024 | H147: DESNZ | I147: UK | K147: =SUBSTITUTE(SUBSTITUTE(LOWER(carbonfactor_db[[#This Row],[Description]]&carbonfactor_db[[#This Row],[Unit]]&carbonfactor_db[[#This Row],[Year]])," ",""),"-","") -> caraveragepluginhybridkm2024
B148: 140 | C148: Van class I (up to 1.305 tonnes) diesel | D148: 0.15356 | F148: km | G148: 2024 | H148: DESNZ | I148: UK | K148: =SUBSTITUTE(SUBSTITUTE(LOWER(carbonfactor_db[[#This Row],[Description]]&carbonfactor_db[[#This Row],[Unit]]&carbonfactor_db[[#This Row],[Year]])," ",""),"-","") -> vanclassi(upto1.305tonnes)dieselkm2024
B149: 141 | C149: Van class II (1.305 to 1.74 tonnes) diesel | D149: 0.18832 | F149: km | G149: 2024 | H149: DESNZ | I149: UK | K149: =SUBSTITUTE(SUBSTITUTE(LOWER(carbonfactor_db[[#This Row],[Description]]&carbonfactor_db[[#This Row],[Unit]]&carbonfactor_db[[#This Row],[Year]])," ",""),"-","") -> vanclassii(1.305to1.74tonnes)dieselkm2024
B150: 142 | C150: Van class III (1.74 to 3.5 tonnes) diesel | D150: 0.27365 | F150: km | G150: 2024 | H150: DESNZ | I150: UK | K150: =SUBSTITUTE(SUBSTITUTE(LOWER(carbonfactor_db[[#This Row],[Description]]&carbonfactor_db[[#This Row],[Unit]]&carbonfactor_db[[#This Row],[Year]])," ",""),"-","") -> vanclassiii(1.74to3.5tonnes)dieselkm2024
B151: 143 | C151: Van average (up to 3.5 tonnes) diesel | D151: 0.25023 | F151: km | G151: 2024 | H151: DESNZ | I151: UK | K151: =SUBSTITUTE(SUBSTITUTE(LOWER(carbonfactor_db[[#This Row],[Description]]&carbonfactor_db[[#This Row],[Unit]]&carbonfactor_db[[#This Row],[Year]])," ",""),"-","") -> vanaverage(upto3.5tonnes)dieselkm2024
B152: 144 | C152: Van class I (up to 1.305 tonnes) petrol | D152: 0.20071 | F152: km | G152: 2024 | H152: DESNZ | I152: UK | K152: =SUBSTITUTE(SUBSTITUTE(LOWER(carbonfactor_db[[#This Row],[Description]]&carbonfactor_db[[#This Row],[Unit]]&carbonfactor_db[[#This Row],[Year]])," ",""),"-","") -> vanclassi(upto1.305tonnes)petrolkm2024
B153: 145 | C153: Van class II (1.305 to 1.74 tonnes) petrol | D153: 0.21709 | F153: km | G153: 2024 | H153: DESNZ | I153: UK | K153: =SUBSTITUTE(SUBSTITUTE(LOWER(carbonfactor_db[[#This Row],[Description]]&carbonfactor_db[[#This Row],[Unit]]&carbonfactor_db[[#This Row],[Year]])," ",""),"-","") -> vanclassii(1.305to1.74tonnes)petrolkm2024
B154: 146 | C154: Van class III (1.74 to 3.5 tonnes) petrol | D154: 0.34923 | F154: km | G154: 2024 | H154: DESNZ | I154: UK | K154: =SUBSTITUTE(SUBSTITUTE(LOWER(carbonfactor_db[[#This Row],[Description]]&carbonfactor_db[[#This Row],[Unit]]&carbonfactor_db[[#This Row],[Year]])," ",""),"-","") -> vanclassiii(1.74to3.5tonnes)petrolkm2024
B155: 147 | C155: Van average (up to 3.5 tonnes) petrol | D155: 0.22095 | F155: km | G155: 2024 | H155: DESNZ | I155: UK | K155: =SUBSTITUTE(SUBSTITUTE(LOWER(carbonfactor_db[[#This Row],[Description]]&carbonfactor_db[[#This Row],[Unit]]&carbonfactor_db[[#This Row],[Year]])," ",""),"-","") -> vanaverage(upto3.5tonnes)petrolkm2024
B156: 148 | C156: Van class I (up to 1.305 tonnes) electric | D156: 0.03909 | F156: km | G156: 2024 | H156: DESNZ | I156: UK | K156: =SUBSTITUTE(SUBSTITUTE(LOWER(carbonfactor_db[[#This Row],[Description]]&carbonfactor_db[[#This Row],[Unit]]&carbonfactor_db[[#This Row],[Year]])," ",""),"-","") -> vanclassi(upto1.305tonnes)electrickm2024
B157: 149 | C157: Van class II (1.305 to 1.74 tonnes) electric | D157: 0.06024 | F157: km | G157: 2024 | H157: DESNZ | I157: UK | K157: =SUBSTITUTE(SUBSTITUTE(LOWER(carbonfactor_db[[#This Row],[Description]]&carbonfactor_db[[#This Row],[Unit]]&carbonfactor_db[[#This Row],[Year]])," ",""),"-","") -> vanclassii(1.305to1.74tonnes)electrickm2024
B158: 150 | C158: Van class III (1.74 to 3.5 tonnes) electric | D158: 0.08203 | F158: km | G158: 2024 | H158: DESNZ | I158: UK | K158: =SUBSTITUTE(SUBSTITUTE(LOWER(carbonfactor_db[[#This Row],[Description]]&carbonfactor_db[[#This Row],[Unit]]&carbonfactor_db[[#This Row],[Year]])," ",""),"-","") -> vanclassiii(1.74to3.5tonnes)electrickm2024
B159: 151 | C159: Van average (up to 3.5 tonnes) electric | D159: 0.07279 | F159: km | G159: 2024 | H159: DESNZ | I159: UK | K159: =SUBSTITUTE(SUBSTITUTE(LOWER(carbonfactor_db[[#This Row],[Description]]&carbonfactor_db[[#This Row],[Unit]]&carbonfactor_db[[#This Row],[Year]])," ",""),"-","") -> vanaverage(upto3.5tonnes)electrickm2024
B160: 152 | C160: Van average (up to 3.5 tonnes) unknown fuel | D160: 0.24934 | F160: km | G160: 2024 | H160: DESNZ | I160: UK | K160: =SUBSTITUTE(SUBSTITUTE(LOWER(carbonfactor_db[[#This Row],[Description]]&carbonfactor_db[[#This Row],[Unit]]&carbonfactor_db[[#This Row],[Year]])," ",""),"-","") -> vanaverage(upto3.5tonnes)unknownfuelkm2024
B161: 153 | C161: Van average (up to 3.5 tonnes) diesel | D161: 0.61643 | F161: tonne.km | G161: 2024 | H161: DESNZ | I161: UK | K161: =SUBSTITUTE(SUBSTITUTE(LOWER(carbonfactor_db[[#This Row],[Description]]&carbonfactor_db[[#This Row],[Unit]]&carbonfactor_db[[#This Row],[Year]])," ",""),"-","") -> vanaverage(upto3.5tonnes)dieseltonne.km2024
B162: 154 | C162: Motorbike | D162: 0.11367 | F162: km | G162: 2024 | H162: DESNZ | I162: UK | J162: Average motorbike | K162: =SUBSTITUTE(SUBSTITUTE(LOWER(carbonfactor_db[[#This Row],[Description]]&carbonfactor_db[[#This Row],[Unit]]&carbonfactor_db[[#This Row],[Year]])," ",""),"-","") -> motorbikekm2024
B163: 155 | C163: Taxi regular taxi | D163: 0.14861 | F163: passenger.km | G163: 2024 | H163: DESNZ | I163: UK | K163: =SUBSTITUTE(SUBSTITUTE(LOWER(carbonfactor_db[[#This Row],[Description]]&carbonfactor_db[[#This Row],[Unit]]&carbonfactor_db[[#This Row],[Year]])," ",""),"-","") -> taxiregulartaxipassenger.km2024
B164: 156 | C164: Taxi black cab | D164: 0.20402 | F164: passenger.km | G164: 2024 | H164: DESNZ | I164: UK | K164: =SUBSTITUTE(SUBSTITUTE(LOWER(carbonfactor_db[[#This Row],[Description]]&carbonfactor_db[[#This Row],[Unit]]&carbonfactor_db[[#This Row],[Year]])," ",""),"-","") -> taxiblackcabpassenger.km2024
B165: 157 | C165: Bus | D165: 0.10846 | F165: passenger.km | G165: 2024 | H165: DESNZ | I165: UK | J165: Average local bus | K165: =SUBSTITUTE(SUBSTITUTE(LOWER(carbonfactor_db[[#This Row],[Description]]&carbonfactor_db[[#This Row],[Unit]]&carbonfactor_db[[#This Row],[Year]])," ",""),"-","") -> buspassenger.km2024
B166: 158 | C166: Rail national | D166: 0.03546 | F166: passenger.km | G166: 2024 | H166: DESNZ | I166: UK | K166: =SUBSTITUTE(SUBSTITUTE(LOWER(carbonfactor_db[[#This Row],[Description]]&carbonfactor_db[[#This Row],[Unit]]&carbonfactor_db[[#This Row],[Year]])," ",""),"-","") -> railnationalpassenger.km2024
B167: 159 | C167: Rail international | D167: 0.00446 | F167: passenger.km | G167: 2024 | H167: DESNZ | I167: UK | K167: =SUBSTITUTE(SUBSTITUTE(LOWER(carbonfactor_db[[#This Row],[Description]]&carbonfactor_db[[#This Row],[Unit]]&carbonfactor_db[[#This Row],[Year]])," ",""),"-","") -> railinternationalpassenger.km2024
B168: 160 | C168: Tram | D168: 0.0286 | F168: passenger.km | G168: 2024 | H168: DESNZ | I168: UK | K168: =SUBSTITUTE(SUBSTITUTE(LOWER(carbonfactor_db[[#This Row],[Description]]&carbonfactor_db[[#This Row],[Unit]]&carbonfactor_db[[#This Row],[Year]])," ",""),"-","") -> trampassenger.km2024
B169: 161 | C169: London Underground | D169: 0.0278 | F169: passenger.km | G169: 2024 | H169: DESNZ | I169: UK | K169: =SUBSTITUTE(SUBSTITUTE(LOWER(carbonfactor_db[[#This Row],[Description]]&carbonfactor_db[[#This Row],[Unit]]&carbonfactor_db[[#This Row],[Year]])," ",""),"-","") -> londonundergroundpassenger.km2024
B170: 162 | C170: Flight Domestic, to/from UK average passenger | D170: 0.27257 | F170: passenger.km | G170: 2024 | H170: DESNZ | I170: UK | K170: =SUBSTITUTE(SUBSTITUTE(LOWER(carbonfactor_db[[#This Row],[Description]]&carbonfactor_db[[#This Row],[Unit]]&carbonfactor_db[[#This Row],[Year]])," ",""),"-","") -> flightdomestic,to/fromukaveragepassengerpassenger.km2024
B171: 163 | C171: Flight Short-haul, to/from UK average passenger | D171: 0.18592 | F171: passenger.km | G171: 2024 | H171: DESNZ | I171: UK | K171: =SUBSTITUTE(SUBSTITUTE(LOWER(carbonfactor_db[[#This Row],[Description]]&carbonfactor_db[[#This Row],[Unit]]&carbonfactor_db[[#This Row],[Year]])," ",""),"-","") -> flightshorthaul,to/fromukaveragepassengerpassenger.km2024
B172: 164 | C172: Flight Short-haul, to/from UK economy class | D172: 0.18287 | F172: passenger.km | G172: 2024 | H172: DESNZ | I172: UK | K172: =SUBSTITUTE(SUBSTITUTE(LOWER(carbonfactor_db[[#This Row],[Description]]&carbonfactor_db[[#This Row],[Unit]]&carbonfactor_db[[#This Row],[Year]])," ",""),"-","") -> flightshorthaul,to/fromukeconomyclasspassenger.km2024
B173: 165 | C173: Flight Short-haul, to/from UK business class | D173: 0.2743 | F173: passenger.km | G173: 2024 | H173: DESNZ | I173: UK | K173: =SUBSTITUTE(SUBSTITUTE(LOWER(carbonfactor_db[[#This Row],[Description]]&carbonfactor_db[[#This Row],[Unit]]&carbonfactor_db[[#This Row],[Year]])," ",""),"-","") -> flightshorthaul,to/fromukbusinessclasspassenger.km2024
B174: 166 | C174: Flight Long-haul, to/from UK average passenger | D174: 0.26128 | F174: passenger.km | G174: 2024 | H174: DESNZ | I174: UK | K174: =SUBSTITUTE(SUBSTITUTE(LOWER(carbonfactor_db[[#This Row],[Description]]&carbonfactor_db[[#This Row],[Unit]]&carbonfactor_db[[#This Row],[Year]])," ",""),"-","") -> flightlonghaul,to/fromukaveragepassengerpassenger.km2024
B175: 167 | C175: Flight Long-haul, to/from UK economy class | D175: 0.20011 | F175: passenger.km | G175: 2024 | H175: DESNZ | I175: UK | K175: =SUBSTITUTE(SUBSTITUTE(LOWER(carbonfactor_db[[#This Row],[Description]]&carbonfactor_db[[#This Row],[Unit]]&carbonfactor_db[[#This Row],[Year]])," ",""),"-","") -> flightlonghaul,to/fromukeconomyclasspassenger.km2024
B176: 168 | C176: Flight Long-haul, to/from UK premium economy class | D176: 0.32015 | F176: passenger.km | G176: 2024 | H176: DESNZ | I176: UK | K176: =SUBSTITUTE(SUBSTITUTE(LOWER(carbonfactor_db[[#This Row],[Description]]&carbonfactor_db[[#This Row],[Unit]]&carbonfactor_db[[#This Row],[Year]])," ",""),"-","") -> flightlonghaul,to/fromukpremiumeconomyclasspassenger.km2024
B177: 169 | C177: Flight Long-haul, to/from UK business class | D177: 0.58028 | F177: passenger.km | G177: 2024 | H177: DESNZ | I177: UK | K177: =SUBSTITUTE(SUBSTITUTE(LOWER(carbonfactor_db[[#This Row],[Description]]&carbonfactor_db[[#This Row],[Unit]]&carbonfactor_db[[#This Row],[Year]])," ",""),"-","") -> flightlonghaul,to/fromukbusinessclasspassenger.km2024
B178: 170 | C178: Flight Long-haul, to/from UK first class | D178: 0.8004 | F178: passenger.km | G178: 2024 | H178: DESNZ | I178: UK | K178: =SUBSTITUTE(SUBSTITUTE(LOWER(carbonfactor_db[[#This Row],[Description]]&carbonfactor_db[[#This Row],[Unit]]&carbonfactor_db[[#This Row],[Year]])," ",""),"-","") -> flightlonghaul,to/fromukfirstclasspassenger.km2024
B179: 171 | C179: Flight International, to/from non-UK average passenger | D179: 0.1758 | F179: passenger.km | G179: 2024 | H179: DESNZ | I179: UK | K179: =SUBSTITUTE(SUBSTITUTE(LOWER(carbonfactor_db[[#This Row],[Description]]&carbonfactor_db[[#This Row],[Unit]]&carbonfactor_db[[#This Row],[Year]])," ",""),"-","") -> flightinternational,to/fromnonukaveragepassengerpassenger.km2024
B180: 172 | C180: Flight International, to/from non-UK economy class | D180: 0.13465 | F180: passenger.km | G180: 2024 | H180: DESNZ | I180: UK | K180: =SUBSTITUTE(SUBSTITUTE(LOWER(carbonfactor_db[[#This Row],[Description]]&carbonfactor_db[[#This Row],[Unit]]&carbonfactor_db[[#This Row],[Year]])," ",""),"-","") -> flightinternational,to/fromnonukeconomyclasspassenger.km2024
B181: 173 | C181: Flight International, to/from non-UK premium economy class | D181: 0.21542 | F181: passenger.km | G181: 2024 | H181: DESNZ | I181: UK | K181: =SUBSTITUTE(SUBSTITUTE(LOWER(carbonfactor_db[[#This Row],[Description]]&carbonfactor_db[[#This Row],[Unit]]&carbonfactor_db[[#This Row],[Year]])," ",""),"-","") -> flightinternational,to/fromnonukpremiumeconomyclasspassenger.km2024
B182: 174 | C182: Flight International, to/from non-UK Business class | D182: 0.39044 | F182: passenger.km | G182: 2024 | H182: DESNZ | I182: UK | K182: =SUBSTITUTE(SUBSTITUTE(LOWER(carbonfactor_db[[#This Row],[Description]]&carbonfactor_db[[#This Row],[Unit]]&carbonfactor_db[[#This Row],[Year]])," ",""),"-","") -> flightinternational,to/fromnonukbusinessclasspassenger.km2024
B183: 175 | C183: Flight International, to/from non-UK First class | D183: 0.53854 | F183: passenger.km | G183: 2024 | H183: DESNZ | I183: UK | K183: =SUBSTITUTE(SUBSTITUTE(LOWER(carbonfactor_db[[#This Row],[Description]]&carbonfactor_db[[#This Row],[Unit]]&carbonfactor_db[[#This Row],[Year]])," ",""),"-","") -> flightinternational,to/fromnonukfirstclasspassenger.km2024
B184: 176 | C184: Ferry | D184: 0.1127 | F184: passenger.km | G184: 2024 | H184: DESNZ | I184: UK | J184: Average (all passenger) | K184: =SUBSTITUTE(SUBSTITUTE(LOWER(carbonfactor_db[[#This Row],[Description]]&carbonfactor_db[[#This Row],[Unit]]&carbonfactor_db[[#This Row],[Year]])," ",""),"-","") -> ferrypassenger.km2024
B185: 177 | C185: Car average unknown fuel - upstream | D185: 0.04399 | F185: km | G185: 2024 | H185: DESNZ | I185: UK | K185: =SUBSTITUTE(SUBSTITUTE(LOWER(carbonfactor_db[[#This Row],[Description]]&carbonfactor_db[[#This Row],[Unit]]&carbonfactor_db[[#This Row],[Year]])," ",""),"-","") -> caraverageunknownfuelupstreamkm2024
B186: 178 | C186: Car small diesel - upstream | D186: 0.03409 | F186: km | G186: 2024 | H186: DESNZ | I186: UK | K186: =SUBSTITUTE(SUBSTITUTE(LOWER(carbonfactor_db[[#This Row],[Description]]&carbonfactor_db[[#This Row],[Unit]]&carbonfactor_db[[#This Row],[Year]])," ",""),"-","") -> carsmalldieselupstreamkm2024
B187: 179 | C187: Car medium diesel - upstream | D187: 0.04103 | F187: km | G187: 2024 | H187: DESNZ | I187: UK | K187: =SUBSTITUTE(SUBSTITUTE(LOWER(carbonfactor_db[[#This Row],[Description]]&carbonfactor_db[[#This Row],[Unit]]&carbonfactor_db[[#This Row],[Year]])," ",""),"-","") -> carmediumdieselupstreamkm2024
B188: 180 | C188: Car large diesel - upstream | D188: 0.0507 | F188: km | G188: 2024 | H188: DESNZ | I188: UK | K188: =SUBSTITUTE(SUBSTITUTE(LOWER(carbonfactor_db[[#This Row],[Description]]&carbonfactor_db[[#This Row],[Unit]]&carbonfactor_db[[#This Row],[Year]])," ",""),"-","") -> carlargedieselupstreamkm2024
B189: 181 | C189: Car average diesel - upstream | D189: 0.04146 | F189: km | G189: 2024 | H189: DESNZ | I189: UK | K189: =SUBSTITUTE(SUBSTITUTE(LOWER(carbonfactor_db[[#This Row],[Description]]&carbonfactor_db[[#This Row],[Unit]]&carbonfactor_db[[#This Row],[Year]])," ",""),"-","") -> caraveragedieselupstreamkm2024
B190: 182 | C190: Car small petrol - upstream | D190: 0.04015 | F190: km | G190: 2024 | H190: DESNZ | I190: UK | K190: =SUBSTITUTE(SUBSTITUTE(LOWER(carbonfactor_db[[#This Row],[Description]]&carbonfactor_db[[#This Row],[Unit]]&carbonfactor_db[[#This Row],[Year]])," ",""),"-","") -> carsmallpetrolupstreamkm2024
B191: 183 | C191: Car medium petrol - upstream | D191: 0.04957 | F191: km | G191: 2024 | H191: DESNZ | I191: UK | K191: =SUBSTITUTE(SUBSTITUTE(LOWER(carbonfactor_db[[#This Row],[Description]]&carbonfactor_db[[#This Row],[Unit]]&carbonfactor_db[[#This Row],[Year]])," ",""),"-","") -> carmediumpetrolupstreamkm2024
B192: 184 | C192: Car large petrol - upstream | D192: 0.07528 | F192: km | G192: 2024 | H192: DESNZ | I192: UK | K192: =SUBSTITUTE(SUBSTITUTE(LOWER(carbonfactor_db[[#This Row],[Description]]&carbonfactor_db[[#This Row],[Unit]]&carbonfactor_db[[#This Row],[Year]])," ",""),"-","") -> carlargepetrolupstreamkm2024
B193: 185 | C193: Car average petrol - upstream | D193: 0.04599 | F193: km | G193: 2024 | H193: DESNZ | I193: UK | K193: =SUBSTITUTE(SUBSTITUTE(LOWER(carbonfactor_db[[#This Row],[Description]]&carbonfactor_db[[#This Row],[Unit]]&carbonfactor_db[[#This Row],[Year]])," ",""),"-","") -> caraveragepetrolupstreamkm2024
B194: 186 | C194: Car small EV - upstream | D194: 0.00948 | F194: km | G194: 2024 | H194: DESNZ | I194: UK | K194: =SUBSTITUTE(SUBSTITUTE(LOWER(carbonfactor_db[[#This Row],[Description]]&carbonfactor_db[[#This Row],[Unit]]&carbonfactor_db[[#This Row],[Year]])," ",""),"-","") -> carsmallevupstreamkm2024
B195: 187 | C195: Car medium EV - upstream | D195: 0.01022 | F195: km | G195: 2024 | H195: DESNZ | I195: UK | K195: =SUBSTITUTE(SUBSTITUTE(LOWER(carbonfactor_db[[#This Row],[Description]]&carbonfactor_db[[#This Row],[Unit]]&carbonfactor_db[[#This Row],[Year]])," ",""),"-","") -> carmediumevupstreamkm2024
B196: 188 | C196: Car large EV - upstream | D196: 0.01088 | F196: km | G196: 2024 | H196: DESNZ | I196: UK | K196: =SUBSTITUTE(SUBSTITUTE(LOWER(carbonfactor_db[[#This Row],[Description]]&carbonfactor_db[[#This Row],[Unit]]&carbonfactor_db[[#This Row],[Year]])," ",""),"-","") -> carlargeevupstreamkm2024
B197: 189 | C197: Car average EV - upstream | D197: 0.01049 | F197: km | G197: 2024 | H197: DESNZ | I197: UK | K197: =SUBSTITUTE(SUBSTITUTE(LOWER(carbonfactor_db[[#This Row],[Description]]&carbonfactor_db[[#This Row],[Unit]]&carbonfactor_db[[#This Row],[Year]])," ",""),"-","") -> caraverageevupstreamkm2024 | Q197: =VLOOKUP("england30cmorlesspastureha2024",carbonfactor_db[Description code],1,FALSE) -> england30cmorlesspastureha2024
B198: 190 | C198: Car small unknown fuel - upstream | D198: 0.03836 | F198: km | G198: 2024 | H198: DESNZ | I198: UK | K198: =SUBSTITUTE(SUBSTITUTE(LOWER(carbonfactor_db[[#This Row],[Description]]&carbonfactor_db[[#This Row],[Unit]]&carbonfactor_db[[#This Row],[Year]])," ",""),"-","") -> carsmallunknownfuelupstreamkm2024
B199: 191 | C199: Car medium unknown fuel - upstream | D199: 0.04518 | F199: km | G199: 2024 | H199: DESNZ | I199: UK | K199: =SUBSTITUTE(SUBSTITUTE(LOWER(carbonfactor_db[[#This Row],[Description]]&carbonfactor_db[[#This Row],[Unit]]&carbonfactor_db[[#This Row],[Year]])," ",""),"-","") -> carmediumunknownfuelupstreamkm2024
B200: 192 | C200: Car large unknown fuel - upstream | D200: 0.05764 | F200: km | G200: 2024 | H200: DESNZ | I200: UK | K200: =SUBSTITUTE(SUBSTITUTE(LOWER(carbonfactor_db[[#This Row],[Description]]&carbonfactor_db[[#This Row],[Unit]]&carbonfactor_db[[#This Row],[Year]])," ",""),"-","") -> carlargeunknownfuelupstreamkm2024
B201: 193 | C201: Car small hybrid - upstream | D201: 0.03026 | F201: km | G201: 2024 | H201: DESNZ | I201: UK | K201: =SUBSTITUTE(SUBSTITUTE(LOWER(carbonfactor_db[[#This Row],[Description]]&carbonfactor_db[[#This Row],[Unit]]&carbonfactor_db[[#This Row],[Year]])," ",""),"-","") -> carsmallhybridupstreamkm2024
B202: 194 | C202: Car medium hybrid - upstream | D202: 0.02998 | F202: km | G202: 2024 | H202: DESNZ | I202: UK | K202: =SUBSTITUTE(SUBSTITUTE(LOWER(carbonfactor_db[[#This Row],[Description]]&carbonfactor_db[[#This Row],[Unit]]&carbonfactor_db[[#This Row],[Year]])," ",""),"-","") -> carmediumhybridupstreamkm2024
B203: 195 | C203: Car large hybrid - upstream | D203: 0.03961 | F203: km | G203: 2024 | H203: DESNZ | I203: UK | K203: =SUBSTITUTE(SUBSTITUTE(LOWER(carbonfactor_db[[#This Row],[Description]]&carbonfactor_db[[#This Row],[Unit]]&carbonfactor_db[[#This Row],[Year]])," ",""),"-","") -> carlargehybridupstreamkm2024
B204: 196 | C204: Car average hybrid - upstream | D204: 0.03315 | F204: km | G204: 2024 | H204: DESNZ | I204: UK | K204: =SUBSTITUTE(SUBSTITUTE(LOWER(carbonfactor_db[[#This Row],[Description]]&carbonfactor_db[[#This Row],[Unit]]&carbonfactor_db[[#This Row],[Year]])," ",""),"-","") -> caraveragehybridupstreamkm2024
B205: 197 | C205: Car small plug-in hybrid - upstream | D205: 0.0152 | F205: km | G205: 2024 | H205: DESNZ | I205: UK | K205: =SUBSTITUTE(SUBSTITUTE(LOWER(carbonfactor_db[[#This Row],[Description]]&carbonfactor_db[[#This Row],[Unit]]&carbonfactor_db[[#This Row],[Year]])," ",""),"-","") -> carsmallpluginhybridupstreamkm2024
... 463 more rows

Sheet Emissions db
B5: Emissions database
A7: Basic data | M7: BoQ | T7: Soil and excavation | AB7: Overheads | AD7: Carbon calculations | AW7: Helper columns
A8: Record number | B8: Data marker | C8: Date of entry into database | D8: Data entry by (name) | E8: Record type | F8: Record data start date | G8: Record data end date | H8: Category | I8: User notes | J8: Calculation notes | K8: Overhead number | L8: Project code | M8: Section | N8: Reference | O8: Item specification | P8: Unit | Q8: Quantity solely for archaeology activity | R8: Quantity for archaeology and other development purposes | S8: Custom carbon factor (if applicable) | T8: Country | U8: Land use | V8: Soil type | W8: Peat storage months | X8: Detail | Y8: Soil/Excavation unit | Z8: Value solely for archaeology activity | AA8: Value for archaeology and other development purposes | AB8: Office name | AC8: Operational control | AD8: Carbon factor record number | AE8: BoQ (tonnes CO2e) | AF8: Project transport (tonnes CO2e) | AG8: Project transport EVs (tonnes CO2e) | AH8: Excavation emissions (tonnes CO2e) | AI8: Upstream impacts - project specific (tonnes CO2e) | AJ8: Electricity locational-based (tonnes CO2e) | AK8: Electricity market-based (tonnes CO2e) | AL8: Natural gas (tonnes CO2e) | AM8: Fuel oil (tonnes CO2e) | AN8: Leased assets [locational-based] (tonnes CO2e) | AO8: Leased assets [market-based] (tonnes CO2e) | AP8: Commuting/homeworking (tonnes CO2e) | AQ8: Business travel (tonnes CO2e) | AR8: Upstream impacts - overheads [locational-based] (tonnes CO2e) | AS8: Upstream impacts - overheads [market-based] (tonnes CO2e) | AT8: Biogenic emissions (tonnes CO2e) | AU8: Development emissions [fossil] (tonnes CO2e) | AV8: Development emissions [biogenic] (tonnes CO2e) | AW8: % of record within chosen reporting period | AX8: Dashboard year - 1 | AY8: % of record within chosen project reporting period and project period | AZ8: Project person days in month | BA8: Total person days in month | BB8: % of overhead allocated to project | BC8: Unique code

Sheet BoQ carbon factor db (hidden)
B2: Reference | C2: Item specification | D2: Carbon factor unit | E2: Physical units carbon factor | F2: Exiobase carbon factor description
B3: A - PRELIMINARIES
B4: A1 | C4: Supply H&S Plan | D4: hours | E4: Homeworking (office equipment + heating) | F4: Other business services
B5: A2 - Supply and update 'WSI' or Method Statement
B6: A2.1 | C6: Supply 'WSI' or Method Statement | D6: hours | E6: Homeworking (office equipment + heating) | F6: Other business services
B7: A2.2 | C7: Update 'WSI' or Method Statement | D7: hours | E7: Homeworking (office equipment + heating) | F7: Other business services
B8: A3 - Supply and update Programme
B9: A3.1 | C9: Supply Programme | D9: hours | E9: Homeworking (office equipment + heating) | F9: Other business services
B10: A3.2 | C10: Update Programme | D10: hours | E10: Homeworking (office equipment + heating) | F10: Other business services
B11: A4 | C11: Attend meetings | D11: hours | E11: Homeworking (office equipment + heating) | F11: Other business services
B12: A5 | C12: Handover | D12: hours | E12: Homeworking (office equipment + heating) | F12: Other business services
B13: A7 - Site establishment
B14: A7.1.1.1 | C14: Option 1 - Temporary site accommodation, litres of diesel consumed | D14: litres | E14: Diesel (average biofuel blend) | F14: Diesel (average biofuel blend)
B15: A7.1.1.2 | C15: Option 1 - Temporary site accommodation, litres of biodiesel consumed | D15: litres | E15: Biodiesel HVO | F15: Biodiesel HVO
B16: A7.1.1.3 | C16: Option 2 - Amount spent on temporary site accommodation | F16: Rental of machinery and equipment (without operator) and of personal and household goods (services)
B17: A7.2.1 | C17: Temporary works in connection with site establishment (road surface) | D17: m2 | E17: Road surface | F17: Construction work
B18: A7.2.2 | C18: Temporary works in connection with site establishment (concrete) | D18: tonne/m3 | E18: Concrete - average UK mix | F18: Construction work
B19: A7.3 | C19: Furniture and equipment | F19: Furniture/other manufactured goods (not elsewhere specified)
B20: A7.4 - IT systems
B21: A7.4.1 | C21: IT systems - hardware | F21: Office and computer machinery
B22: A7.4.2 | C22: IT systems - software | F22: Computer and related services
B23: A7.5 - Consumables and services
B24: A7.5.1 | C24: Stationary and printing | D24: kg | E24: Paper | F24: Paper and paper products
B25: A7.5.2 | C25: Computer and printer consumables | F25: Office and computer machinery
B26: A7.5.3 | C26: Postage | F26: Post and telecommunications
B27: A7.5.4 | C27: Food and drink | F27: Beverages
B28: A7.5.5 | C28: First aid consumables | D28: kg | E28: Polypropylene (injection moulding) | F28: Textiles
B29: A7.6 - Brought-in services
B30: A7.6.1 | C30: Catering | F30: Hotel and restaurant (services)
B31: A7.6.2 | C31: Equipment maintenance | F31: Sale/maintenance/repair/parts/accessories of motor vehicles/motorcycles
B32: A7.6.3 | C32: Document management | F32: Computer and related services
B33: A7.6.4 | C33: Printing (purchasing) | D33: kg | E33: Paper | F33: Printed matter and recorded media
B34: A7.6.5 | C34: Parking | F34: Supporting and auxiliary transport services/travel agency services
B35: A7.6.6 | C35: Meeting room facilities | F35: Real estate services
B36: A7.6.7 | C36: Photographic services | F36: Other business services
B37: A7.7 | C37: Sundries | D37: kg | E37: ABS | F37: Rubber and Plastic products
B38: A8 - Temporary services
B39: A8.1 - Temporary water supply - infrastructure
B40: A8.1.1 | C40: Temporary water supply - services/meter charges | D40: m3 | E40: Water supply | F40: Collected and purified water/distribution of water (services)
B41: A8.1.2 | C41: Temporary water supply - infrastructure (connections and distribution) | F41: Collected and purified water/distribution of water (services)
B42: A8.2 Temporary gas supply - infrastructure
B43: A8.2.1 | C43: Temporary gas supply - services (charges) | D43: kWh | E43: Natural gas | F43: LPG (liquefied petroleum gas)
B44: A8.2.2 | C44: Temporary gas supply - infrastructure (connections and distribution) | F44: LPG (liquefied petroleum gas)
B45: A8.3 - Temporary electricity supply
B46: A8.3.1.1 | C46: Temporary electricity supply - infrastructure (attendance, UPS, etc) | F46: Transmission of electricity (services)
B47: A8.3.1.2 | C47: Temporary electricity supply - infrastructure (connections and distribution) | F47: Transmission of electricity (services)
B48: A8.3.2 | C48: Temporary electricity supply - charges | D48: kWh | E48: Electricity
B49: A8.4 - Temporary telecommunication systems
B50: A8.4.1.1 | C50: Temporary telecommunication systems - consumables (wires and lines) | F50: Post and telecommunications
B51: A8.4.1.2 | C51: Temporary telecommunication systems - consumables (handsets etc) | F51: Radio/television and communication equipment and apparatus
B52: A8.4.2 | C52: Temporary telecommunication systems - services | F52: Post and telecommunications
B53: A8.5 - Temporary drainage
B54: A8.5.1 | C54: Temporary drainage - infrastructure | F54: Construction work
B55: A8.5.2 | C55: Temporary drainage - waste | F55: Other waste for treatment: waste water treatment
B56: A9 - Security
B57: A9.1 | C57: Security staff | F57: Other business services
B58: A9.2 | C58: Security equipment | F58: Office and computer machinery
B59: A9.3.1 | C59: Hoardings, fences and gates (steel hot rolled coil) | D59: kg | E59: Steel hot rolled coil | F59: Fabricated metal products/except machinery and equipment
B60: A9.3.2 | C60: Hoardings, fences and gates (steel welded pipe) | D60: kg | E60: Steel welded pipe | F60: Fabricated metal products/except machinery and equipment
B61: A9.3.3 | C61: Hoardings, fences and gates (aluminium sheet) | D61: kg | E61: Aluminium sheet | F61: Fabricated metal products/except machinery and equipment
B62: A9.3.4 | C62: Hoardings, fences and gates (aluminium extruded profile) | D62: kg | E62: Aluminium extruded profile | F62: Fabricated metal products/except machinery and equipment
B63: A10 - Safety and environmental protection
B64: A10 - Safety and environmental protection
B65: A10.1.1 | C65: Safety programme - services | F65: Other business services
B66: A10.1.2 | C66: Safety programme - PPE | F66: Textiles
B67: A10.1.3 | C67: Safety programme - equipment | F67: Real estate services
B68: A10.1.4 | C68: Safety programme - education | F68: Education Services
B69: A10.2.1 | C69: Barriers and safety scaffolding (steel hot rolled coil) | D69: kg | E69: Steel hot rolled coil | F69: Fabricated metal products/except machinery and equipment
B70: A10.2.2 | C70: Barriers and safety scaffolding (steel welded pipe) | D70: kg | E70: Steel welded pipe | F70: Fabricated metal products/except machinery and equipment
B71: A10.2.3 | C71: Barriers and safety scaffolding (aluminium sheet) | D71: kg | E71: Aluminium sheet | F71: Fabricated metal products/except machinery and equipment
B72: A10.2.4 | C72: Barriers and safety scaffolding (aluminium extruded profile) | D72: kg | E72: Aluminium extruded profile | F72: Fabricated metal products/except machinery and equipment
B73: A10.3 | C73: Environmental protection measures | F73: Other business services
B74: A11 - Control and protection
B75: A11.1 | C75: Survey, inspections and monitoring | F75: Other business services
B76: A11.2.1 | C76: Setting out - services | F76: Other business services
B77: A11.2.2.1 | C77: Setting out - equipment (steel hot rolled coil) | D77: kg | E77: Steel hot rolled coil | F77: Fabricated metal products/except machinery and equipment
B78: A11.2.2.2 | C78: Setting out - equipment (steel welded pipe) | D78: kg | E78: Steel welded pipe | F78: Fabricated metal products/except machinery and equipment
B79: A11.2.2.3 | C79: Setting out - equipment (aluminium sheet) | D79: kg | E79: Aluminium sheet | F79: Fabricated metal products/except machinery and equipment
B80: A11.2.2.4 | C80: Setting out - equipment (aluminium extruded profile) | D80: kg | E80: Aluminium extruded profile | F80: Fabricated metal products/except machinery and equipment
B81: A11.3 | C81: Protection of works | F81: Paper and paper products
B82: A11.5 | C82: Environmental control of building | F82: Construction work
B83: A13 - Temporary works
B84: A13.1 | C84: Access scaffolding | F84: Construction work
B85: A13.2 | C85: Temporary works | F85: Rental of machinery and equipment (without operator) and of personal and household goods (services)
B86: A14 - Cleaning
B87: A14.1.2 | C87: Site tidy - cleaning | F87: Real estate services
B88: A14.1.3 | C88: Site tidy - waste disposal | F88: Inert/metal waste for treatment: incineration
B89: A14.2 | C89: Maintenance of roads, paths and pavings | F89: Construction work
B90: A14.3 | C90: Building clean | F90: Real estate services
B91: A16 - Insurance, bonds, guarantees and warranties
B92: A16.1 | C92: Works insurance | F92: Insurance and pension funding services
B93: A16.2 | C93: Public liability insurance | F93: Insurance and pension funding services
B94: A16.3 | C94: Employer’s (main contractor’s) liability insurance | F94: Insurance and pension funding services
B95: A16.4 | C95: Other insurances | F95: Insurance and pension funding services
B96: A16.5 | C96: Bonds | F96: Financial intermediation services (except insurance and pension funding services)
B97: A16.6 | C97: Guarantees | F97: Financial intermediation services (except insurance and pension funding services)
B98: A16.7 | C98: Warranties | F98: Financial intermediation services (except insurance and pension funding services)
B99: A17 | C99: De-watering | F99: Rental of machinery and equipment (without operator) and of personal and household goods (services)
B100: B - EXCAVATION/INVESTIGATION - this might involve other methods than just excavation
B101: B1 - Interventions
B102: B1.5 | C102: Surveys, characterisations, and photography eg. metal detecting survey, hedgerow survey, conventional aerial photography, historic landscape and seascape characterisation Activities specified in FAME's Bill of Quantities Section B1.5-7, B1.17-22, B1.24 -30 | F102: Other business services
B103: B1.8 | C103: Sampling such as gravity core, monolith, timber Activities specified in FAME's Bill of Quantities Section B1.8-16 | F103: Research and Development services
B104: B1.19.2 | C104: Acoustic Ground Discriminating Radar | F104: Rental of machinery and equipment (without operator) and of personal and household goods (services)
B105: B1.23 | C105: Desk Based Assessment | D105: hours | E105: Homeworking (office equipment + heating) | F105: Other business services
B106: B1.31 | C106: Remote Operated Vehicle Survey | F106: Rental of machinery and equipment (without operator) and of personal and household goods (services)
B107: C - PROCESSING OF RECOVERED MATERIALS
B108: C1 | C108: Process, stabilise and catalogue bulk artefacts | F108: Research and Development services
B109: C2 | C109: Process, stabilise and catalogue 'special' artefacts | F109: Research and Development services
B110: C3 - Process, catalogue and stabilise bulk soil samples as specified
B111: C3.1 | C111: Soil samples for envi assessment | F111: Research and Development services
B112: C3.2 | C112: Cremation-related deposits | F112: Research and Development services
B113: C4 - Off-site 'excavation' of contained remains (urns, lead coffins etc.)
B114: C4.1 | C114: Urned cremation remains | F114: Wood and products of wood
B115: C4.2 | C115: Coffins | F115: Wood and products of wood
B116: C4.3 | C116: Block lifted deposits | F116: Wood and products of wood
B117: C5 - Process, catalogue and stablise structure elements as specified
B118: C5.1 | C118: Structual elements | F118: Recreational/cultural and sporting services
B119: D - POST-EXCAVATION ASSESSMENT
B120: D1 - Supply assessment of research potential of the archive
B121: D1.1 | C121: Stratigraphic assemblage | F121: Other business services
B122: D1.2 | C122: Artefactual assemblage | F122: Other business services
B123: D1.3 | C123: Environmental assemblage | F123: Other business services
B124: D1.4 | C124: Photo and Record logs | D124: kg | E124: Paper | F124: Printed matter and recorded media
B125: D2 | C125: Full Post-excavation assessment report | F125: Other business services
B126: D3 | C126: Post-excavation assessment meetings | F126: Other business services
B127: E - POST-EXCAVATION ANALYSIS AND DISSEMINATION
B128: E1 | C128: Chemical Techniques | F128: Research and Development services
B129: E2 | C129: Dating Techniques | F129: Research and Development services
B130: E3 | C130: Physical techniques | F130: Research and Development services
B131: E5.1 | C131: Report write-up | F131: Education Services
B132: E5.2 | C132: Specialist sub-reports - add as many as required. | F132: Education Services
B133: E5.3 | C133: Figure creation | F133: Education Services
B134: E5.3.1 | C134: Site plan processing | F134: Other business services
B135: E5.3.2 | C135: Section plan processing | F135: Other business services
B136: E5.3.3 | C136: Reconsturctions | F136: Other business services
B137: E5.3.4 | C137: Artefact drawings | F137: Other business services
B138: E5.3.5 | C138: Graphs and tables | F138: Education Services
B139: E5.3.6 | C139: Other figures | F139: Education Services
B140: E5.4 | C140: Copyediting | F140: Education Services
B141: E5.5 | C141: Review and revision | F141: Education Services
B142: E5.6 | C142: Additional publication costs e.g. printing, design | F142: Printed matter and recorded media
B143: F - PUBLIC ENGAGEMENT
B144: F1 | C144: Location hire | F144: Real estate services
B145: F2 | C145: Printed materials | D145: kg | E145: Paper | F145: Printed matter and recorded media
B146: F3 | C146: Digital items (third-party) | F146: Printed matter and recorded media
B147: F4 | C147: Education services | F147: Education Services
B148: G - DEPOSITION
B149: G1 | C149: Museum/archive deposition charges | F149: Recreational/cultural and sporting services
B150: G2 | C150: Transport/carriage to museum | D150: tonne.km | E150: Van average (up to 3.5 tonnes) diesel | F150: Other land transportation services
B151: G3 | C151: Dispose of discarded materials | F151: Inert/metal waste for treatment: incineration
B152: G4 | C152: OASIS upload | F152: Computer and related services
B153: G5 | C153: Digital archive | F153: Computer and related services
B154: Y - PLANT HIRE
B155: Y0 | C155: Option 1 - Litres of diesel consumed | D155: litres | E155: Diesel (average biofuel blend) | F155: Diesel (average biofuel blend)
B156: Y1 | C156: Option 1 - Litres of biodiesel consumed | D156: litres | E156: Biodiesel HVO | F156: Biodiesel HVO
B157: Y2 | C157: Option 2 - Amount spent on plant hire | F157: Rental of machinery and equipment (without operator) and of personal and household goods (services)
B158: AA - SEL Adds
B159: AA1 | C159: Hotels and Accommodation | D159: Room per night | E159: Hotels and Accommodation | F159: Hotel and restaurant (services)
B160: AA2 | C160: Food and Subsistence | F160: Hotel and restaurant (services)

Sheet userName (hidden)
A1: CS

Sheet Carbon factor dropdowns (hidden)
A2: Counties | C2: Travel mode | D2: Car dropdown | E2: Rail dropdown | F2: Taxi dropdown | G2: Flight dropdown | H2: Ferry dropdown | I2: Van dropdown | M2: Soil location dropdown | N2: Previous Landuse dropdown | O2: Dug Depth (cm) dropdwon | P2: Soil Type dropdwon | Q2: Area undergoing soil movement dropdown | S2: Excavator type | T2: Unit | V2: CIBSE category
A3: Bedfordshire | C3: Car | D3: average unknown fuel | E3: national | F3: regular taxi | G3: Domestic, to/from UK - average passenger | H3: Inland | I3: Class I (up to 1.305 tonnes) diesel | M3: England | N3: Seminatural | O3: 0-30 | P3: Organic | Q3: Ha | S3: White diesel powered excavator | T3: hour | V3: Office - cellular naturally ventilated
A4: Berkshire | C4: Bus | D4: small unknown fuel | E4: international | F4: black cab | G4: Short-haul, to/from UK - average passenger | H4: Coastal | I4: Class II (1.305 to 1.74 tonnes) diesel | M4: Scotland | N4: Pasture | O4: 30-100 | P4: Organo-minerals | Q4: m2 | S4: Biodiesel excavator | T4: m3 | V4: Office - open plan naturally ventilated
A5: Bristol | C5: Rail | D5: medium unknown fuel | G5: Short-haul, to/from UK - economy class | I5: Class III (1.74 to 3.5 tonnes) diesel | M5: Wales | N5: Arable | O5: 0-100 | P5: Mineral soils | Q5: sq mile | S5: Electric Excavator - charged from UK mains | V5: Office - standard air conditioned
A6: Buckinghamshire | C6: Taxi | D6: large unknown fuel | G6: Short-haul, to/from UK - business class | I6: Average (up to 3.5 tonnes) diesel | M6: Northern Ireland | N6: Woodland | Q6: sq km | S6: Electric excavator - renewable power | V6: Office - prestige air conditioned
A7: Cambridgeshire | C7: Tram | D7: small diesel | G7: Long-haul, to/from UK - average passenger | I7: Class I (up to 1.305 tonnes) petrol | N7: Gardens | V7: Warehouse
A8: Cheshire | C8: London Underground | D8: medium diesel | G8: Long-haul, to/from UK - economy class | I8: Class II (1.305 to 1.74 tonnes) petrol
A9: Cornwall | C9: Flight | D9: large diesel | G9: Long-haul, to/from UK - premium economy class | I9: Class III (1.74 to 3.5 tonnes) petrol
A10: Cumbria | C10: Ferry | D10: unknown size diesel | G10: Long-haul, to/from UK - business class | I10: Average (up to 3.5 tonnes) petrol
A11: Derbyshire | D11: small petrol | G11: Long-haul, to/from UK - first class | I11: Class I (up to 1.305 tonnes) electric
A12: Devon | D12: medium petrol | G12: International, to/from non-UK - average passenger | I12: Class II (1.305 to 1.74 tonnes) electric
A13: Dorset | D13: large petrol | G13: International, to/from non-UK - economy class | I13: Class III (1.74 to 3.5 tonnes) electric
A14: Durham | D14: unknown size petrol | G14: International, to/from non-UK - premium economy class | I14: Average (up to 3.5 tonnes) electric
A15: East Sussex | D15: small hybrid | G15: International, to/from non-UK - Business class | I15: Average (up to 3.5 tonnes) unknown fuel
A16: Essex | D16: medium hybrid | G16: International, to/from non-UK - First class
A17: Gloucestershire | D17: large hybrid
A18: Greater London | D18: unknown size hybrid
A19: Greater Manchester | D19: small plug-in hybrid
A20: Hampshire | D20: medium plug-in hybrid
A21: Herefordshire | D21: large plug-in hybrid
A22: Hertfordshire | D22: unknown size plug-in hybrid
A23: Isle of Wight | D23: small EV
A24: Kent | D24: medium EV
A25: Lancashire | D25: large EV
A26: Leicestershire | D26: unknown size EV
A27: Lincolnshire
A28: Merseyside
A29: Norfolk
A30: North Yorkshire
A31: Northamptonshire
A32: Northumberland
A33: Nottinghamshire
A34: Oxfordshire
A35: Rutland
A36: Shropshire
A37: Somerset
A38: South Yorkshire
A39: Staffordshire
A40: Suffolk
A41: Surrey
A42: Tyne and Wear
A43: Warwickshire
A44: West Midlands
A45: West Sussex
A46: West Yorkshire
A47: Wiltshire
A48: Worcestershire
A49: North Lincolnshire
A50: North East Lincolnshire
A51: Aberdeenshire
A52: Angus
A53: Argyll and Bute
A54: Ayrshire
A55: Caithness
A56: Clackmannanshire
A57: Dumfries and Galloway
A58: Dundee City
A59: Anglesey
A60: Brecknockshire
A61: Caernarfonshire
A62: Clwyd
A63: Dyfed
A64: Gwent
A65: Gwynedd
A66: Clwyd
A67: Merionethshire
A68: Monmouthshire
A69: Montgomeryshire
A70: Pembrokeshire
A71: Powys
A72: Radnorshire
A73: South Glamorgan
A74: West Glamorgan
A75: East Glamorgan
A76: Wrexham
A77: Ceredigion
A78: Conwy
A79: Pembrokeshire
A80: Powys
A81: Antrim
A82: Armagh
A83: Londonderry
A84: Down
A85: Fermanagh
A86: Tyrone

Sheet Conversion factors (hidden)
B5: Conversion factors
T6: HMRC exchange rates | U6: Bank of England inflation calculator
B7: Name | C7: Value | D7: Source | F7: CIBSE category | G7: Electricity - typical practice (kWh/m2/year) | H7: Fossil fuels - typical practice (kWh/m2/year) | I7: Year | J7: Notes | L7: Fuel | M7: Year | N7: Average fuel rate (£/litre) | O7: Source | P7: Description code | R7: Reporting year | S7: Exiobase year | T7: GBP to EUR in Exiobase year | U7: GBP in reporting year to GBP in Exiobase year | V7: Conversion factor | W7: Description code | Y7: Month | Z7: GBP to EUR
B8: GWP of CH4 | C8: 28 | D8: Fifth assessment report (AR5) | F8: Office - cellular naturally ventilated | G8: 54 | H8: 151 | I8: 2024 | L8: Diesel | M8: 2022 | N8: =177.78/100 -> 1.7778 | O8: gov.uk | P8: =SUBSTITUTE(SUBSTITUTE(LOWER(L8&M8)," ",""),"-","") -> diesel2022 | R8: 2025 | S8: 2019 | T8: =Z20 -> 1.137758333 | U8: 0.78 | V8: =exiobase_currency_inflation[[#This Row],[GBP in reporting year to GBP in Exiobase year]]*exiobase_currency_inflation[[#This Row],[GBP to EUR in Exiobase year]] -> 0.8874515 | W8: =exiobase_currency_inflation[[#This Row],[Reporting year]]&exiobase_currency_inflation[[#This Row],[Exiobase year]] -> 20252019 | Y8: 2019-01-01 | Z8: 1.1069
B9: On-road EV charging | C9: 75 | D9: p/kWh [2024] | F9: Office - open plan naturally ventilated | G9: 85 | H9: 151 | I9: 2024 | L9: Diesel | M9: 2023 | N9: =158.12/100 -> 1.5812 | O9: gov.uk | P9: diesel2023 | R9: 2024 | S9: 2019 | T9: =Z20 -> 1.137758333 | U9: 0.8 | V9: =exiobase_currency_inflation[[#This Row],[GBP in reporting year to GBP in Exiobase year]]*exiobase_currency_inflation[[#This Row],[GBP to EUR in Exiobase year]] -> 0.9102066667 | W9: =exiobase_currency_inflation[[#This Row],[Reporting year]]&exiobase_currency_inflation[[#This Row],[Exiobase year]] -> 20242019 | Y9: 2019-02-01 | Z9: 1.1479
F10: Office - standard air conditioned | G10: 226 | H10: 178 | I10: 2024 | L10: Diesel | M10: 2024 | N10: =149.31/100 -> 1.4931 | O10: gov.uk | P10: diesel2024 | R10: 2023 | S10: 2019 | T10: =Z20 -> 1.137758333 | U10: 0.82 | V10: =exiobase_currency_inflation[[#This Row],[GBP in reporting year to GBP in Exiobase year]]*exiobase_currency_inflation[[#This Row],[GBP to EUR in Exiobase year]] -> 0.9329618333 | W10: =exiobase_currency_inflation[[#This Row],[Reporting year]]&exiobase_currency_inflation[[#This Row],[Exiobase year]] -> 20232019 | Y10: 2019-03-01 | Z10: 1.1511
F11: Office - prestige air conditioned | G11: 358 | H11: 210 | I11: 2024 | L11: Petrol | M11: 2022 | N11: =164.64/100 -> 1.6464 | O11: gov.uk | P11: petrol2022 | R11: 2022 | S11: 2019 | T11: =Z20 -> 1.137758333 | U11: 0.89 | V11: =exiobase_currency_inflation[[#This Row],[GBP in reporting year to GBP in Exiobase year]]*exiobase_currency_inflation[[#This Row],[GBP to EUR in Exiobase year]] -> 1.012604917 | W11: =exiobase_currency_inflation[[#This Row],[Reporting year]]&exiobase_currency_inflation[[#This Row],[Exiobase year]] -> 20222019 | Y11: 2019-04-01 | Z11: 1.1618
F12: All-electric office - cellular naturally ventilated | G12: =G8+H8/2.7 -> 109.9259259 | H12: 0 | I12: 2024 | J12: COP = 2.7 | L12: Petrol | M12: 2023 | N12: =147.65/100 -> 1.4765 | O12: gov.uk | P12: petrol2023 | R12: 2021 | S12: 2019 | T12: =Z20 -> 1.137758333 | U12: 0.97 | V12: =exiobase_currency_inflation[[#This Row],[GBP in reporting year to GBP in Exiobase year]]*exiobase_currency_inflation[[#This Row],[GBP to EUR in Exiobase year]] -> 1.103625583 | W12: =exiobase_currency_inflation[[#This Row],[Reporting year]]&exiobase_currency_inflation[[#This Row],[Exiobase year]] -> 20212019 | Y12: 2019-05-01 | Z12: 1.1545
F13: All-electric office - open plan naturally ventilated | G13: =G9+H9/2.7 -> 140.9259259 | H13: 0 | I13: 2024 | J13: COP = 2.7 | L13: Petrol | M13: 2024 | N13: =142.31/100 -> 1.4231 | O13: gov.uk | P13: petrol2024 | R13: 2020 | S13: 2019 | T13: =Z20 -> 1.137758333 | U13: 0.99 | V13: =exiobase_currency_inflation[[#This Row],[GBP in reporting year to GBP in Exiobase year]]*exiobase_currency_inflation[[#This Row],[GBP to EUR in Exiobase year]] -> 1.12638075 | W13: =exiobase_currency_inflation[[#This Row],[Reporting year]]&exiobase_currency_inflation[[#This Row],[Exiobase year]] -> 20202019 | Y13: 2019-06-01 | Z13: 1.1349
F14: All-electric office - standard air conditioned | G14: =G10+H10/2.7 -> 291.9259259 | H14: 0 | I14: 2024 | J14: COP = 2.7 | R14: 2019 | S14: 2019 | T14: =Z20 -> 1.137758333 | U14: 1 | V14: =exiobase_currency_inflation[[#This Row],[GBP in reporting year to GBP in Exiobase year]]*exiobase_currency_inflation[[#This Row],[GBP to EUR in Exiobase year]] -> 1.137758333 | W14: =exiobase_currency_inflation[[#This Row],[Reporting year]]&exiobase_currency_inflation[[#This Row],[Exiobase year]] -> 20192019 | Y14: 2019-07-01 | Z14: 1.1263
F15: All-electric office - prestige air conditioned | G15: =G11+H11/2.7 -> 435.7777778 | H15: 0 | I15: 2024 | J15: COP = 2.7 | Y15: 2019-08-01 | Z15: 1.1217
F16: Industrial building post-1995 > 5000m2 | H16: 92 | I16: 2024 | J16: Good practice - no electricity | Y16: 2019-09-01 | Z16: 1.0935
F17: Industrial building pre-1995 > 5000m2 | H17: 103 | I17: 2024 | J17: Good practice - no electricity | Y17: 2019-10-01 | Z17: 1.1288
F18: Industrial building post-1995 <= 5000m2 | H18: 96 | I18: 2024 | J18: Good practice - no electricity | Y18: 2019-11-01 | Z18: 1.1589
F19: Industrial building pre-1995 <= 5000m2 | H19: 107 | I19: 2024 | J19: Good practice - no electricity | Y19: 2019-12-01 | Z19: 1.1668
F20: All-electric - industrial building post-1995 > 5000m2 | G20: =H16/2.7 -> 34.07407407 | I20: 2024 | J20: COP = 2.7 | Y20: Average | Z20: =AVERAGE(Z8:Z19) -> 1.137758333
F21: All-electric - industrial building pre-1995 > 5000m2 | G21: =H17/2.7 -> 38.14814815 | I21: 2024 | J21: COP = 2.7
F22: All-electric - industrial building post-1995 <= 5000m2 | G22: =H18/2.7 -> 35.55555556 | I22: 2024 | J22: COP = 2.7
F23: All-electric - industrial building pre-1995 <= 5000m2 | G23: =H19/2.7 -> 39.62962963 | I23: 2024 | J23: COP = 2.7
F24: Warehouse | G24: 67 | H24: 169 | J24: Retail - distribution warehouse
F25: All-electric warehouse | G25: 101 | H25: 0 | J25: Retail - distribution warehouse

Sheet Clients_projects (hidden)
B2: Client dropdown | D2: Column1 | E2: EA
B3: EA | E3: Test

Sheet Locations_projects (hidden)
B2: Location list | D2: Location dropdown | F2: Column1 | G2: Buckinghamshire | H2: Bristol
B3: Bristol | D3: Bedfordshire | H3: Test
D4: Berkshire
D5: Bristol
D6: Buckinghamshire
D7: Cambridgeshire
D8: Cheshire
D9: Cornwall
D10: Cumbria
D11: Derbyshire
D12: Devon
D13: Dorset
D14: Durham
D15: East Sussex
D16: Essex
D17: Gloucestershire
D18: Greater London
D19: Greater Manchester
D20: Hampshire
D21: Herefordshire
D22: Hertfordshire
D23: Isle of Wight
D24: Kent
D25: Lancashire
D26: Leicestershire
D27: Lincolnshire
D28: Merseyside
D29: Norfolk
D30: North Yorkshire
D31: Northamptonshire
D32: Northumberland
D33: Nottinghamshire
D34: Oxfordshire
D35: Rutland
D36: Shropshire
D37: Somerset
D38: South Yorkshire
D39: Staffordshire
D40: Suffolk
D41: Surrey
D42: Tyne and Wear
D43: Warwickshire
D44: West Midlands
D45: West Sussex
D46: West Yorkshire
D47: Wiltshire
D48: Worcestershire
D49: North Lincolnshire
D50: North East Lincolnshire
D51: Aberdeenshire
D52: Angus
D53: Argyll and Bute
D54: Ayrshire
D55: Caithness
D56: Clackmannanshire
D57: Dumfries and Galloway
D58: Dundee City
D59: Anglesey
D60: Brecknockshire
D61: Caernarfonshire
D62: Clwyd
D63: Dyfed
D64: Gwent
D65: Gwynedd
D66: Clwyd
D67: Merionethshire
D68: Monmouthshire
D69: Montgomeryshire
D70: Pembrokeshire
D71: Powys
D72: Radnorshire
D73: South Glamorgan
D74: West Glamorgan
D75: East Glamorgan
D76: Wrexham
D77: Ceredigion
D78: Conwy
D79: Pembrokeshire
D80: Powys
D81: Antrim
D82: Armagh
D83: Londonderry
D84: Down
D85: Fermanagh
D86: Tyrone

Sheet Emission table (hidden)
B5: Emission table
B6: Start date | C6: End date | J6: Project code | K6: =VLOOKUP(Dashboard!dashboard_project,project_db[[#All],[Project name]:[Project code]],2,FALSE) ->  | Y6: Client | Z6: EA | AI6: Location | AJ6: Buckinghamshire
B7: =Dashboard!dashboard_yr_startdate -> 00:00:00 | C7: =Dashboard!dashboard_yr_enddate -> 00:00:00 | J7: Project start date | K7: =VLOOKUP(proj_code,project_db[[#All],[Project code]:[Expected end date]],MATCH("Expected start date",project_db[[#Headers],[Project code]:[Expected end date]],0),FALSE) ->  | Y7: Start date | Z7: 2025-04-01 | AI7: Start date | AJ7: 2025-01-01
A8: Period in previous year | B8: =DATE(YEAR(Dashboard!dashboard_yr_startdate)-1,MONTH(Dashboard!dashboard_yr_startdate),DAY(Dashboard!dashboard_yr_startdate)) -> 3798-12-31 | C8: =DATE(YEAR(Dashboard!dashboard_yr_enddate)-1,MONTH(Dashboard!dashboard_yr_enddate),DAY(Dashboard!dashboard_yr_enddate)) -> 3798-12-31 | J8: Project end date | K8: =VLOOKUP(proj_code,project_db[[#All],[Project code]:[Expected end date]],MATCH("Expected end date",project_db[[#Headers],[Project code]:[Expected end date]],0),FALSE) ->  | Y8: End date | Z8: 2025-05-01 | AI8: End date | AJ8: 2025-12-31
Y9: Market/locational | Z9: Locational-based | AI9: Market/locational | AJ9: Market-based
B10: Annual table | C10: =Dashboard!lastyear_label -> 1/1/2024 - 1/1/2025 | D10: =Dashboard!thisyear_label -> 1/1/2025 - 1/1/2026 | H10: ="Tonnes CO2e "&Dashboard!thisyear_label -> Tonnes CO2e 1/1/2025 - 1/1/2026 | J10: Project person days in overlap period/Total person days in overlap period | K10: =IFERROR(SUMPRODUCT((persondays_db[Record type]= "Forecast")* (persondays_db[Data marker]= "live") * (#REF!) * (persondays_db[Person-days])*(persondays_db[Project code]=proj_code))/SUMPRODUCT((persondays_db[Record type]= "Forecast")* (persondays_db[Data marker]= "live") * (#REF!) * (persondays_db[Person-days])*(persondays_db[Resolution]="Total company")),0) -> 0 | L10: =IFERROR(SUMPRODUCT((persondays_db[Record type]= "Actual")* (persondays_db[Data marker]= "live") * (#REF!) * (persondays_db[Person-days])*(persondays_db[Project code]=proj_code))/SUMPRODUCT((persondays_db[Record type]= "Actual")* (persondays_db[Data marker]= "live") * (#REF!) * (persondays_db[Person-days])*(persondays_db[Resolution]="Total company")),0) -> 0 | M10: Project table | Y10: Client table | AI10: Location table
A11: Total market-based carbon footprint (tonnes CO2e) | B11: Emission | C11: Dashboard yr - 1 | D11: Dashboard yr | F11: Project code | G11: Project name | H11: Tonnes CO2e | J11: Total carbon footprint (tonnes CO2e) | N11: Forecast | P11: Actual | S11: ="Forecast vs Actual Scope 1 and 2 emissions ["&Dashboard!dashboard_project&" " &DAY(Dashboard!dashboard_start_date)&"/"&MONTH(Dashboard!dashboard_start_date)&"/"&YEAR(Dashboard!dashboard_start_date)&" - " &DAY(Dashboard!dashboard_end_date)&"/"&MONTH(Dashboard!dashboard_end_date)&"/"&YEAR(Dashboard!dashboard_end_date)&"]" -> Forecast vs Actual Scope 1 and 2 emissions [ 0/1/1900 - 0/1/1900] | Y11: Total locational-based carbon footprint (tonnes CO2e) | AD11: ="Forecast vs Actual Scope 1 and 2 "&emtbl_client_markloc& " emissions ["&emtbl_client&" "&DAY(emtbl_client_SD)&"/"&MONTH(emtbl_client_SD)&"/"&YEAR(emtbl_client_SD)&" - "&DAY(emtbl_client_ED)&"/"&MONTH(emtbl_client_ED)&"/"&YEAR(emtbl_client_ED)&"]" -> Forecast vs Actual Scope 1 and 2 Locational-based emissions [EA 1/4/2025 - 1/5/2025] | AI11: Total market-based carbon footprint (tonnes CO2e) | AN11: ="Forecast vs Actual Scope 1 and 2 " &emtbl_loc_markloc&" emissions ["&emtbl_loc&" " &DAY(emtbl_loc_SD)&"/"&MONTH(emtbl_loc_SD)&"/"&YEAR(emtbl_loc_SD)&" - " &DAY(emtbl_loc_ED)&"/"&MONTH(emtbl_loc_ED)&"/"&YEAR(emtbl_loc_ED)&"]" -> Forecast vs Actual Scope 1 and 2 Market-based emissions [Buckinghamshire 1/1/2025 - 31/12/2025]
B12: Stationary combustion | C12: 0 | D12: 0 | F12: 1 | G12: Project - Master | H12: 0 | J12: Emission | K12: Forecast | L12: Actual | M12: Actual as a % of forecast | N12: Market | O12: Locational | P12: Market | Q12: Locational | S12: ="Forecast vs Actual Scope 3 emissions ["&Dashboard!dashboard_project&" " &DAY(Dashboard!dashboard_start_date)&"/"&MONTH(Dashboard!dashboard_start_date)&"/"&YEAR(Dashboard!dashboard_start_date)&" - " &DAY(Dashboard!dashboard_end_date)&"/"&MONTH(Dashboard!dashboard_end_date)&"/"&YEAR(Dashboard!dashboard_end_date)&"]" -> Forecast vs Actual Scope 3 emissions [ 0/1/1900 - 0/1/1900] | Y12: Emission | Z12: Forecast | AA12: Actual | AB12: Actual as a % of forecast | AD12: ="Forecast vs Actual Scope 3 " & emtbl_client_markloc& " emissions ["&emtbl_client&" " &DAY(emtbl_client_SD)&"/"&MONTH(emtbl_client_SD)&"/"&YEAR(emtbl_client_SD)&" - " &DAY(emtbl_client_ED)&"/"&MONTH(emtbl_client_ED)&"/"&YEAR(emtbl_client_ED)&"]" -> Forecast vs Actual Scope 3 Locational-based emissions [EA 1/4/2025 - 1/5/2025] | AI12: Emission | AJ12: Forecast | AK12: Actual | AL12: Actual as a % of forecast | AN12: ="Forecast vs Actual Scope 3 "&emtbl_loc_markloc&" emissions ["&emtbl_loc&" " &DAY(emtbl_loc_SD)&"/"&MONTH(emtbl_loc_SD)&"/"&YEAR(emtbl_loc_SD)&" - " &DAY(emtbl_loc_ED)&"/"&MONTH(emtbl_loc_ED)&"/"&YEAR(emtbl_loc_ED)&"]" -> Forecast vs Actual Scope 3 Market-based emissions [Buckinghamshire 1/1/2025 - 31/12/2025]
B13: Project transport - company owned/leased vehicles | C13: 0 | D13: 0 | F13: 2 | G13: Project - Carbon Reduction Activity 1 | H13: 0 | J13: Stationary combustion | K13: =IFERROR(SUMPRODUCT((emissions_db[Record type] = "Forecast")* (emissions_db[Data marker] = "live") * (emissions_db[% of record within chosen project reporting period and project period]) * (emissions_db[Natural gas (tonnes CO2e)])*emissions_db[% of overhead allocated to project])+SUMPRODUCT((emissions_db[Record type] = "Forecast") * (emissions_db[% of record within chosen project reporting period and project period]) * (emissions_db[Fuel oil (tonnes CO2e)])*emissions_db[% of overhead allocated to project]),0) -> 0 | L13: =IFERROR(SUMPRODUCT((emissions_db[Record type] = "Actual") * (emissions_db[Data marker] = "live") *(emissions_db[% of record within chosen project reporting period and project period]) * (emissions_db[Natural gas (tonnes CO2e)])*emissions_db[% of overhead allocated to project])+SUMPRODUCT((emissions_db[Record type] = "Actual") * (emissions_db[% of record within chosen project reporting period and project period]) * (emissions_db[Fuel oil (tonnes CO2e)])*emissions_db[% of overhead allocated to project]),0) -> 0 | M13: =IFERROR(L13/K13,0) -> 0 | T13: Forecast | U13: Actual - to date | Y13: Stationary combustion | Z13: 0 | AA13: 0 | AB13: =IFERROR(AA13/Z13,0) -> 0 | AE13: Forecast | AF13: Actual - to date | AI13: Stationary combustion | AJ13: 0 | AK13: 0 | AL13: =IFERROR(AK13/AJ13,0) -> 0 | AO13: Forecast | AP13: Actual - to date
B14: Electricity | C14: 0 | D14: 0 | F14: 3 | G14: Project - Carbon Reduction Activity 2 | H14: 0 | J14: Project transport - company owned/leased vehicles | K14: =IFERROR(SUMPRODUCT((emissions_db[Record type] = "Forecast")* (emissions_db[Data marker] = "live") * (emissions_db[% of record within chosen project reporting period and project period]) *(emissions_db[Category] = "Project transport - company vehicles")* (emissions_db[Project code] = proj_code)*(emissions_db[Project transport (tonnes CO2e)])),0) -> 0 | L14: =IFERROR(SUMPRODUCT((emissions_db[Record type] = "Actual")* (emissions_db[Data marker] = "live") * (emissions_db[% of record within chosen project reporting period and project period]) *(emissions_db[Category] = "Project transport - company vehicles")* (emissions_db[Project code] = proj_code)*(emissions_db[Project transport (tonnes CO2e)])),0) -> 0 | M14: =IFERROR(L14/K14,0) -> 0 | S14: Scope 1 | T14: =SUM(K13:K14) -> 0 | U14: =SUM(L13:L14) -> 0 | Y14: Project transport - company owned/leased vehicles | Z14: 0 | AA14: 0 | AB14: =IFERROR(AA14/Z14,0) -> 0 | AD14: Scope 1 | AE14: =SUM(Z13:Z14) -> 0 | AF14: =SUM(AA13:AA14) -> 0 | AI14: Project transport - company owned/leased vehicles | AJ14: 0 | AK14: 0 | AL14: =IFERROR(AK14/AJ14,0) -> 0 | AN14: Scope 1 | AO14: =SUM(AJ13:AJ14) -> 0 | AP14: =SUM(AK13:AK14) -> 0
B15: Electricity - company owned/leased EVs | C15: 0 | D15: 0 | F15: 4 | G15: Project - Carbon Reduction Activity 3 | H15: 0 | J15: Electricity | K15: =IF(Dashboard!proj_mark_or_loc = "Locational-based",O15,N15) -> 0 | L15: =IF(Dashboard!proj_mark_or_loc = "Locational-based",Q15,P15) -> 0 | M15: 0 | N15: =IFERROR(SUMPRODUCT((emissions_db[Record type] = "Forecast")* (emissions_db[Data marker] = "live") * (emissions_db[% of record within chosen project reporting period and project period]) * (emissions_db[Electricity market-based (tonnes CO2e)])*emissions_db[% of overhead allocated to project]),0) -> 0 | O15: =IFERROR(SUMPRODUCT((emissions_db[Record type] = "Forecast")* (emissions_db[Data marker] = "live") * (emissions_db[% of record within chosen project reporting period and project period]) * (emissions_db[Electricity locational-based (tonnes CO2e)])*emissions_db[% of overhead allocated to project]),0) -> 0 | P15: =IFERROR(SUMPRODUCT((emissions_db[Record type] = "Actual")* (emissions_db[Data marker] = "live") * (emissions_db[% of record within chosen project reporting period and project period]) * (emissions_db[Electricity market-based (tonnes CO2e)])*emissions_db[% of overhead allocated to project]),0) -> 0 | Q15: =IFERROR(SUMPRODUCT((emissions_db[Record type] = "Actual")* (emissions_db[Data marker] = "live") * (emissions_db[% of record within chosen project reporting period and project period]) * (emissions_db[Electricity locational-based (tonnes CO2e)])*emissions_db[% of overhead allocated to project]),0) -> 0 | S15: Scope 2 | T15: =SUM(K15:K16) -> 0 | U15: =SUM(L15,L16) -> 0 | Y15: Electricity | Z15: 0 | AA15: 0 | AB15: =IFERROR(AA15/Z15,0) -> 0 | AD15: Scope 2 | AE15: =SUM(Z15:Z16) -> 0 | AF15: =SUM(AA15:AA16) -> 0 | AI15: Electricity | AJ15: 0 | AK15: 0 | AL15: =IFERROR(AK15/AJ15,0) -> 0 | AN15: Scope 2 | AO15: =SUM(AJ15:AJ16) -> 0 | AP15: =SUM(AK15:AK16) -> 0
B16: Upstream leased assets | C16: 0 | D16: 0 | F16: 5 | G16: Project - Carbon Reduction Activity 4 | H16: 0 | J16: Electricity - company owned/leased EVs | K16: =IFERROR(SUMPRODUCT((emissions_db[Record type] = "Forecast")* (emissions_db[Data marker] = "live") * (emissions_db[% of record within chosen project reporting period and project period]) *(emissions_db[Category] = "Project transport - company vehicles")* (emissions_db[Project code] = proj_code)*(emissions_db[Project transport EVs (tonnes CO2e)])),0) -> 0 | L16: =IFERROR(SUMPRODUCT((emissions_db[Record type] = "Actual")* (emissions_db[Data marker] = "live") * (emissions_db[% of record within chosen project reporting period and project period]) *(emissions_db[Category] = "Project transport - company vehicles")* (emissions_db[Project code] = proj_code)*(emissions_db[Project transport EVs (tonnes CO2e)])),0) -> 0 | M16: =IFERROR(L16/K16,0) -> 0 | S16: Scope 3 | T16: =SUM(K17:K31) -> 0 | U16: =SUM(L17:L31) -> 0 | Y16: Electricity - company owned/leased EVs | Z16: 0 | AA16: 0 | AB16: =IFERROR(AA16/Z16,0) -> 0 | AD16: Scope 3 | AE16: =SUM(Z17:Z31) -> 0.001506803279 | AF16: =SUM(AA17:AA31) -> 0 | AI16: Electricity - company owned/leased EVs | AJ16: 0 | AK16: 0 | AL16: =IFERROR(AK16/AJ16,0) -> 0 | AN16: Scope 3 | AO16: =SUM(AJ17:AJ31) -> 0 | AP16: =SUM(AK17:AK31) -> 0
B17: Overheads - business travel | C17: 0 | D17: 0 | F17: 6 | G17: Project - Carbon Reduction Activity 5 | H17: 0 | J17: Upstream leased assets | K17: =IF(Dashboard!proj_mark_or_loc = "Locational-based",O17,N17) -> 0 | L17: =IF(Dashboard!proj_mark_or_loc = "Locational-based",Q17,P17) -> 0 | M17: 0 | N17: =IFERROR(SUMPRODUCT((emissions_db[Record type] = "Forecast")* (emissions_db[Data marker] = "live") * (emissions_db[% of record within chosen project reporting period and project period]) * (emissions_db[Leased assets '[market-based'] (tonnes CO2e)])*emissions_db[% of overhead allocated to project]),0) -> 0 | O17: =IFERROR(SUMPRODUCT((emissions_db[Record type] = "Forecast")* (emissions_db[Data marker] = "live") * (emissions_db[% of record within chosen project reporting period and project period]) * (emissions_db[Leased assets '[locational-based'] (tonnes CO2e)])*emissions_db[% of overhead allocated to project]),0) -> 0 | P17: =IFERROR(SUMPRODUCT((emissions_db[Record type] = "Actual")* (emissions_db[Data marker] = "live") * (emissions_db[% of record within chosen project reporting period and project period]) * (emissions_db[Leased assets '[market-based'] (tonnes CO2e)])*emissions_db[% of overhead allocated to project]),0) -> 0 | Q17: =IFERROR(SUMPRODUCT((emissions_db[Record type] = "Actual")* (emissions_db[Data marker] = "live") * (emissions_db[% of record within chosen project reporting period and project period]) * (emissions_db[Leased assets '[locational-based'] (tonnes CO2e)])*emissions_db[% of overhead allocated to project]),0) -> 0 | S17: Biogenic | T17: =SUM(K34) -> 0 | U17: =L34 -> 0 | Y17: Upstream leased assets | Z17: 0 | AA17: 0 | AB17: =IFERROR(AA17/Z17,0) -> 0 | AD17: Biogenic | AE17: =Z34 -> 0 | AF17: =AA34 -> 0 | AI17: Upstream leased assets | AJ17: 0 | AK17: 0 | AL17: =IFERROR(AK17/AJ17,0) -> 0 | AN17: Biogenic | AO17: =AJ34 -> 0 | AP17: =AK34 -> 0
B18: Commuting | C18: 0 | D18: 0 | F18: 2 | G18: Test | H18: 0 | J18: Overheads - business travel | K18: =IFERROR(SUMPRODUCT((emissions_db[Record type] = "Forecast")* (emissions_db[Data marker] = "live") * (emissions_db[% of record within chosen project reporting period and project period]) * (emissions_db[Business travel (tonnes CO2e)])*emissions_db[% of overhead allocated to project]),0) -> 0 | L18: =IFERROR(SUMPRODUCT((emissions_db[Record type] = "Actual") * (emissions_db[Data marker] = "live") * (emissions_db[% of record within chosen project reporting period and project period]) * (emissions_db[Business travel (tonnes CO2e)])*emissions_db[% of overhead allocated to project]),0) -> 0 | M18: 0 | Y18: Overheads - business travel | Z18: 0 | AA18: 0 | AB18: =IFERROR(AA18/Z18,0) -> 0 | AI18: Overheads - business travel | AJ18: 0 | AK18: 0 | AL18: =IFERROR(AK18/AJ18,0) -> 0
B19: Upstream impacts - overheads | C19: 0 | D19: 0 | F19: 1 | G19: Test | J19: Commuting | K19: =IFERROR(SUMPRODUCT((emissions_db[Record type] = "Forecast")* (emissions_db[Data marker] = "live") * (emissions_db[% of record within chosen project reporting period and project period]) * (emissions_db[Commuting/homeworking (tonnes CO2e)])*emissions_db[% of overhead allocated to project]),0) -> 0 | L19: =IFERROR(SUMPRODUCT((emissions_db[Record type] = "Actual") * (emissions_db[Data marker] = "live") * (emissions_db[% of record within chosen project reporting period and project period]) * (emissions_db[Commuting/homeworking (tonnes CO2e)])*emissions_db[% of overhead allocated to project]),0) -> 0 | M19: 0 | U19: Helper column so that 0% projects don't show | Y19: Commuting | Z19: 0 | AA19: 0 | AB19: 0 | AF19: Helper column so that 0% projects don't show | AI19: Commuting | AJ19: 0 | AK19: 0 | AL19: 0 | AP19: Helper column so that 0% projects don't show
B20: Project transport - greyfleet | C20: 0 | D20: 0 | J20: Upstream impacts - overheads | K20: =IF(Dashboard!proj_mark_or_loc = "Locational-based",O20,N20) -> 0 | L20: =IF(Dashboard!proj_mark_or_loc = "Locational-based",Q20,P20) -> 0 | M20: 0 | N20: =IFERROR(SUMPRODUCT((emissions_db[Record type] = "Forecast")* (emissions_db[Data marker] = "live") * (emissions_db[% of record within chosen project reporting period and project period]) * (emissions_db[Upstream impacts - overheads '[market-based'] (tonnes CO2e)])*emissions_db[% of overhead allocated to project]),0) -> 0 | O20: =IFERROR(SUMPRODUCT((emissions_db[Record type] = "Forecast")* (emissions_db[Data marker] = "live") * (emissions_db[% of record within chosen project reporting period and project period]) * (emissions_db[Upstream impacts - overheads '[locational-based'] (tonnes CO2e)])*emissions_db[% of overhead allocated to project]),0) -> 0 | P20: =IFERROR(SUMPRODUCT((emissions_db[Record type] = "Actual")* (emissions_db[Data marker] = "live") * (emissions_db[% of record within chosen project reporting period and project period]) * (emissions_db[Upstream impacts - overheads '[market-based'] (tonnes CO2e)])*emissions_db[% of overhead allocated to project]),0) -> 0 | Q20: =IFERROR(SUMPRODUCT((emissions_db[Record type] = "Actual")* (emissions_db[Data marker] = "live") * (emissions_db[% of record within chosen project reporting period and project period]) * (emissions_db[Upstream impacts - overheads '[locational-based'] (tonnes CO2e)])*emissions_db[% of overhead allocated to project]),0) -> 0 | Y20: Upstream impacts - overheads | Z20: 0 | AA20: 0 | AB20: 0 | AI20: Upstream impacts - overheads | AJ20: 0 | AK20: 0 | AL20: 0
B21: Project transport - business travel | C21: 0 | D21: 0 | J21: Project transport - greyfleet | K21: =IFERROR(SUMPRODUCT((emissions_db[Record type] = "Forecast")* (emissions_db[Data marker] = "live") * (emissions_db[% of record within chosen project reporting period and project period]) *(emissions_db[Category] = "Project transport - greyfleet")* (emissions_db[Project code] = proj_code)*(emissions_db[Project transport (tonnes CO2e)])),0)+IFERROR(SUMPRODUCT((emissions_db[Record type] = "Forecast")* (emissions_db[Data marker] = "live") * (emissions_db[% of record within chosen project reporting period and project period]) *(emissions_db[Category] = "Project transport - greyfleet")* (emissions_db[Project code] = proj_code)*(emissions_db[Project transport EVs (tonnes CO2e)])),0) -> 0 | L21: =IFERROR(SUMPRODUCT((emissions_db[Record type] = "Actual")* (emissions_db[Data marker] = "live") * (emissions_db[% of record within chosen project reporting period and project period]) *(emissions_db[Category] = "Project transport - greyfleet")* (emissions_db[Project code] = proj_code)*(emissions_db[Project transport (tonnes CO2e)])),0)+IFERROR(SUMPRODUCT((emissions_db[Record type] = "Actual")* (emissions_db[Data marker] = "live") * (emissions_db[% of record within chosen project reporting period and project period]) *(emissions_db[Category] = "Project transport - greyfleet")* (emissions_db[Project code] = proj_code)*(emissions_db[Project transport EVs (tonnes CO2e)])),0) -> 0 | M21: 0 | T21: ="CO2e breakdown for "&Dashboard!dashboard_project& " " &DAY(Dashboard!dashboard_start_date)&"/"&MONTH(Dashboard!dashboard_start_date)&"/"&YEAR(Dashboard!dashboard_start_date)&" - " &DAY(Dashboard!dashboard_end_date)&"/"&MONTH(Dashboard!dashboard_end_date)&"/"&YEAR(Dashboard!dashboard_end_date) -> CO2e breakdown for 0/1/1900 - 0/1/1900 | U21: ="CO2e breakdown for "&Dashboard!dashboard_project& " " &DAY(Dashboard!dashboard_start_date)&"/"&MONTH(Dashboard!dashboard_start_date)&"/"&YEAR(Dashboard!dashboard_start_date)&" - " &DAY(Dashboard!dashboard_end_date)&"/"&MONTH(Dashboard!dashboard_end_date)&"/"&YEAR(Dashboard!dashboard_end_date) -> CO2e breakdown for 0/1/1900 - 0/1/1900 | V21: ="Tonnes CO2e ["&Dashboard!dashboard_project& "]" -> Tonnes CO2e [] | Y21: Project transport - greyfleet | Z21: 0 | AA21: 0 | AB21: 0 | AE21: =emtbl_client_markloc&" CO2e breakdown for "&emtbl_client&" " &DAY(emtbl_client_SD)&"/"&MONTH(emtbl_client_SD)&"/"&YEAR(emtbl_client_SD)&" - " &DAY(emtbl_client_ED)&"/"&MONTH(emtbl_client_ED)&"/"&YEAR(emtbl_client_ED)&"]" -> Locational-based CO2e breakdown for EA 1/4/2025 - 1/5/2025] | AF21: =emtbl_client_markloc&" CO2e breakdown for "&emtbl_client&" " &DAY(emtbl_client_SD)&"/"&MONTH(emtbl_client_SD)&"/"&YEAR(emtbl_client_SD)&" - " &DAY(emtbl_client_ED)&"/"&MONTH(emtbl_client_ED)&"/"&YEAR(emtbl_client_ED)&"]" -> Locational-based CO2e breakdown for EA 1/4/2025 - 1/5/2025] | AG21: ="Tonnes CO2e ["&[0]!dashboard_client& "]" -> Tonnes CO2e [] | AI21: Project transport - greyfleet | AJ21: 0 | AK21: 0 | AL21: 0 | AO21: =emtbl_loc_markloc&" CO2e breakdown for "&emtbl_loc&" " &DAY(emtbl_loc_SD)&"/"&MONTH(emtbl_loc_SD)&"/"&YEAR(emtbl_loc_SD)&" - " &DAY(emtbl_loc_ED)&"/"&MONTH(emtbl_loc_ED)&"/"&YEAR(emtbl_loc_ED) -> Market-based CO2e breakdown for Buckinghamshire 1/1/2025 - 31/12/2025 | AP21: ="CO2e breakdown for "&emtbl_loc&" " &DAY(emtbl_loc_SD)&"/"&MONTH(emtbl_loc_SD)&"/"&YEAR(emtbl_loc_SD)&" - " &DAY(emtbl_loc_ED)&"/"&MONTH(emtbl_loc_ED)&"/"&YEAR(emtbl_loc_ED) -> CO2e breakdown for Buckinghamshire 1/1/2025 - 31/12/2025 | AQ21: ="Tonnes CO2e ["&Dashboard!dashboard_loc& "]" -> Tonnes CO2e []
B22: Upstream impacts - project specific | C22: 0 | D22: 0 | J22: Project transport - business travel | K22: =IFERROR(SUMPRODUCT((emissions_db[Record type] = "Forecast")* (emissions_db[Data marker] = "live") * (emissions_db[% of record within chosen project reporting period and project period]) *(emissions_db[Category] = "Project transport - business travel")* (emissions_db[Project code] = proj_code)*(emissions_db[Project transport (tonnes CO2e)])),0)+IFERROR(SUMPRODUCT((emissions_db[Record type] = "Forecast")* (emissions_db[Data marker] = "live") * (emissions_db[% of record within chosen project reporting period and project period]) *(emissions_db[Category] = "Project transport - business travel")* (emissions_db[Project code] = proj_code)*(emissions_db[Project transport EVs (tonnes CO2e)])),0) -> 0 | L22: =IFERROR(SUMPRODUCT((emissions_db[Record type] = "Actual")* (emissions_db[Data marker] = "live") * (emissions_db[% of record within chosen project reporting period and project period]) *(emissions_db[Category] = "Project transport - business travel")* (emissions_db[Project code] = proj_code)*(emissions_db[Project transport (tonnes CO2e)])),0)+IFERROR(SUMPRODUCT((emissions_db[Record type] = "Actual")* (emissions_db[Data marker] = "live") * (emissions_db[% of record within chosen project reporting period and project period]) *(emissions_db[Category] = "Project transport - business travel")* (emissions_db[Project code] = proj_code)*(emissions_db[Project transport EVs (tonnes CO2e)])),0) -> 0 | M22: =IFERROR(L22/K22,0) -> 0 | S22: Buildings | T22: =SUM(L13,L15,L17,L20) -> 0 | U22: =IF(T22=0,NA(),S22) ->  | V22: =IF(T22=0,NA(),T22) ->  | Y22: Project transport - business travel | Z22: 0 | AA22: 0 | AB22: =IFERROR(AA22/Z22,0) -> 0 | AD22: Buildings | AE22: =SUM(AA13,AA15,AA17,AA20) -> 0 | AF22: =IF(AE22=0,NA(),AD22) ->  | AG22: =IF(AE22=0,NA(),AE22) ->  | AI22: Project transport - business travel | AJ22: 0 | AK22: 0 | AL22: =IFERROR(AK22/AJ22,0) -> 0 | AN22: Buildings | AO22: =SUM(AK13,AK15,AK17,AK20) -> 0 | AP22: =IF(AO22=0,NA(),AN22) ->  | AQ22: =IF(AO22=0,NA(),AO22) -> 
B23: Preliminaries | C23: 0 | D23: 0 | J23: Upstream impacts - project specific | K23: =IFERROR(SUMPRODUCT((emissions_db[Record type] = "Forecast")* (emissions_db[Data marker] = "live") * (emissions_db[% of record within chosen project reporting period and project period]) * (emissions_db[Project code] = proj_code)*(emissions_db[Upstream impacts - project specific (tonnes CO2e)])),0) -> 0 | L23: =IFERROR(SUMPRODUCT((emissions_db[Record type] = "Actual")* (emissions_db[Data marker] = "live") * (emissions_db[% of record within chosen project reporting period and project period]) * (emissions_db[Project code] = proj_code)*(emissions_db[Upstream impacts - project specific (tonnes CO2e)])),0) -> 0 | M23: 0 | S23: Transport | T23: =SUM(L14,L16,L18,L21:L23) -> 0 | U23: =IF(T23=0,NA(),S23) ->  | V23: =IF(T23=0,NA(),T23) ->  | Y23: Upstream impacts - project specific | Z23: 0 | AA23: 0 | AB23: =IFERROR(AA23/Z23,0) -> 0 | AD23: Transport | AE23: =SUM(AA14,AA16,AA18,AA21,AA22,AA23) -> 0 | AF23: =IF(AE23=0,NA(),AD23) ->  | AG23: =IF(AE23=0,NA(),AE23) ->  | AI23: Upstream impacts - project specific | AJ23: 0 | AK23: 0 | AL23: =IFERROR(AK23/AJ23,0) -> 0 | AN23: Transport | AO23: =SUM(AK14,AK16,AK18,AK21:AK23) -> 0 | AP23: =IF(AO23=0,NA(),AN23) ->  | AQ23: =IF(AO23=0,NA(),AO23) -> 
B24: Excavation/Investigation | C24: 0 | D24: 0 | J24: Preliminaries | K24: =IFERROR(SUMPRODUCT((emissions_db[Record type] = "Forecast")* (emissions_db[Data marker] = "live") * (emissions_db[% of record within chosen project reporting period and project period]) *(emissions_db[Section] = "A")* (emissions_db[Project code] = proj_code)*(emissions_db[BoQ (tonnes CO2e)])),0) -> 0 | L24: =IFERROR(SUMPRODUCT((emissions_db[Record type] = "Actual")* (emissions_db[Data marker] = "live") * (emissions_db[% of record within chosen project reporting period and project period]) *(emissions_db[Section] = "A")* (emissions_db[Project code] = proj_code)*(emissions_db[BoQ (tonnes CO2e)])),0) -> 0 | M24: 0 | S24: Commuting | T24: =L19 -> 0 | U24: =IF(T24=0,NA(),S24) ->  | V24: =IF(T24=0,NA(),T24) ->  | Y24: Preliminaries | Z24: 0 | AA24: 0 | AB24: 0 | AD24: Commuting | AE24: =AA19 -> 0 | AF24: =IF(AE24=0,NA(),AD24) ->  | AG24: =IF(AE24=0,NA(),AE24) ->  | AI24: Preliminaries | AJ24: 0 | AK24: 0 | AL24: 0 | AN24: Commuting | AO24: =AK19 -> 0 | AP24: =IF(AO24=0,NA(),AN24) ->  | AQ24: =IF(AO24=0,NA(),AO24) -> 
B25: Processing of recovered materials | C25: 0 | D25: 0 | J25: Excavation/Investigation | K25: =IFERROR(SUMPRODUCT((emissions_db[Record type] = "Forecast")* (emissions_db[Data marker] = "live") * (emissions_db[% of record within chosen project reporting period and project period]) *(emissions_db[Section] = "B")* (emissions_db[Project code] = proj_code)*(emissions_db[BoQ (tonnes CO2e)])),0) -> 0 | L25: =IFERROR(SUMPRODUCT((emissions_db[Record type] = "Actual")* (emissions_db[Data marker] = "live") * (emissions_db[% of record within chosen project reporting period and project period]) *(emissions_db[Section] = "B")* (emissions_db[Project code] = proj_code)*(emissions_db[BoQ (tonnes CO2e)])),0) -> 0 | M25: 0 | S25: Purchased goods and services | T25: =SUM(L24:L31) -> 0 | U25: =IF(T25=0,NA(),S25) ->  | V25: =IF(T25=0,NA(),T25) ->  | Y25: Excavation/Investigation | Z25: 0 | AA25: 0 | AB25: 0 | AD25: Purchased goods and services | AE25: =SUM(AA24:AA31) -> 0 | AF25: =IF(AE25=0,NA(),AD25) ->  | AG25: =IF(AE25=0,NA(),AE25) ->  | AI25: Excavation/Investigation | AJ25: 0 | AK25: 0 | AL25: 0 | AN25: Purchased goods and services | AO25: =SUM(AK24:AK31) -> 0 | AP25: =IF(AO25=0,NA(),AN25) ->  | AQ25: =IF(AO25=0,NA(),AO25) -> 
B26: Post-excavation assessment | C26: 0 | D26: 0 | J26: Processing of recovered materials | K26: =IFERROR(SUMPRODUCT((emissions_db[Record type] = "Forecast")* (emissions_db[Data marker] = "live") * (emissions_db[% of record within chosen project reporting period and project period]) *(emissions_db[Section] = "C")* (emissions_db[Project code] = proj_code)*(emissions_db[BoQ (tonnes CO2e)])),0) -> 0 | L26: =IFERROR(SUMPRODUCT((emissions_db[Record type] = "Actual")* (emissions_db[Data marker] = "live") * (emissions_db[% of record within chosen project reporting period and project period]) *(emissions_db[Section] = "C")* (emissions_db[Project code] = proj_code)*(emissions_db[BoQ (tonnes CO2e)])),0) -> 0 | M26: 0 | S26: Biogenic | T26: =L34 -> 0 | U26: =IF(T26=0,NA(),S26) ->  | V26: =IF(T26=0,NA(),T26) ->  | Y26: Processing of recovered materials | Z26: 0 | AA26: 0 | AB26: 0 | AD26: Biogenic | AE26: =AA34 -> 0 | AF26: =IF(AE26=0,NA(),AD26) ->  | AG26: =IF(AE26=0,NA(),AE26) ->  | AI26: Processing of recovered materials | AJ26: 0 | AK26: 0 | AL26: 0 | AN26: Biogenic | AO26: =AK34 -> 0 | AP26: =IF(AO26=0,NA(),AN26) ->  | AQ26: =IF(AO26=0,NA(),AO26) -> 
B27: Post-excavation analysis and dissemination | C27: 0 | D27: 0 | J27: Post-excavation assessment | K27: =IFERROR(SUMPRODUCT((emissions_db[Record type] = "Forecast")* (emissions_db[Data marker] = "live") * (emissions_db[% of record within chosen project reporting period and project period]) *(emissions_db[Section] = "D")* (emissions_db[Project code] = proj_code)*(emissions_db[BoQ (tonnes CO2e)])),0) -> 0 | L27: =IFERROR(SUMPRODUCT((emissions_db[Record type] = "Actual")* (emissions_db[Data marker] = "live") * (emissions_db[% of record within chosen project reporting period and project period]) *(emissions_db[Section] = "D")* (emissions_db[Project code] = proj_code)*(emissions_db[BoQ (tonnes CO2e)])),0) -> 0 | M27: 0 | Y27: Post-excavation assessment | Z27: 0 | AA27: 0 | AB27: 0 | AI27: Post-excavation assessment | AJ27: 0 | AK27: 0 | AL27: 0
B28: Public engagement | C28: 0 | D28: 0 | J28: Post-excavation analysis and dissemination | K28: =IFERROR(SUMPRODUCT((emissions_db[Record type] = "Forecast")* (emissions_db[Data marker] = "live") * (emissions_db[% of record within chosen project reporting period and project period]) *(emissions_db[Section] = "E")* (emissions_db[Project code] = proj_code)*(emissions_db[BoQ (tonnes CO2e)])),0) -> 0 | L28: =IFERROR(SUMPRODUCT((emissions_db[Record type] = "Actual")* (emissions_db[Data marker] = "live") * (emissions_db[% of record within chosen project reporting period and project period]) *(emissions_db[Section] = "E")* (emissions_db[Project code] = proj_code)*(emissions_db[BoQ (tonnes CO2e)])),0) -> 0 | M28: 0 | Y28: Post-excavation analysis and dissemination | Z28: 0 | AA28: 0 | AB28: 0 | AI28: Post-excavation analysis and dissemination | AJ28: 0 | AK28: 0 | AL28: 0
B29: Deposition | C29: 0 | D29: 0 | J29: Public engagement | K29: =IFERROR(SUMPRODUCT((emissions_db[Record type] = "Forecast")* (emissions_db[Data marker] = "live") * (emissions_db[% of record within chosen project reporting period and project period]) *(emissions_db[Section] = "F")* (emissions_db[Project code] = proj_code)*(emissions_db[BoQ (tonnes CO2e)])),0) -> 0 | L29: =IFERROR(SUMPRODUCT((emissions_db[Record type] = "Actual")* (emissions_db[Data marker] = "live") * (emissions_db[% of record within chosen project reporting period and project period]) *(emissions_db[Section] = "F")* (emissions_db[Project code] = proj_code)*(emissions_db[BoQ (tonnes CO2e)])),0) -> 0 | M29: 0 | Y29: Public engagement | Z29: 0 | AA29: 0 | AB29: 0 | AI29: Public engagement | AJ29: 0 | AK29: 0 | AL29: 0
B30: Plant hire | C30: 0 | D30: 0 | J30: Deposition | K30: =IFERROR(SUMPRODUCT((emissions_db[Record type] = "Forecast")* (emissions_db[Data marker] = "live") * (emissions_db[% of record within chosen project reporting period and project period]) *(emissions_db[Section] = "G")* (emissions_db[Project code] = proj_code)*(emissions_db[BoQ (tonnes CO2e)])),0) -> 0 | L30: =IFERROR(SUMPRODUCT((emissions_db[Record type] = "Actual")* (emissions_db[Data marker] = "live") * (emissions_db[% of record within chosen project reporting period and project period]) *(emissions_db[Section] = "G")* (emissions_db[Project code] = proj_code)*(emissions_db[BoQ (tonnes CO2e)])),0) -> 0 | M30: 0 | Y30: Deposition | Z30: 0 | AA30: 0 | AB30: 0 | AI30: Deposition | AJ30: 0 | AK30: 0 | AL30: 0
B31: Development emissions [fossil] | C31: 0 | D31: 0 | J31: Plant hire | K31: =IFERROR(SUMPRODUCT((emissions_db[Record type] = "Forecast")* (emissions_db[Data marker] = "live") * (emissions_db[% of record within chosen project reporting period and project period]) *(emissions_db[Section] = "Y")* (emissions_db[Project code] = proj_code)*(emissions_db[BoQ (tonnes CO2e)]))+SUMPRODUCT((emissions_db[Record type] = "Forecast")* (emissions_db[Data marker] = "live") * (emissions_db[% of record within chosen project reporting period and project period]) * (emissions_db[Project code] = proj_code)*(emissions_db[Excavation emissions (tonnes CO2e)])),0) -> 0 | L31: =IFERROR(SUMPRODUCT((emissions_db[Record type] = "Actual")* (emissions_db[Data marker] = "live") * (emissions_db[% of record within chosen project reporting period and project period]) *(emissions_db[Section] = "Y")* (emissions_db[Project code] = proj_code)*(emissions_db[BoQ (tonnes CO2e)]))+SUMPRODUCT((emissions_db[Record type] = "Actual")* (emissions_db[Data marker] = "live") * (emissions_db[% of record within chosen project reporting period and project period]) * (emissions_db[Project code] = proj_code)*(emissions_db[Excavation emissions (tonnes CO2e)])),0) -> 0 | M31: 0 | Y31: Plant hire | Z31: 0.001506803279 | AA31: 0 | AB31: =IFERROR(AA31/Z31,0) -> 0 | AI31: Plant hire | AJ31: 0 | AK31: 0 | AL31: =IFERROR(AK31/AJ31,0) -> 0
B32: Development emissions [biogenic] | C32: 0 | D32: 0 | J32: Development emissions [fossil] | K32: =IFERROR(SUMPRODUCT((emissions_db[Record type] = "Forecast")* (emissions_db[Data marker] = "live") * (emissions_db[% of record within chosen project reporting period and project period])* (emissions_db[Project code] = proj_code)*(emissions_db[Development emissions '[fossil'] (tonnes CO2e)])),0) -> 0 | L32: =IFERROR(SUMPRODUCT((emissions_db[Record type] = "Actual")* (emissions_db[Data marker] = "live") * (emissions_db[% of record within chosen project reporting period and project period]) * (emissions_db[Project code] = proj_code)*(emissions_db[Development emissions '[fossil'] (tonnes CO2e)])),0) -> 0 | M32: 0 | Y32: Development emissions [fossil] | Z32: 0 | AA32: 0 | AB32: =IFERROR(AA32/Z32,0) -> 0 | AI32: Development emissions [fossil] | AJ32: 0 | AK32: 0 | AL32: =IFERROR(AK32/AJ32,0) -> 0
B33: Biogenic emissions | C33: 0 | D33: 0 | J33: Development emissions [biogenic] | K33: =IFERROR(SUMPRODUCT((emissions_db[Record type] = "Forecast")* (emissions_db[Data marker] = "live") * (emissions_db[% of record within chosen project reporting period and project period]) * (emissions_db[Project code] = proj_code)*(emissions_db[Development emissions '[biogenic'] (tonnes CO2e)])),0) -> 0 | L33: =IFERROR(SUMPRODUCT((emissions_db[Record type] = "Actual")* (emissions_db[Data marker] = "live") * (emissions_db[% of record within chosen project reporting period and project period])* (emissions_db[Project code] = proj_code)*(emissions_db[Development emissions '[biogenic'] (tonnes CO2e)])),0) -> 0 | M33: 0 | Y33: Development emissions [biogenic] | Z33: 0 | AA33: 0 | AB33: =IFERROR(AA33/Z33,0) -> 0 | AI33: Development emissions [biogenic] | AJ33: 0 | AK33: 0 | AL33: =IFERROR(AK33/AJ33,0) -> 0
B34: Total overheads | D34: =SUM(D12,D14:D19) -> 0 | J34: Biogenic emissions | K34: =IFERROR(SUMPRODUCT((emissions_db[Record type] = "Forecast")* (emissions_db[Data marker] = "live") * (emissions_db[% of record within chosen project reporting period and project period]) * (emissions_db[Project code] = proj_code)*(emissions_db[Biogenic emissions (tonnes CO2e)])) + SUMPRODUCT((emissions_db[Record type] = "Forecast")* (emissions_db[Data marker] = "live") * (emissions_db[% of record within chosen project reporting period and project period]) * (emissions_db[Category]="Buildings")*(emissions_db[Biogenic emissions (tonnes CO2e)])*(emissions_db[% of overhead allocated to project])),0) -> 0 | L34: =IFERROR(SUMPRODUCT((emissions_db[Record type] = "Actual")* (emissions_db[Data marker] = "live") * (emissions_db[% of record within chosen project reporting period and project period]) * (emissions_db[Project code] = proj_code)*(emissions_db[Biogenic emissions (tonnes CO2e)]))+ SUMPRODUCT((emissions_db[Record type] = "Actual")* (emissions_db[Data marker] = "live") * (emissions_db[% of record within chosen project reporting period and project period]) * (emissions_db[Category]="Buildings")*(emissions_db[Biogenic emissions (tonnes CO2e)])*(emissions_db[% of overhead allocated to project])),0) -> 0 | M34: 0 | Y34: Biogenic emissions | Z34: 0 | AA34: 0 | AB34: =IFERROR(AA34/Z34,0) -> 0 | AI34: Biogenic emissions | AJ34: 0 | AK34: 0 | AL34: =IFERROR(AK34/AJ34,0) -> 0
K35: =SUBTOTAL(109,proj_tbl[Forecast]) -> 0 | L35: =SUBTOTAL(109,proj_tbl[Actual]) -> 0
B36: ="Pie chart: Projects " &Dashboard!thisyear_label -> Pie chart: Projects 1/1/2025 - 1/1/2026 | K36: =SUM(K13:K31) -> 0 | L36: =SUM(L13:L31) -> 0 | Y36: =emtbl_client_markloc& " emission breakdown by project "&"["&emtbl_client&" " &DAY(emtbl_client_SD)&"/"&MONTH(emtbl_client_SD)&"/"&YEAR(emtbl_client_SD)&" - " &DAY(emtbl_client_ED)&"/"&MONTH(emtbl_client_ED)&"/"&YEAR(emtbl_client_ED)&"]" -> Locational-based emission breakdown by project [EA 1/4/2025 - 1/5/2025] | AI36: =emtbl_loc_markloc& " emission breakdown by project "&"["&emtbl_loc&" " &DAY(emtbl_loc_SD)&"/"&MONTH(emtbl_loc_SD)&"/"&YEAR(emtbl_loc_SD)&" - " &DAY(emtbl_loc_ED)&"/"&MONTH(emtbl_loc_ED)&"/"&YEAR(emtbl_loc_ED)&"]"&"]" -> Market-based emission breakdown by project [Buckinghamshire 1/1/2025 - 31/12/2025]]
B37: Project code | C37: Project name | D37: Tonnes CO2e | Y37: Project name | Z37: Forecast | AA37: Actual | AI37: Project name | AJ37: Forecast | AK37: Actual
D38: 0 | Z38: 0 | AA38: 0 | AJ38: 0 | AK38: 0

Sheet FrontSheet (hidden)
B2: This document displays carbon emissions data for:
B3: Client
B4: Location
B5: Project(s)
B6: The data represents emissions in the following period:
B7: Start date
B8: End date
B10: The emissions are split into the following categories:
B12: Reporting scope | C12: Emissions | D12: Categories included
B13: Non-project based reporting only | C13: In-scope emission allocation to reporting period [locational] | D13: BoQ, Project transport, Project transport EVs, Excavation emissions, Upstream impacts - project specific, Electricity locational-based, Natural gas, Fuel oil, Leased assets '[locational-based'], Commuting/homeworking, Business travel, Upstream impacts - overheads '[locational-based']
B14: Non-project based reporting only | C14: In-scope emission allocation to reporting period [market] | D14: BoQ, Project transport, Project transport EVs, Excavation emissions, Upstream impacts - project specific, Electricity market-based, Natural gas, Fuel oil, Leased assets '[market-based'], Commuting/homeworking, Business travel, Upstream impacts - overheads '[market-based']
B15: Project based reporting only | C15: In-scope project emission allocation to reporting period | D15: BoQ, Project transport, Project transport EVs, Excavation emissions, Upstream impacts - project specific
B16: Project based reporting only | C16: Overhead emission allocation to project and reporting period [locational] | D16: Electricity locational-based, Natural gas, Fuel oil, Leased assets [locational-based], Commuting/homeworking, Business travel, Upstream impacts - overheads [locational-based]
B17: Project based reporting only | C17: Overhead emission allocation to project and reporting period [market] | D17: Electricity market-based, Natural gas, Fuel oil, Leased assets [market-based], Commuting/homeworking, Business travel, Upstream impacts - overheads [market-based]
B18: All reporting | C18: Biogenic emissions allocation to reporting period | D18: Biogenic emissions
B19: All reporting | C19: Development emissions allocation to reporting period | D19: Development emissions [fossil], Development emissions [biogenic]
B21: Overhead allocation to project
B22: To accurately allocate overhead emissions to a project, all overhead emissions within the project's time period is broken down into emissions per person-day at monthly resolution. This is calculated using the total FTE person-days worked by all employees involved in project delivery across the whole organisation. These emissions are then be scaled according to the total number of person-days required for the project during the time period being reported.
B26: Biogenic emissions - DEZNZ guidance
B27: Outside of scopes includes biogenic CO2 factors that should be used to account for the direct carbon dioxide (CO2) impact of burning biomass and biofuels, including when reporting emissions from electricity consumption. Biogenic CO2 emissions are one of several activities labelled ‘outside of scopes’ by the GHG Protocol Corporate Accounting and Reporting Standard because the Scope 1 impact of these fuels has been determined to be a net ‘0’ (since the fuel source itself absorbs an equivalent amount of CO2 during the growth phase as the amount of CO2 released through combustion). Full reporting of any fuel from a biogenic source, including electricity, should have the biogenic CO2 value documented to ensure complete accounting for the emissions created.
B32: Biogenic emissions - application to archaeology
B33: Biogenic emissions have been included as the GHG Protocol intends to introduce mandatory reporting in this category. At the moment, biogenic emissions should be reported as "out of scope". For archaeology companies, biogenic emissions come from petrol, diesel, and biodiesel consumption, as well as the emissions relating to the displacement of soil during excavation. All of the listed have been included in our calculations.
B37: Development emissions
B38: The reporting of the emissions released purely due to archaeological activity when placed in the wider development is resolved by separately reporting the areas which are disturbed purely for archaeological activity and those where archaeology activity may come first, but where the development would have undertaken these activities regardless of the archaeological intervention. Emissions that are of a result of activities considered to be part of the wider development are reported in the development emissions category.

Sheet Summary (hidden)
